{"text_format":"1","workbook":"xlsx","n_sheets":9,"sheets":["Copyright","Cover","All Result","Instruction","Sheet1","FW nonmetal plant","FW nonmetal plant_WS","Reference list","Sheet2"],"not_rendered":{"charts":0,"images":0,"macros":1,"external_links":0,"defined_names":6,"comments":2,"pivot_tables":0},"unopened":[],"bounds":{"document_bytes":16777216,"sheet_cells":100000,"rows_first":2000,"rows_last":500,"rows_between":2000,"halvings":0,"cell_chars":16384,"cell_head_chars":4096},"cells_cut":0,"cells_raw":0,"read":"whole","date_system":"1900"}

{"sheet":"Copyright","index":0,"n_rows":0,"n_cols":0,"rows_kept":0,"cut":false,"hidden":false,"merged":[]}

{"sheet":"Cover","index":1,"n_rows":20,"n_cols":7,"rows_kept":20,"cut":false,"hidden":false,"merged":[[18,6,18,8],[14,6,14,8],[13,6,13,8],[4,4,4,10],[9,6,9,8],[12,6,12,8],[5,5,6,9]]}
[]
[]
[]
[]
[null,null,null,null,"Ecotoxicity Data Quality Assessment Method V2"]
[null,null,null,null,null,"To be used to assess the quality of data used for the Australian and New Zealand Guidelines for Fresh and Marine Water Quality (including sediment) and the Australian National Environment Protection (Assessment of Site Contamination) Measure"]
[]
[]
[]
[null,null,null,null,null,null,"Developed by "]
[]
[]
[null,null,null,null,null,null,"Zoe Zhang"]
[null,null,null,null,null,null,"   Dr. Michael Warne"]
[null,null,null,null,null,null,"Alison Vieritz "]
[]
[]
[]
[null,null,null,null,null,null,"Water Quality & Investigations "]
[null,null,null,null,null,"                 Department of Science,Information Technology and Innovation"]

{"sheet":"All Result","index":2,"n_rows":120,"n_cols":22,"rows_kept":120,"cut":false,"hidden":false,"merged":[]}
[]
["Nitrate (Freshwater)"]
[{"$f":"'FW nonmetal plant'!C2","v":"Category"},{"$f":"'FW nonmetal plant'!C3","v":"Paper and data unique identifier(eg. 1-1,10-150)"},{"$f":"'FW nonmetal plant'!C70","v":"Total score"},{"$f":"'FW nonmetal plant'!C72","v":"Quality Score"},"Comment ",{"$f":"'FW nonmetal plant'!G3","v":"Species (Scientific name)"},{"$f":"'FW nonmetal plant'!G4","v":"Lifestage"},{"$f":"'FW nonmetal plant'!G5","v":"Exposure duration"},{"$f":"'FW nonmetal plant'!G6","v":"Measure of toxicity"},{"$f":"'FW nonmetal plant'!G7","v":"Toxicity endpoint"},{"$f":"'FW nonmetal plant'!G8","v":"Toxicity value"},{"$f":"'FW nonmetal plant'!J2","v":"Taxonomic group"},{"$f":"'FW nonmetal plant'!J3","v":"Phylum"},"Media",{"$f":"'FW nonmetal plant'!J6","v":"Temperature "},{"$f":"'FW nonmetal plant'!J7","v":"Acute Or Chronic "},{"$f":"'FW nonmetal plant'!J8","v":"PH"},"Hardness, mg/L CaCO3","REFERENCE",{"$f":"'Reference list'!A62N26","v":{"$error":"#NAME?"}}]
["Freshwater/non-metal/non- plant","N06-1",71,0.80681818181818177,"No hardness data","Astacus astacus","Juvenile","7 d","NOAEL","Mortality",">14.0","Invertebrate","Arthropoda","Freshwater",15,"Chronic",8.3000000000000007,"NR","Jensen, F.B. (1996). Uptake, elimination and effects of nitrite and nitrate in freshwater crayfish (Astacus astacus). Aquatic Toxicology 34:  94-104.","N06",null,{"$f":"B4","v":"N06-1"}]
["Freshwater/non-metal/non- plant","N03-1",81,0.92045454545454541,"No hardness data","Bufo americanus","Egg","23 d","NOEC","Hatched",">9.3","Amphibian","Chordata","Freshwater",25,"Chronic",6.5,"NR","Laposata, M.M.; Dunson, W.A. (1998). Effects of boron and nitrate on hatching success of amphibian eggs. Archives of Environmental and Contamination Toxicology 35:  615-619.","N03",null,{"$f":"B5","v":"N03-1"}]
["Freshwater/non-metal/non- plant","N07-1",81,0.92045454545454541,"","Ceriodaphnia dubia","Neonates","7 d","NOEC","Reproduction",7.1,"Invertebrate","Arthropoda","Freshwater",25,"Chronic","7.89-8.25","156-172","Scott, G.; Crunkilton, R.L. (2000). Acute and chronic toxicity of nitrate to fathead minnows (Pimephales promelas), Ceriodaphnia dubia, and Daphnia magna. Environmental Toxicology and Chemistry 19:  2918-2922.","N07",null,"N07-1"]
["Freshwater/non-metal/non- plant","N07-2",81,0.92045454545454541,"","Ceriodaphnia dubia","Neonates","7 d","NOEC","Reproduction",56.5,"Invertebrate","Arthropoda","Freshwater",25,"Chronic","7.89-8.25","156-172","Scott, G.; Crunkilton, R.L. (2000). Acute and chronic toxicity of nitrate to fathead minnows (Pimephales promelas), Ceriodaphnia dubia, and Daphnia magna. Environmental Toxicology and Chemistry 19:  2918-2922.","N07",null,"N07-2"]
["Freshwater/non-metal/non- plant","N07-3",81,0.92045454545454541,"","Ceriodaphnia dubia","Neonates","7 d","NOEC","Reproduction",7.1,"Invertebrate","Arthropoda","Freshwater",25,"Chronic","7.89-8.25","156-172","Scott, G.; Crunkilton, R.L. (2000). Acute and chronic toxicity of nitrate to fathead minnows (Pimephales promelas), Ceriodaphnia dubia, and Daphnia magna. Environmental Toxicology and Chemistry 19:  2918-2922.","N07",null,"N07-3"]
["Freshwater/non-metal/non- plant","N07-4",81,0.92045454545454541,"","Ceriodaphnia dubia","Neonates","7 d","NOEC","Reproduction",17.899999999999999,"Invertebrate","Arthropoda","Freshwater",25,"Chronic","7.89-8.25","156-172","Scott, G.; Crunkilton, R.L. (2000). Acute and chronic toxicity of nitrate to fathead minnows (Pimephales promelas), Ceriodaphnia dubia, and Daphnia magna. Environmental Toxicology and Chemistry 19:  2918-2922.","N07",null,"N07-4"]
["Freshwater/non-metal/non- plant","N07-5",81,0.92045454545454541,"","Ceriodaphnia dubia","Neonates","7 d","NOEC","Reproduction",17.899999999999999,"Invertebrate","Arthropoda","Freshwater",25,"Chronic","7.89-8.25","156-172","Scott, G.; Crunkilton, R.L. (2000). Acute and chronic toxicity of nitrate to fathead minnows (Pimephales promelas), Ceriodaphnia dubia, and Daphnia magna. Environmental Toxicology and Chemistry 19:  2918-2922.","N07",null,"N07-5"]
[null,"N09-2-1b",83,0.94318181818181823,null,"Ceriodaphnia dubia","Neonates","7 d","IC10","Reproduction",28.5,"Invertebrate","Arthropoda","Freshwater",25,"Chronic","6.9-7.5",166,"Nautilus Environmental (2011b). Evaluation of the role of hardness in modifying the toxicity of nitrate to freshwater organisms. No. Final Report Submitted to Mining Association of BC, Vancouver, B.C. 4 April 2011. pp. 216."]
["Freshwater/non-metal/non- plant","NO9-2-1b",83,0.94318181818181823,null,"Ceriodaphnia dubia","Neonates","7 d","IC10","Reproduction",1.94,"Invertebrate","Arthropoda","Freshwater",25,"Chronic","6.9-7.5",44,"Nautilus Environmental (2011b). Evaluation of the role of hardness in modifying the toxicity of nitrate to freshwater organisms. No. Final Report Submitted to Mining Association of BC, Vancouver, B.C. 4 April 2011. pp. 216.","N09",null,{"$f":"B12","v":"NO9-2-1b"}]
["Freshwater/non-metal/non- plant","NO9-2-1b",83,0.94318181818181823,null,"Ceriodaphnia dubia","Neonates","7 d","IC10","Reproduction",4.9000000000000004,"Invertebrate","Arthropoda","Freshwater",25,"Chronic","6.9-7.5",98,"Nautilus Environmental (2011b). Evaluation of the role of hardness in modifying the toxicity of nitrate to freshwater organisms. No. Final Report Submitted to Mining Association of BC, Vancouver, B.C. 4 April 2011. pp. 216.","N09",null,"NO9-2-1b"]
["Freshwater/non-metal/non- plant","N09-1",83,0.94318181818181823,"","Ceriodaphnia dubia","Neonates","7 d","NOEC","Survival and reproduction",10,"Invertebrate","Arthropoda","Freshwater",25,"Chronic","6.9-7.5",44,"Nautilus Environmental (2011b). Evaluation of the role of hardness in modifying the toxicity of nitrate to freshwater organisms. No. Final Report Submitted to Mining Association of BC, Vancouver, B.C. 4 April 2011. pp. 216.","N09",null,"N09-1"]
["Freshwater/non-metal/non- plant","N09-2",83,0.94318181818181823,"","Ceriodaphnia dubia","Neonates","7 d","NOEC","Survival and reproduction",20,"Invertebrate","Arthropoda","Freshwater",25,"Chronic","6.9-7.5",44,"Nautilus Environmental (2011b). Evaluation of the role of hardness in modifying the toxicity of nitrate to freshwater organisms. No. Final Report Submitted to Mining Association of BC, Vancouver, B.C. 4 April 2011. pp. 216.","N09",null,"N09-2"]
["Freshwater/non-metal/non- plant","N09-3",83,0.94318181818181823,"","Ceriodaphnia dubia","Neonates","7 d","NOEC","Survival and reproduction",40,"Invertebrate","Arthropoda","Freshwater",25,"Chronic","6.9-7.5",98,"Nautilus Environmental (2011b). Evaluation of the role of hardness in modifying the toxicity of nitrate to freshwater organisms. No. Final Report Submitted to Mining Association of BC, Vancouver, B.C. 4 April 2011. pp. 216.","N09",null,"N09-3"]
["Freshwater/non-metal/non- plant","N09-2-2",83,0.94318181818181823,null,"Ceriodaphnia dubia","Neonates","7 d","EC20","Reproduction",80,"Invertebrate","Arthropoda","Freshwater",25,"Chronic","6.9-7.5",98,"Nautilus Environmental (2011b). Evaluation of the role of hardness in modifying the toxicity of nitrate to freshwater organisms. No. Final Report Submitted to Mining Association of BC, Vancouver, B.C. 4 April 2011. pp. 216.","N09",null,"N09-2-2"]
["Freshwater/non-metal/non- plant","N21-1",82,0.93181818181818177,"Used Ca(NO3)2","Ceriodaphnia silvestrii","Neonate","7 d","IC25","Reproduction",5.05,"Cladoceran","Arthropoda","Freshwater",25,"Chronic",7.23,58.5,"Sueitt APE, Yamada-Ferraz TM, Oliveira AF, Botta CMR, Fadini PS, Nascimento MRL, Faria BM, Mozeto AA. 2015. Ecotoxicological risks of calcium nitrate exposure to freshwater tropical organisms: Laboratory and field experiments. Ecotox Environ Safety 117:155-163.","N21",null,"N21-1"]
["Freshwater/non-metal/non- plant","N9-4b",83,0.94318181818181823,null,"Chironomus dilutus","Larvae","10 d","IC10","Growth (weight)",5.8,"Invertebrate","Arthropoda","Reconstituted water",23,"Chronic","6.9-7.5",46,"Nautilus Environmental (2011b). Evaluation of the role of hardness in modifying the toxicity of nitrate to freshwater organisms. No. Final Report Submitted to Mining Association of BC, Vancouver, B.C. 4 April 2011. pp. 216.","N09",null,"N9-4b"]
["Freshwater/non-metal/non- plant","N09-4",83,0.94318181818181823,null,"Chironomus dilutus","Larvae","10 d","EC20","Biomass",9.5,"Invertebrate","Arthropoda","Reconstituted water",23,"Chronic","6.9-7.5",105,"Nautilus Environmental (2011b). Evaluation of the role of hardness in modifying the toxicity of nitrate to freshwater organisms. No. Final Report Submitted to Mining Association of BC, Vancouver, B.C. 4 April 2011. pp. 216.","N09",null,"N09-4"]
["Freshwater/non-metal/non- plant","N09-4",83,0.94318181818181823,"","Chironomus dilutus","Larvae","10 d","NOEC","Growth (weight)",40,"Invertebrate","Arthropoda","Reconstituted water",23,"Chronic","6.9-7.5",46,"Nautilus Environmental (2011b). Evaluation of the role of hardness in modifying the toxicity of nitrate to freshwater organisms. No. Final Report Submitted to Mining Association of BC, Vancouver, B.C. 4 April 2011. pp. 216.","N09",null,"N09-4"]
["Freshwater/non-metal/non- plant","N09-5",83,0.94318181818181823,"","Chironomus dilutus","Larvae","10 d","IC10","Growth (weight) ",80,"Invertebrate","Arthropoda","Reconstituted water",23,"Chronic","6.9-7.5",86,"Nautilus Environmental (2011b). Evaluation of the role of hardness in modifying the toxicity of nitrate to freshwater organisms. No. Final Report Submitted to Mining Association of BC, Vancouver, B.C. 4 April 2011. pp. 216.","N09",null,"N09-5"]
["Freshwater/non-metal/non- plant","N09-6",83,0.94318181818181823,"","Chironomus dilutus","Larvae","10 d","IC10","Growth ",120,"Invertebrate","Arthropoda","Freshwater",23,"Chronic","N.A.",172,"Nautilus Environmental (2011b). Evaluation of the role of hardness in modifying the toxicity of nitrate to freshwater organisms. No. Final Report Submitted to Mining Association of BC, Vancouver, B.C. 4 April 2011. pp. 216.","N09",null,"N09-6"]
["Freshwater/non-metal/non- plant","N21-2",82,0.93181818181818177,"Used Ca(NO3)2","Chironomus xanthus","Larvae","20 d","IC25","Hatching",56.7,"Invertebrate","Arthropoda","Freshwater",25,"Chronic",7.23,184,"Sueitt APE, Yamada-Ferraz TM, Oliveira AF, Botta CMR, Fadini PS, Nascimento MRL, Faria BM, Mozeto AA. 2015. Ecotoxicological risks of calcium nitrate exposure to freshwater tropical organisms: Laboratory and field experiments. Ecotox Environ Safety 117:155-163.","N21",null,"N21-2"]
["Freshwater/non-metal/plant","N27-4",84,0.95454545454545459,"","Chlorella sp.","Exponential growth phase","72 h","IC10","Growth inhibition: cell count",1600,"Microalga","Chlorophyta","Freshwater",25,"Chronic",8,376,"van Dam RA 2019. Analysis of nitrate toxicity data for algae and generation of species sensitivity distribution. Report prepared for Rio Tinto, Perth, WA, December 2019.","N28",null,"N27-4"]
["Freshwater/non-metal/non- plant","N01-2",83,0.94318181818181823,"","Coregonus clupeaformis","Embryo-Alevin-Fry","126 d","NOEC","Development",6.25,"Fish","Chlorophyta","Dechlorinated tapwater",7.5,"Chronic","6-7.4","10-16","McGurk, M.D.; Landry, F.; Tang, A.; Hanks, C.C. (2006). Acute and chronic toxicity of nitrate to early life stages of lake trout (Salvelinus namaycush) and lake whitefish (Coregonus clupeaformis). Environmental Toxicology and Chemistry 25:  2187-2196.","N01",null,"N01-2"]
["Freshwater/non-metal/non- plant","N23-1-1",82,0.93181818181818177,null,"Danio rerio","Juvenile","29 d","NOEC","Mortality",200,"Fish","Chordata","Dechlorinated tapwater",28,"Chronic","8.1-8.3","107-142","Learmonth C, Carvalho AP. 2015. Acute and Chronic Toxicity of Nitrate to Early Life Stages of Zebrafish-Setting Nitrate Safety Levels for Zebrafish Rearing. Zebrafish 12:305-311.","N23",null,"N23-1-1"]
["Freshwater/non-metal/non- plant","N23-1-2",82,0.93181818181818177,null,"Danio rerio","Juvenile","29 d","NOEC","Growth (weight)",200,"Fish","Chordata","Freshwater",28,"Chronic",null,"107-142","Learmonth C, Carvalho AP. 2015. Acute and Chronic Toxicity of Nitrate to Early Life Stages of Zebrafish-Setting Nitrate Safety Levels for Zebrafish Rearing. Zebrafish 12:305-311.","N23",null,"N23-1-2"]
["Freshwater/non-metal/non- plant","N07-8",74,0.84090909090909094,"","Daphnia magna","Neonates","7 d","NOEC","Reproduction",358,"Invertebrate","Arthropoda","Freshwater",25,"Chronic","7.52-8.60","156-172","Scott, G.; Crunkilton, R.L. (2000). Acute and chronic toxicity of nitrate to fathead minnows (Pimephales promelas), Ceriodaphnia dubia, and Daphnia magna. Environmental Toxicology and Chemistry 19:  2918-2922.","N07",null,"N07-8"]
["Freshwater/non-metal/non- plant","N10-1",88,1,"","Deleatidium sp.","Larvae","20 d","NOEC","Mortality",20.3,"Invertebrate","Arthropoda","Freshwater",15,"Chronic","7.51-7.79",44,"Martin, M.L.; Thompson, K.J. (2012). Chronic sensitivity of two native New Zealand species (freshwater fish – Inanga Galaxias maculatus and mayfly – Deleatidium sp.) to nitrate. No. HBR12230. NIWA report for Hawke's Bay Regional Council, Hamilton. pp. 26.","N10",null,"N10-1"]
["Freshwater/non-metal/non- plant","N04-1",84,0.95454545454545459,"","Galaxias maculatus","Juvenile","40 d","NOEC","Mortality",6,"Fish"," Chordata","Springfed river water",15,"Chronic","7.21-7.47",14,"Hickey, C.W.; Thompson, K.J.; Albert, A.; Martin, M.L. (2013). Chronic sensitivity of juvenile inanga (Galaxias maculatus) and early life-stage rainbow trout (Oncorhynchus mykiss) to nitrate. No. HBR13207; HAM2013-012. NIWA report for Hawke's Bay Regional Council","N04",null,"N04-1"]
["Freshwater/non-metal/non- plant","N4-1-2",84,0.95454545454545459,null,"Galaxias maculatus","Juvenile","40 d","NOEC","Growth (weight)",6,"Fish"," Chordata","Springfed river water",15,"Chronic","7.21-7.47",14,"Hickey, C.W.; Thompson, K.J.; Albert, A.; Martin, M.L. (2013). Chronic sensitivity of juvenile inanga (Galaxias maculatus) and early life-stage rainbow trout (Oncorhynchus mykiss) to nitrate. No. HBR13207; HAM2013-012. NIWA report for Hawke's Bay Regional Council","N04",null,"N4-1-2"]
["Freshwater/non-metal/non- plant","N-4-1-2",84,0.95454545454545459,null,"Galaxias maculatus","Juvenile","40 d","LC10","Mortality",6.1,"Fish"," Chordata","Springfed river water",15,"Chronic","7.21-7.47",14,"Hickey, C.W.; Thompson, K.J.; Albert, A.; Martin, M.L. (2013). Chronic sensitivity of juvenile inanga (Galaxias maculatus) and early life-stage rainbow trout (Oncorhynchus mykiss) to nitrate. No. HBR13207; HAM2013-012. NIWA report for Hawke's Bay Regional Council","N04",null,"N-4-1-2"]
["Freshwater/non-metal/non- plant","N-4-1-2",84,0.95454545454545459,null,"Galaxias maculatus","Juvenile","40 d","EC10","Growth (weight)",2,"Fish"," Chordata","Springfed river water",15,"Chronic","7.21-7.47",14,"Hickey, C.W.; Thompson, K.J.; Albert, A.; Martin, M.L. (2013). Chronic sensitivity of juvenile inanga (Galaxias maculatus) and early life-stage rainbow trout (Oncorhynchus mykiss) to nitrate. No. HBR13207; HAM2013-012. NIWA report for Hawke's Bay Regional Council","N04",null,"N-4-1-2"]
["Freshwater/non-metal/non- plant","N04-2",84,0.95454545454545459,"","Galaxias maculatus","Juvenile","40 d","NOEC","Mortality and growth ",20.3,"Fish"," Chordata","Springfed river water",15,"Chronic","7.50-7.59",39,"Hickey, C.W.; Thompson, K.J.; Albert, A.; Martin, M.L. (2013). Chronic sensitivity of juvenile inanga (Galaxias maculatus) and early life-stage rainbow trout (Oncorhynchus mykiss) to nitrate. No. HBR13207; HAM2013-012. NIWA report for Hawke's Bay Regional Council","N04",null,"N04-2"]
["Freshwater/non-metal/non- plant","N10-2",88,1,"","Galaxias maculatus","sub-adult","31 d","NOEC","Mortality",">103","Fish","Chordata","Freshwater",14,"Chronic","7.48-7.74",40,"Martin, M.L.; Thompson, K.J. (2012). Chronic sensitivity of two native New Zealand species (freshwater fish – Inanga Galaxias maculatus and mayfly – Deleatidium sp.) to nitrate. No. HBR12230. NIWA report for Hawke's Bay Regional Council, Hamilton. pp. 26.","N10",null,"N10-2"]
["Freshwater/non-metal/non- plant","N04-2-2",88,1,null,"Galaxias maculatus","Juvenile","40 d","EC10","Growth (weight)",32.6,"Fish","Chordata","Springfed river water",15,"Chronic","7.50-7.59",39,"Hickey, C.W.; Thompson, K.J.; Albert, A.; Martin, M.L. (2013). Chronic sensitivity of juvenile inanga (Galaxias maculatus) and early life-stage rainbow trout (Oncorhynchus mykiss) to nitrate. No. HBR13207; HAM2013-012. NIWA report for Hawke's Bay Regional Council","N04",null,"N04-2-2"]
["Freshwater/non-metal/non- plant","NO4-2-3",88,1,null,"Galaxias maculatus","Juvenile","40 d","EC10","Growth (length)",108,"Fish","Chordata","Springfed river water",15,"Chronic","7.50-7.59",39,"Hickey, C.W.; Thompson, K.J.; Albert, A.; Martin, M.L. (2013). Chronic sensitivity of juvenile inanga (Galaxias maculatus) and early life-stage rainbow trout (Oncorhynchus mykiss) to nitrate. No. HBR13207; HAM2013-012. NIWA report for Hawke's Bay Regional Council","N04"]
["Freshwater/non-metal/non- plant","NO4-2-4",88,1,null,"Galaxias maculatus","Juvenile","40 d","LC10","Mortality",26.6,"Fish","Chordata","Springfed river water",15,"Chronic","7.50-7.59",39,"Hickey, C.W.; Thompson, K.J.; Albert, A.; Martin, M.L. (2013). Chronic sensitivity of juvenile inanga (Galaxias maculatus) and early life-stage rainbow trout (Oncorhynchus mykiss) to nitrate. No. HBR13207; HAM2013-012. NIWA report for Hawke's Bay Regional Council","N04"]
["Freshwater/non-metal/non- plant","N19-1",82,0.93181818181818177,"Hardness reported as conductivity","Gammarus pseudolimnaeus","Juvenile","21 d","EC10","Mortality and growth",127,"Amphipod","Arthropoda","Freshwater",15,"Chronic",8.5500000000000007,"NR","Stelzer RS, Joachim BL. 2010. Effects of Elevated Nitrate Concentration on Mortality, Growth, and Egestion Rates of Gammarus pseudolimnaeus Amphipods. Arch Environ Contam Toxicol 58:694-699.","N19",null,"N19-1"]
["Freshwater/non-metal/non- plant","N19-2",82,0.93181818181818177,null,"Gammarus pseudolimnaeus","Juvenile","21 d","NOEC","Mortality and growth",126,"Amphipod","Arthropoda","Freshwater",21,"Chronic",8.5500000000000007,"NR","Stelzer RS, Joachim BL. 2010. Effects of Elevated Nitrate Concentration on Mortality, Growth, and Egestion Rates of Gammarus pseudolimnaeus Amphipods. Arch Environ Contam Toxicol 58:694-699.","N19",null,"N19-2"]
["Freshwater/non-metal/non- plant","N18-1-2",82,0.93181818181818177,null,"Gobiomorphus cotidianus","Juvenile","21 d","LC10","Mortality",27,"Fish"," Chordata","Freshwater",15,"Chronic",7.8,11,"Hickey CW, Thompson KJ, Martin ML, Albert A, Bell S, Raymond M. 2016. Data report for chronic nitrate toxicity to freshwater species: common bully, sphaeriid bivalve, freshwater crayfish and snail. FWWQ1703. NIWA data report.","N18",null,"N18-1-2"]
["Freshwater/non-metal/non- plant","N18-1",82,0.93181818181818177,"","Gobiomorphus cotidianus","Juvenile","21 d","EC10","Growth (weight)",22.5,"Fish"," Chordata","Freshwater",15,"Chronic",7.8,11,"Hickey CW, Thompson KJ, Martin ML, Albert A, Bell S, Raymond M. 2016. Data report for chronic nitrate toxicity to freshwater species: common bully, sphaeriid bivalve, freshwater crayfish and snail. FWWQ1703. NIWA data report.","N18",null,"N18-1"]
["Freshwater/non-metal/non- plant","N18-1-1",82,0.93181818181818177,"","Gobiomorphus cotidianus","Juvenile","21 d","LC10","Mortality",24.9,"Fish"," Chordata","Dechlorinated tapwater",15,"Chronic",7.8,39,"Hickey CW, Thompson KJ, Martin ML, Albert A, Bell S, Raymond M. 2016. Data report for chronic nitrate toxicity to freshwater species: common bully, sphaeriid bivalve, freshwater crayfish and snail. FWWQ1703. NIWA data report.","N18",null,"N18-1-1"]
["Freshwater/non-metal/non- plant","N09-7",83,0.94318181818181823,"","Hyalella azteca","Juvenile","14 d","NOEC","Growth ",10,"Invertebrate","Arthropoda","Freshwater",23,"Chronic","6.9-7.5",46,"Nautilus Environmental (2011b). Evaluation of the role of hardness in modifying the toxicity of nitrate to freshwater organisms. No. Final Report Submitted to Mining Association of BC, Vancouver, B.C. 4 April 2011. pp. 216.","N09",null,"N09-7"]
["Freshwater/non-metal/non- plant","N09-8",83,0.94318181818181823,"","Hyalella azteca","Juvenile","14 d","NOEC","Growth ",80,"Invertebrate","Arthropoda","Freshwater",23,"Chronic","6.9-7.5",86,"Nautilus Environmental (2011b). Evaluation of the role of hardness in modifying the toxicity of nitrate to freshwater organisms. No. Final Report Submitted to Mining Association of BC, Vancouver, B.C. 4 April 2011. pp. 216.","N09",null,"N09-8"]
["Freshwater/non-metal/non- plant","N24-2-4-1",82,0.93181818181818177,null,"Hyalella azteca","Juvenile","42 d","EC20","Biomass",11,"Invertebrate","Arthropoda","Freshwater",22.9,"Chronic",8,94,"Soucek DJ, Dickinson A. 2016. Influence of chloride on the chronic toxicity of sodium nitrate to Ceriodaphnia dubia and Hyalella azteca. Ecotoxicology 25:1406-1416.","N24",null,"N24-2-4-1"]
["Freshwater/non-metal/non- plant","N24-2-3-2",82,0.93181818181818177,null,"Hyalella azteca","Juvenile","42 d","EC20","Growth (weight)",19,"Invertebrate","Arthropoda","Freshwater",22.9,"Chronic",8,94,"Soucek DJ, Dickinson A. 2016. Influence of chloride on the chronic toxicity of sodium nitrate to Ceriodaphnia dubia and Hyalella azteca. Ecotoxicology 25:1406-1416.","N24",null,"N24-2-3-2"]
["Freshwater/non-metal/non- plant","N9-9b",83,0.94318181818181823,"","Hyalella azteca","Juvenile","14 d","IC10","Growth ",102,"Invertebrate","Arthropoda","Freshwater",23,"Chronic","6.9-7.5",172,"Nautilus Environmental (2011b). Evaluation of the role of hardness in modifying the toxicity of nitrate to freshwater organisms. No. Final Report Submitted to Mining Association of BC, Vancouver, B.C. 4 April 2011. pp. 216.","N09",null,"N9-9b"]
["Freshwater/non-metal/non- plant","N09-9",83,0.94318181818181823,"","Hyalella azteca","Juvenile","14 d","IC10","Growth ",120,"Invertebrate","Arthropoda","Freshwater",23,"Chronic","6.9-7.5",172,"Nautilus Environmental (2011b). Evaluation of the role of hardness in modifying the toxicity of nitrate to freshwater organisms. No. Final Report Submitted to Mining Association of BC, Vancouver, B.C. 4 April 2011. pp. 216.","N09",null,"N09-9"]
["Freshwater/non-metal/non- plant","N12-2",81,0.92045454545454541,"","Hyalella azteca","Juvenile","10d","NOEC","Growth ",470,"Invertebrate","Arthropoda","Freshwater",23,"Chronic","6.9-7.5",310,"Stantec Consulting Ltd. (2006). Report on the toxicity of nitrate to Canadian fish and aquatic invertebrate species. No. Stantec Project No. 162704276. Prepared for: Environment Canada, National Guidelines Standards Office, pp. 110.","N12",null,"N12-2"]
["Freshwater/non-metal/non- plant","N26-2",82,0.90109890109890112,"","Hydra viridissima","Adult","96 h","IC10","Growth",220,"Macroinvertebrate","Cnidaria","ATSM hardwater",27,"Chronic",8.1,376,"ESA [Ecotox Services Australia] 2019a. Toxicity Assessment of Nitrate using Cultured Local Species – Rio Tinto Iron Ore, Test Report, September 2019.","N28",null,"N26-2"]
["Freshwater/non-metal/non- plant","N23-4",80,0.87912087912087911,"","Hyla versicolor","embryo","52 d","EC20","Development (metamorphosis)",47,"Amphibian","Chordata","CERC undiluted well water",25,"Chronic",8.1999999999999993,300,"Wang N, Dorman RA, Ivey CD, Soucek DJ, Dickinson A, Kunz BK, Steevens JA, Hammer EJ & Bauer CR 2020. Acute and chronic toxicity of sodium nitrate and sodium sulfate to several freshwater organisms in water-only exposures. Environ Toxicol Chem 39:1071–1085.","N23",null,"N23-4"]
["Freshwater/non-metal/non- plant","N25-1",88,0.93200000000000005,null,"Lampsilis siliquoidea","Juvenile","42 d","EC20","Growth (weight)",17,"Bivalve","Mollusca","Diluted well water",23,"Chronic",8,105,"Wang N, Dorman RA, Ivey CD, Soucek DJ, Dickinson A, Kunz BK, Steevens JA, Hammer EJ and Bauer CR. (2020). Acute and chronic toxicity of sodium nitrate and sodium sulfate to several freshwater organisms in water-only exposures. Environmental Toxicology and Chemistry, 39, 1071-1085.","N25",null,"N25-1"]
["Freshwater/non-metal/non- plant","N13-2",76,0.86363636363636365,"No hardness data","Macrobrachium rosenbergii","Juvenile","21 d","LC50","Growth ",160,"Invertebrate","Arthropoda","Freshwater",28,"Chronic","7.0-7.4","NR","Wickins, J. (1976). The tolerance of warm-water prawns to recirculated water. Aquaculture 9:  19-37.","N13",null,"N13-2"]
["Freshwater/non-metal/non- plant","N15-2",81,0.92045454545454541,"","Notropis topeka","Juvenile","30 d","NOEC","Growth ",268,"Fish"," Chordata","Freshwater",23.4,"Chronic",8.25,"210-230","Adelman, I.R.; Kusilek, L.I.; Koehle, J.; Hess, J. (2009). Acute and chronic toxicity of ammonia, nitrite, and nitrate to the endangered Topeka shiner (Notropis topeka) and fathead minnows (Pimephales promelas). Environmental Toxicology and Chemistry 28:  2216-2223.","N15",null,"N15-2"]
["Freshwater/non-metal/non- plant","N08-1-1",80,0.90909090909090906,null,"Oncorhynchus mykiss","Embryo-Alevin-Fry","37-40 d","NOEC","Mortality",45,"Fish"," Chordata","Tap water",14,"Chronic","6.9-7.3",10,"Nautilus Environmental (2011a). Evaluation of the role of hardness in modifying the toxicity of nitrate to rainbow trout. No. Final Report Submitted to Mining Association of BC. , Vancouver, BC. 12 September 2011. pp. 252.","N08",null,"N08-1-1"]
["Freshwater/non-metal/non- plant","N08-1-2",80,0.90909090909090906,null,"Oncorhynchus mykiss","Embryo-Alevin-Fry","37-40 d","NOEC","Growth (weight)",45,"Fish"," Chordata","Tap water",14,"Chronic","6.9-7.3",10,"Nautilus Environmental (2011a). Evaluation of the role of hardness in modifying the toxicity of nitrate to rainbow trout. No. Final Report Submitted to Mining Association of BC. , Vancouver, BC. 12 September 2011. pp. 252.","N08",null,"N08-1-2"]
["Freshwater/non-metal/non- plant","N08-1-3",80,0.90909090909090906,null,"Oncorhynchus mykiss","Embryo-Alevin-Fry","37-40 d","NOEC","Growth (length)",15,"Fish"," Chordata","Tap water",14,"Chronic","6.9-7.3",10,"Nautilus Environmental (2011a). Evaluation of the role of hardness in modifying the toxicity of nitrate to rainbow trout. No. Final Report Submitted to Mining Association of BC. , Vancouver, BC. 12 September 2011. pp. 252.","N08",null,"N08-1-3"]
["Freshwater/non-metal/non- plant","N08-1-4",80,0.90909090909090906,null,"Oncorhynchus mykiss","Embryo-Alevin-Fry","37-40 d","LC10","Mortality",147,"Fish"," Chordata","Tap water",14,"Chronic","6.9-7.3",10,"Nautilus Environmental (2011a). Evaluation of the role of hardness in modifying the toxicity of nitrate to rainbow trout. No. Final Report Submitted to Mining Association of BC. , Vancouver, BC. 12 September 2011. pp. 252.","N08",null,"N08-1-4"]
["Freshwater/non-metal/non- plant","N08-1-5",80,0.90909090909090906,null,"Oncorhynchus mykiss","Embryo-Alevin-Fry","37-40 d","IC10","Growth (weight)",95,"Fish"," Chordata","Tap water",14,"Chronic","6.9-7.3",10,"Nautilus Environmental (2011a). Evaluation of the role of hardness in modifying the toxicity of nitrate to rainbow trout. No. Final Report Submitted to Mining Association of BC. , Vancouver, BC. 12 September 2011. pp. 252.","N08",null,"N08-1-5"]
["Freshwater/non-metal/non- plant","N02-4",83,0.94318181818181823,"","Oncorhynchus mykiss","Fry","30 d","NOEC","Mortality",1.1000000000000001,"Fish"," Chordata","Freshwater",10,"Chronic",6.2,10,"Kincheloe, J.W.; Wedemeyer, G.A.; Koch, D.L. (1979). Tolerance of developing salmonid eggs and fry to nitrate exposure. Bulletin of Environmental Contamination and Toxicology 23:  575-578.","N02",null,"N02-4"]
["Freshwater/non-metal/non- plant","N02-5",83,0.94318181818181823,"","Oncorhynchus mykiss","Fry","30 d","NOEC","Mortality",">4.5","Fish"," Chordata","Freshwater",10,"Chronic",6.2,"8-10","Kincheloe, J.W.; Wedemeyer, G.A.; Koch, D.L. (1979). Tolerance of developing salmonid eggs and fry to nitrate exposure. Bulletin of Environmental Contamination and Toxicology 23:  575-578.","N02",null,"N02-5"]
["Freshwater/non-metal/non- plant","N08-2",80,0.90909090909090906,"","Oncorhynchus mykiss","Embryo-Alevin-Fry","42 d","IC10","Yolk development",120,"Fish"," Chordata","Dechlorinated tapwater",14,"Chronic","6.9-7.3",39,"Nautilus Environmental (2011a). Evaluation of the role of hardness in modifying the toxicity of nitrate to rainbow trout. No. Final Report Submitted to Mining Association of BC. , Vancouver, BC. 12 September 2011. pp. 252.","N08",null,"N08-2"]
["Freshwater/non-metal/non- plant","N08-3",80,0.90909090909090906,null,"Oncorhynchus mykiss","Embryo-Alevin-Fry","37-40 d","NOEC","Growth weight (and length)",45,"Fish"," Chordata","Dechlorinated tapwater",14,"Chronic","6.9-7.3",92,"Nautilus Environmental (2011a). Evaluation of the role of hardness in modifying the toxicity of nitrate to rainbow trout. No. Final Report Submitted to Mining Association of BC. , Vancouver, BC. 12 September 2011. pp. 252.","N08",null,"N08-3"]
["Freshwater/non-metal/non- plant","N08-4",80,0.90909090909090906,null,"Oncorhynchus mykiss","Embryo-Alevin-Fry","37-40 d","NOEC","Mortality",405,"Fish"," Chordata","Dechlorinated tapwater",14,"Chronic","6.9-7.3","50 and 92","Nautilus Environmental (2011a). Evaluation of the role of hardness in modifying the toxicity of nitrate to rainbow trout. No. Final Report Submitted to Mining Association of BC. , Vancouver, BC. 12 September 2011. pp. 252.","N08",null,"N08-4"]
[null,"N08-4",80,0.90909090909090906,null,"Oncorhynchus mykiss","Embryo-Alevin-Fry","37-40 d","IC10","Growth ",335,"Fish"," Chordata","Dechlorinated tapwater",14,"Chronic","6.9-7.3",176,"Nautilus Environmental (2011a). Evaluation of the role of hardness in modifying the toxicity of nitrate to rainbow trout. No. Final Report Submitted to Mining Association of BC. , Vancouver, BC. 12 September 2011. pp. 252.","N08",null,"N08-3"]
["Freshwater/non-metal/non- plant","N08-3",80,0.90909090909090906,"","Oncorhynchus mykiss","Embryo-Alevin-Fry","37-40 d","NOEC","Growth ",45,"Fish"," Chordata","Dechlorinated tapwater",14,"Chronic","6.9-7.3",176,"Nautilus Environmental (2011a). Evaluation of the role of hardness in modifying the toxicity of nitrate to rainbow trout. No. Final Report Submitted to Mining Association of BC. , Vancouver, BC. 12 September 2011. pp. 252.","N08",null,"N08-3"]
["Freshwater/non-metal/non- plant","N08-4",80,0.90909090909090906,"","Oncorhynchus mykiss","Embryo-Alevin-Fry","37-40 d","NOEC","Growth ",405,"Fish"," Chordata","Dechlorinated tapwater",14,"Chronic","6.9-7.3",176,"Nautilus Environmental (2011a). Evaluation of the role of hardness in modifying the toxicity of nitrate to rainbow trout. No. Final Report Submitted to Mining Association of BC. , Vancouver, BC. 12 September 2011. pp. 252.","N08",null,"N08-4"]
["Freshwater/non-metal/non- plant","N12-1",86,0.97727272727272729,"","Oncorhynchus mykiss","Embryo-Alevin-Fry","64-68 d","NOEC","Growth ",115,"Fish"," Chordata","Dechlorinated tapwater",14,"Chronic","6.9-7.3",310,"Stantec Consulting Ltd. (2006). Report on the toxicity of nitrate to Canadian fish and aquatic invertebrate species. No. Stantec Project No. 162704276. Prepared for: Environment Canada, National Guidelines Standards Office, pp. 110.","N12",null,"N12-1"]
["Freshwater/non-metal/non- plant","N02-1",83,0.94318181818181823,"","Oncorhynchus tshawytscha","Fry","30 d","NOEC","Mortality",2.2999999999999998,"Fish"," Chordata","Freshwater",10,"Chronic",6.2,"8-10","Kincheloe, J.W.; Wedemeyer, G.A.; Koch, D.L. (1979). Tolerance of developing salmonid eggs and fry to nitrate exposure. Bulletin of Environmental Contamination and Toxicology 23:  575-578.","N02",null,"N02-1"]
["Freshwater/non-metal/plant","N27-3",84,0.95454545454545459,null,"Oocystis solitaria","Exponential growth phase","72 h ","IC10","Cell yield",1700,"Microalga","Chlorophyta","Freshwater",25,"Chronic",7.9,376,"van Dam RA 2019. Analysis of nitrate toxicity data for algae and generation of species sensitivity distribution. Report prepared for Rio Tinto, Perth, WA, December 2019.","N28",null,"N27-3"]
["Freshwater/non-metal/non- plant","N18-4-1",82,0.93181818181818177,null,"Paranephrops planifrons","Juvenile","60 d","LC10","Mortality",17.399999999999999,"Crayfish","Arthropoda","Spring water",20,"Chronic","7.8-8.2",14,"Hickey CW, Thompson KJ, Martin ML, Albert A, Bell S and Raymond M. (2016). Data report for chronic nitrate toxicity to freshwater species: common bully, sphaeriid bivalve, freshwater crayfish and snail. FWWQ1703. NIWA data report, ","N18",null,"N18-4-1"]
["Freshwater/non-metal/non- plant","N18-4-2",82,0.93181818181818177,null,"Paranephrops planifrons","Juvenile","60 d","LC10","Growth (weight)",2.2999999999999998,"Crayfish","Arthropoda","Spring water",20,"Chronic","7.8-8.2",14,"Hickey CW, Thompson KJ, Martin ML, Albert A, Bell S and Raymond M. (2016). Data report for chronic nitrate toxicity to freshwater species: common bully, sphaeriid bivalve, freshwater crayfish and snail. FWWQ1703. NIWA data report, ","N18",null,"N18-4-2"]
["Freshwater/non-metal/non- plant","N-18-4-3",82,0.93181818181818177,null,"Paranephrops planifrons","Juvenile","60 d","EC10","Growth (length)",2.2000000000000002,"Crayfish","Arthropoda","Spring water",20,"Chronic","7.8-8.2",14,"Hickey CW, Thompson KJ, Martin ML, Albert A, Bell S and Raymond M. (2016). Data report for chronic nitrate toxicity to freshwater species: common bully, sphaeriid bivalve, freshwater crayfish and snail. FWWQ1703. NIWA data report, ","N18",null,"N-18-4-3"]
["Freshwater/non-metal/non- plant","N07-6",79,0.89772727272727271,"","Pimephales promelas","Embryo-larvae","7 d","NOEC","Growth and mortality",358,"Fish"," Chordata","Freshwater",25,"N","7.34-8.27","140-170","Scott, G.; Crunkilton, R.L. (2000). Acute and chronic toxicity of nitrate to fathead minnows (Pimephales promelas), Ceriodaphnia dubia, and Daphnia magna. Environmental Toxicology and Chemistry 19:  2918-2922.","N07",null,"N07-6"]
["Freshwater/non-metal/non- plant","N9-10-1",83,0.94318181818181823,null,"Pimephales promelas","Larvae","7 d","NOEC","Mortality",50,"Fish"," Chordata","Freshwater",25,"Chronic","6.9-7.5",12,"Nautilus Environmental (2011b). Evaluation of the role of hardness in modifying the toxicity of nitrate to freshwater organisms. No. Final Report Submitted to Mining Association of BC, Vancouver, B.C. 4 April 2011. pp. 216.","N09",null,"N9-10-1"]
["Freshwater/non-metal/non- plant","N9-10-1b",83,0.94318181818181823,null,"Pimephales promelas","Larvae","7 d","EC10","Growth weight",52,"Fish"," Chordata","Freshwater",25,"Chronic","6.9-7.5",12,"Nautilus Environmental (2011b). Evaluation of the role of hardness in modifying the toxicity of nitrate to freshwater organisms. No. Final Report Submitted to Mining Association of BC, Vancouver, B.C. 4 April 2011. pp. 216.","N09",null,"N9-10-1b"]
["Freshwater/non-metal/non- plant","N09-10",83,0.94318181818181823,"","Pimephales promelas","Larvae","7 d","NOEC","Growth weight",50,"Fish","Chordata","Freshwater",25,"Chronic","6.9-7.5",12,"Nautilus Environmental (2011b). Evaluation of the role of hardness in modifying the toxicity of nitrate to freshwater organisms. No. Final Report Submitted to Mining Association of BC, Vancouver, B.C. 4 April 2011. pp. 216.","N09",null,"N09-10"]
["Freshwater/non-metal/non- plant","N9-14-1",83,0.94318181818181823,"","Pimephales promelas","Larvae","7 d","NOEC","Growth (weight)",100,"Fish","Chordata","Reconstituted water",25,"Chronic","6.9-7.5",50,"Nautilus Environmental (2011b). Evaluation of the role of hardness in modifying the toxicity of nitrate to freshwater organisms. No. Final Report Submitted to Mining Association of BC, Vancouver, B.C. 4 April 2011. pp. 216.","N09",null,"N9-14-1"]
["Freshwater/non-metal/non- plant","N9-14-1b",83,0.94318181818181823,"","Pimephales promelas","Larvae","7 d","IC10","Growth (weight)",6.6,"Fish","Chordata","Reconstituted water",25,"Chronic","6.9-7.5",50,"Nautilus Environmental (2011b). Evaluation of the role of hardness in modifying the toxicity of nitrate to freshwater organisms. No. Final Report Submitted to Mining Association of BC, Vancouver, B.C. 4 April 2011. pp. 216.","N09",null,"N9-14-1b"]
["Freshwater/non-metal/non- plant","N9-11-2b",83,0.94318181818181823,"","Pimephales promelas","Larvae","7 d","IC10","Growth (weight)",20.7,"Fish","Chordata","Reconstituted water",25,"Chronic","6.9-7.5",94,"Nautilus Environmental (2011b). Evaluation of the role of hardness in modifying the toxicity of nitrate to freshwater organisms. No. Final Report Submitted to Mining Association of BC, Vancouver, B.C. 4 April 2011. pp. 216.","N09",null,"N9-11-2b"]
["Freshwater/non-metal/non- plant","N09-12",83,0.94318181818181823,"","Pimephales promelas","Larvae","7 d","NOEC","Growth (weight)",200,"Fish","Chordata","Reconstituted water",25,"Chronic","N.A.",94,"Nautilus Environmental (2011b). Evaluation of the role of hardness in modifying the toxicity of nitrate to freshwater organisms. No. Final Report Submitted to Mining Association of BC, Vancouver, B.C. 4 April 2011. pp. 216.","N09",null,"N09-12"]
["Freshwater/non-metal/non- plant","N09-14",83,0.94318181818181823,"","Pimephales promelas","Larvae","7 d","NOEC","mortality growth",100,"Fish","Chordata","Freshwater",25,"Chronic","N.A.",null,"Nautilus Environmental (2011b). Evaluation of the role of hardness in modifying the toxicity of nitrate to freshwater organisms. No. Final Report Submitted to Mining Association of BC, Vancouver, B.C. 4 April 2011. pp. 216.","N09",null,"N09-14"]
["Freshwater/non-metal/non- plant","N15-1",81,0.92045454545454541,"","Pimephales promelas","Juvenile","32 d","NOEC","Mortality",58,"Fish"," Chordata","Freshwater",23.1,"Chronic",8.25,"210-230","Adelman, I.R.; Kusilek, L.I.; Koehle, J.; Hess, J. (2009). Acute and chronic toxicity of ammonia, nitrite, and nitrate to the endangered Topeka shiner (Notropis topeka) and fathead minnows (Pimephales promelas). Environmental Toxicology and Chemistry 28:  2216-2223.","N15",null,"N15-1"]
["Freshwater/non-metal/non- plant","N15-2",81,0.92045454545454497,null,"Pimephales promelas","Juvenile","32 d","NOEC","Growth",157,"Fish"," Chordata","Freshwater",23.1,"Chronic",8.25,"210-230","Adelman, I.R.; Kusilek, L.I.; Koehle, J.; Hess, J. (2009). Acute and chronic toxicity of ammonia, nitrite, and nitrate to the endangered Topeka shiner (Notropis topeka) and fathead minnows (Pimephales promelas). Environmental Toxicology and Chemistry 28:  2216-2223.","N15",null,"N15-2"]
["Freshwater/non-metal/non- plant","N16-2",81,0.92045454545454541,null,"Pimephales promelas","Juvenile","32 d","IC10","Growth (weight)",46.7,"Fish","Chordata","Freshwater",25,"Chronic","7.34-8.27","132-180"]
["Freshwater/non-metal/non- plant","N16-2",81,0.92045454545454541,null,"Pimephales promelas","Juvenile","32 d","EC20","Growth",59.8,"Fish","Chordata","Freshwater",25,"Chronic","7.34-8.27","132-180","U.S. EPA (2010). Final report on acute and chronic toxicity of nitrate, nitrite, boron, manganese, fluoride, chloride and sulphate to several aquatic animal species. No. EPA 905-R-10-002. United States Environmental Protection Agency, Chicago, IL. pp. 174.","N16",null,"N16-2"]
["Freshwater/non-metal/non- plant","N16-1",81,0.92045454545454541,"","Pimephales promelas","Embryo-larvae","32 d","NOEC","Growth and mortality",49,"Fish"," Chordata","Freshwater",25,"Chronic","7.97-8.32","132-180","U.S. EPA (2010). Final report on acute and chronic toxicity of nitrate, nitrite, boron, manganese, fluoride, chloride and sulphate to several aquatic animal species. No. EPA 905-R-10-002. United States Environmental Protection Agency, Chicago, IL. pp. 174.","N16",null,"N16-1"]
["Freshwater/non-metal/non- plant","N11-1",75,0.85227272727272729,"No hardness data","Pomacea paludosa","Juvenile","14 d","EC50","Mortality",831,"Invertebrate"," Mollusca","Freshwater","21-24","Chronic","7.5-8.5","NR","Corrao, N.; Darby, P.; Pomory, C. (2006). Nitrate impacts on the Florida apple snail, Pomacea paludosa. Hydrobiologia 568:  135-143.","N11",null,"N11-1"]
["Freshwater/non-metal/non- plant","N11-2",75,0.85227272727272729,"","Pomacea paludosa","Juvenile","14 d","EC50","Mortality",826,"Invertebrate"," Mollusca","Freshwater","21-24","Chronic","7.5-8.5","NR","----------------------------------------------------------------------------------------------------------------------------------------------------------------------------------------------------------------------------------------------------------------------------------------------------------------------------------------------------------------------------------------------------------------------------------------------------------------------------------------------------------------------------------------------------------------------------------------------------------------------------------------------------------------------------------------------------------------------------------------------------------------------------------------------------------------------------------------------------------------------------------------------------------------------------------------------------------------------------------------------------------------------------------------------------------------------------------------------------------------------------------------------------------------------------------------------------------------------------------------------------------------------------------------------------------------------------------------------------------------------------------------------------------------------------------------------------------------------------------------------------------------------------------------------------------------------------------------------------------------------------------------------------------------------------------------------------------------------------------------------------------------------------------------------------------------------------------------------------------------------------------------------------------------------------------------------------------------------------------------------------------------------------------------------------------------------------------------------------------------------------------------------------------------------------------------------------------------------------------------------------------------------------------------------------------------------------------------------------------------------------------------------------------------------------------------------------------------------------------------------------------------------------------------------------------------------------------------------------------------------------------------------------------------------------------------------------------------------------------------------------------------------------------------------------------------------------------------------------------------------------------------------------------------------------------------------------------------------------------------------------------------------------------------------------------------------------------------------------------------------------------------------------------------------------------------------------------------------------------------------------------------------------------------------------------------------------------------------------------------------------------------------------------------------------------------------------------------------------------------------------------------------------------------------------------------------------------------------------------------------------------------------------------------------------------------------------------------------------------------------------------------------------------------------------------------------------------------------------------------------------------------------------------------------------------------------------------------------------------------------------------------------------------------------------------------------------------------------------------------------------------------------------------------------------------------------------------------------------------------------------------------------------------------------------------------------------------------------------------------------------------------------------------------------------------------------------------------------------------------------------------------------------------------------------------------------------------------------------------------------------------------------------------------------------------------------------------------------------------------------------------------------------------------------------------------------------------------------------------------------------------------------------------------------------------------------------------------------------------------------------------------------------------------------------------------","N11",null,"N11-2"]
["Freshwater/non-metal/non- plant","N20-1",82,0.93181818181818177,"","Potamopyrgus antipodarum","Juvenile","35 d","LOEC","Reproduction",21.4,"Mollusc","Mollusca","Freshwater",18.5,"Chronic","7.8-8.2",92,"Alonso Á, Camargo J. 2013. Nitrate causes deleterious effects on the behaviour and reproduction of the aquatic snail Potamopyrgus antipodarum (Hydrobiidae, Mollusca). Environmental Science and Pollution Research 20:5388-5396.","N20",null,"N20-1"]
["Freshwater/non-metal/non- plant","N18-3-4",82,0.93181818181818177,null,"Potamopyrgus antipodarum","Juvenile","40 d","EC10","Morbidity",1.2,"Mollusc","Mollusca","Freshwater",20,"Chronic","7.8-8.2",6,"Hickey CW, Thompson KJ, Martin ML, Albert A, Bell S and Raymond M. (2016). Data report for chronic nitrate toxicity to freshwater species: common bully, sphaeriid bivalve, freshwater crayfish and snail. FWWQ1703. NIWA data report, ","N18",null,"N18-3-4"]
["Freshwater/non-metal/non- plant","N18-3-2",82,0.93181818181818177,null,"Potamopyrgus antipodarum","Juvenile","40 d","EC10","Growth (length)",0.88,"Mollusc","Mollusca","Freshwater",20,"Chronic","7.8-8.2",11,"Hickey CW, Thompson KJ, Martin ML, Albert A, Bell S and Raymond M. (2016). Data report for chronic nitrate toxicity to freshwater species: common bully, sphaeriid bivalve, freshwater crayfish and snail. FWWQ1703. NIWA data report, ","N18",null,"N18-3-2"]
["Freshwater/non-metal/non- plant","N18-3-6",82,0.93181818181818177,null,"Potamopyrgus antipodarum","Juvenile","40 d","LC10","Mortality",3,"Mollusc","Mollusca","Freshwater",20,"Chronic","7.8-8.2",11,"Hickey CW, Thompson KJ, Martin ML, Albert A, Bell S and Raymond M. (2016). Data report for chronic nitrate toxicity to freshwater species: common bully, sphaeriid bivalve, freshwater crayfish and snail. FWWQ1703. NIWA data report, ","N18",null,"N18-3-6"]
["Freshwater/non-metal/non- plant","N18-3-7",82,0.93181818181818177,null,"Potamopyrgus antipodarum","Juvenile","40 d","EC10","Morbidity",2.9,"Mollusc","Mollusca","Freshwater",20,"Chronic","7.8-8.2",11,"Hickey CW, Thompson KJ, Martin ML, Albert A, Bell S and Raymond M. (2016). Data report for chronic nitrate toxicity to freshwater species: common bully, sphaeriid bivalve, freshwater crayfish and snail. FWWQ1703. NIWA data report, ","N18",null,"N18-3-7"]
["Freshwater/non-metal/non- plant","N18-3-8",82,0.93181818181818177,null,"Potamopyrgus antipodarum","Juvenile","40 d","EC10","Growth (length)",2.2999999999999998,"Mollusc","Mollusca","Freshwater",20,"Chronic","7.8-8.2",11,"Hickey CW, Thompson KJ, Martin ML, Albert A, Bell S and Raymond M. (2016). Data report for chronic nitrate toxicity to freshwater species: common bully, sphaeriid bivalve, freshwater crayfish and snail. FWWQ1703. NIWA data report, ","N18",null,"N18-3-8"]
["Freshwater/non-metal/non- plant","N05-1 (2)",88,1,"","Pseudacris regilla ","Tadpole","10 d","LOEC","Growth (weight)","≤30.1","Amphibian"," Chordata","Freshwater",22,"Chronic","7.0-7.6",58.4,"Schuytema, G.S.; Nebeker, A.V. (1999c). Comparative toxicity of ammonium and nitrate compounds to Pacific tree frog and clawed frog tadpoles. Environmental Toxicology and Chemistry 18:  2251-2257","N05",null,"N05-1 (2)"]
["Freshwater/non-metal/non- plant","N05-1",76,0.86363636363636365,"","Pseudacris regilla ","Embryo","10 d","NOEC","Growth (length, weight)",56.7,"Amphibian"," Chordata","Freshwater",22,"Chronic","6.6-6.7",75,"Schuytema, G.S.; Nebeker, A.V. (1999a). Comparative effects of ammonium and nitrate compounds on Pacific treefrog and African clawed frog embryos. Archives of Environmental and Contamination Toxicology 36:  200-206.","N05",null,"N05-1"]
["Freshwater/non-metal/non- plant","N14-2",68,0.77272727272727271,"","Pseudacris regilla ","Tadpole","10 d","NOEC","Growth (length)",126.3,"Amphibian"," Chordata","Freshwater",22,"Chronic","7.0-7.6",58.4,"Schuytema, G.S.; Nebeker, A.V. (1999c). Comparative toxicity of ammonium and nitrate compounds to Pacific tree frog and clawed frog tadpoles. Environmental Toxicology and Chemistry 18:  2251-2257","N14",null,"N14-2"]
["Freshwater/non-metal/plant","N09-13",83,0.94318181818181823,"","Pseudokirchneriella subcapitata","exponential","3 d","IC10","Growth ",247,"Alga","Chlorophyta","Reconstituted water",24,"Chronic","6.9-7.5",10,"Nautilus Environmental (2011b). Evaluation of the role of hardness in modifying the toxicity of nitrate to freshwater organisms. No. Final Report Submitted to Mining Association of BC, Vancouver, B.C. 4 April 2011. pp. 216.","N09",null,"N09-13"]
["Freshwater/non-metal/non- plant","N17-1",72,0.81818181818181823,"","Rana aurora","Embryo-larvae","16 d","NOEC","Growth (weight)",116.8,"Amphibian"," Chordata","Deep well water",15,"Chronic",6.8,25.5,"Schuytema, G.S.; Nebeker, A.V. (1999b). Effects of ammonium nitrate, sodium nitrate amd urea on red-legged frogs, Pacific tree frog and African clawed frogs. Bulletin of Envrionmental and Contamination Toxicology 63:  357-364","N17",null,"N17-1"]
["Freshwater/non-metal/non- plant","N17-1-2",72,0.81818181818181823,null,"Rana aurora","Embryo-larvae","16 d","LOEC","Growth (length)","<29.1","Amphibian","Chordata","Deep well water",15,"Chronic",6.8,25.5,"Schuytema, G.S.; Nebeker, A.V. (1999b). Effects of ammonium nitrate, sodium nitrate amd urea on red-legged frogs, Pacific tree frog and African clawed frogs. Bulletin of Envrionmental and Contamination Toxicology 63:  357-364","N17",null,"N17-1-2"]
["Freshwater/non-metal/non- plant","N02-2",83,0.94318181818181823,"","Salmo clarki","Fry","30 d","NOEC","Mortality",4.5,"Fish"," Chordata","Well water",13,"Chronic",7.6,"6-9","Kincheloe, J.W.; Wedemeyer, G.A.; Koch, D.L. (1979). Tolerance of developing salmonid eggs and fry to nitrate exposure. Bulletin of Environmental Contamination and Toxicology 23:  575-578.","N02",null,"N02-2"]
["Freshwater/non-metal/non- plant","N01-1",85,0.96599999999999997,"","Salvelinus namaycush","Embryo-Alevin-Fry","146 d","NOEC","Growth (weight)",1.6,"Fish","Chordata","Dechlorinated water",7.5,"Chronic","6-7.4","10-16","McGurk, M.D.; Landry, F.; Tang, A.; Hanks, C.C. (2006). Acute and chronic toxicity of nitrate to early life stages of lake trout (Salvelinus namaycush) and lake whitefish (Coregonus clupeaformis). Environmental Toxicology and Chemistry 25:  2187-2196.","N01",null,"N01-1"]
["Freshwater/non-metal/non- plant","N-1-1-2",85,0.96599999999999997,null,"Salvelinus namaycush","Embryo-Alevin-Fry","146 d","NOEC","Growth (length)",25,"Fish"," Chordata","Dechlorinated water",7.5,"Chronic","6-7.4","10-16","McGurk, M.D.; Landry, F.; Tang, A.; Hanks, C.C. (2006). Acute and chronic toxicity of nitrate to early life stages of lake trout (Salvelinus namaycush) and lake whitefish (Coregonus clupeaformis). Environmental Toxicology and Chemistry 25:  2187-2196.","N01",null,"N-1-1-2"]
["Freshwater/non-metal/non- plant","N22-2",82,0.93181818181818177,"No hardness data","Sander lucioperca","Juvenile","42 d","NOEC","Growth (wt)",359,"Fish","Chordata","Freshwater",24,"Chronic","7.1-7.98","NR","Schram E, Roques JAC, van Kuijk T, Abbink W, van de Heul J, de Vries P, Bierman S, van de Vis H, Flik G. 2014. The impact of elevated water ammonia and nitrate concentrations on physiology, growth and feed intake of pikeperch (Sander lucioperca). Aquaculture 420–421:95-104.","N22",null,"N22-2"]
["Freshwater/non-metal/non- plant","N27-1",79,0.86813186813186816,"","Simocephalus heilongjiangensis","Neonate","13 d ","IC10","Reproduction",45,"Microinvertebrate","Arthropoda","ATSM hardwater",25,"Chronic",8.1,376,"ESA [Ecotox Services Australia] 2019a. Toxicity Assessment of Nitrate using Cultured Local Species – Rio Tinto Iron Ore, Test Report, September 2019.","N28",null,"N27-1"]
["Freshwater/non-metal/non- plant","N18-2",82,0.93181818181818177,"","Sphaerium novaezelandiae","Juvenile","60 d","LC10","Mortality",8.6,"Mollusc","Mollusca","Spring water",20,"Chronic","7.8-8.2",14,"Hickey CW, Thompson KJ, Martin ML, Albert A, Bell S, Raymond M. 2016. Data report for chronic nitrate toxicity to freshwater species: common bully, sphaeriid bivalve, freshwater crayfish and snail. FWWQ1703. NIWA data report.","N18",null,"N18-2"]
["Freshwater/non-metal/non- plant","N18-2-2",82,0.93181818181818177,null,"Sphaerium novaezelandiae","Juvenile","60 d","EC10","Growth (length)",46.6,"Mollusc","Mollusca","Spring water",20,"Chronic","7.8-8.2",14,"Hickey CW, Thompson KJ, Martin ML, Albert A, Bell S, Raymond M. 2016. Data report for chronic nitrate toxicity to freshwater species: common bully, sphaeriid bivalve, freshwater crayfish and snail. FWWQ1703. NIWA data report.","N18",null,"N18-2-2"]
["Freshwater/non-metal/non- plant","N14-1",68,0.77272727272727271,"","Xenopus laevis","Tadpole","10 d","NOEC","Growth (weight) ",24.8,"Amphibian"," Chordata","Freshwater",22,"Chronic","7.0-7.6","21-36","Schuytema, G.S.; Nebeker, A.V. (1999a). Comparative effects of ammonium and nitrate compounds on Pacific treefrog and African clawed frog embryos. Archives of Environmental and Contamination Toxicology 36:  200-206.","N14",null,"N14-1"]
["Freshwater/non-metal/non- plant","N14-1",68,0.77272727272727271,"","Xenopus laevis","Tadpole","10 d","NOEC","Growth (length)",56.7,"Amphibian"," Chordata","Freshwater",22,"Chronic","7.0-7.6","21-36","Schuytema, G.S.; Nebeker, A.V. (1999a). Comparative effects of ammonium and nitrate compounds on Pacific treefrog and African clawed frog embryos. Archives of Environmental and Contamination Toxicology 36:  200-206.","N14",null,"N14-1"]
[]
[]
[null,null,null,"Highlight legend:"]
[]
[null,null,null,null,"No hardness data"]
[null,null,null,null,"Low hardness"]
[null,null,null,null,"Moderate hardness"]
[null,null,null,null,"High hardness"]

{"sheet":"Instruction","index":3,"n_rows":21,"n_cols":10,"rows_kept":21,"cut":false,"hidden":false,"merged":[[27,6,27,16],[14,6,14,7],[5,4,5,7]]}
[]
[]
[null,"Click here to see \"All Result\" -->","All Result"]
[]
[]
[null,null,null,null,"Freshwater ",null,null,null,null,"Freshwater "]
[]
[null,"Tabs contain questionaries -->           ","Freshwater/metal/nonplant",null,"Freshwater/non-metal/non-plant ",null,null,"Freshwater/metal/plant",null,"Freshwater/non-metal/plant"]
[]
[]
[]
[null,"Tabs contain score of paper and short answers to questions -->","Freshwater/metal/nonplant Worksheet",null,"Freshwater/non-metal/non-plant Worksheet",null,null,"Freshwater/metal/plant Worksheet",null,"Freshwater/non-metal/plant/ Worksheet"]
[]
[]
[null,null,"Marine ",null,null,null,"Terrestrial",null,null,"Sediment "]
[]
[null,"Tab contain questionaries -->","Marine or estuarine/non-plant",null,"Marine or estuarine/Plant",null,null,"Terrestrial Data QA",null,"Sediment Data QA"]
[]
[]
[]
[null,"Tab Contains all scores of paper --> ","Marine or estuarine/non-Plant Worksheet",null,"Marine or estuarine/Plant_Worksheet",null,null,"Terrestrial Quality",null,"Sediment Quality"]

{"sheet":"Sheet1","index":4,"n_rows":70,"n_cols":29,"rows_kept":70,"cut":false,"hidden":true,"merged":[]}
[]
[{"$f":"#REF!","v":{"$error":"#REF!"}},{"$f":"#REF!","v":{"$error":"#REF!"}},{"$f":"#REF!","v":{"$error":"#REF!"}},{"$f":"#REF!","v":{"$error":"#REF!"}},{"$f":"#REF!","v":{"$error":"#REF!"}},{"$f":"#REF!","v":{"$error":"#REF!"}},{"$f":"#REF!","v":{"$error":"#REF!"}},{"$f":"#REF!","v":{"$error":"#REF!"}},{"$f":"#REF!","v":{"$error":"#REF!"}},{"$f":"#REF!","v":{"$error":"#REF!"}},{"$f":"#REF!","v":{"$error":"#REF!"}},{"$f":"#REF!","v":{"$error":"#REF!"}},{"$f":"#REF!","v":{"$error":"#REF!"}},{"$f":"#REF!","v":{"$error":"#REF!"}},{"$f":"#REF!","v":{"$error":"#REF!"}},{"$f":"#REF!","v":{"$error":"#REF!"}},{"$f":"#REF!","v":{"$error":"#REF!"}},{"$f":"#REF!","v":{"$error":"#REF!"}},{"$f":"#REF!","v":{"$error":"#REF!"}},{"$f":"#REF!","v":{"$error":"#REF!"}},{"$f":"#REF!","v":{"$error":"#REF!"}},{"$f":"#REF!","v":{"$error":"#REF!"}},{"$f":"#REF!","v":{"$error":"#REF!"}},{"$f":"#REF!","v":{"$error":"#REF!"}},{"$f":"#REF!","v":{"$error":"#REF!"}},{"$f":"#REF!","v":{"$error":"#REF!"}}]
[{"$f":"#REF!","v":{"$error":"#REF!"}},{"$f":"#REF!","v":{"$error":"#REF!"}},{"$f":"#REF!","v":{"$error":"#REF!"}},{"$f":"#REF!","v":{"$error":"#REF!"}}]
[{"$f":"#REF!","v":{"$error":"#REF!"}},{"$f":"#REF!","v":{"$error":"#REF!"}},{"$f":"#REF!","v":{"$error":"#REF!"}},{"$f":"#REF!","v":{"$error":"#REF!"}},{"$f":"#REF!","v":{"$error":"#REF!"}},{"$f":"#REF!","v":{"$error":"#REF!"}},{"$f":"#REF!","v":{"$error":"#REF!"}},{"$f":"#REF!","v":{"$error":"#REF!"}},{"$f":"#REF!","v":{"$error":"#REF!"}},{"$f":"#REF!","v":{"$error":"#REF!"}},{"$f":"#REF!","v":{"$error":"#REF!"}},{"$f":"#REF!","v":{"$error":"#REF!"}},{"$f":"#REF!","v":{"$error":"#REF!"}},{"$f":"#REF!","v":{"$error":"#REF!"}},{"$f":"#REF!","v":{"$error":"#REF!"}},{"$f":"#REF!","v":{"$error":"#REF!"}},{"$f":"#REF!","v":{"$error":"#REF!"}},{"$f":"#REF!","v":{"$error":"#REF!"}},{"$f":"#REF!","v":{"$error":"#REF!"}},{"$f":"#REF!","v":{"$error":"#REF!"}},{"$f":"#REF!","v":{"$error":"#REF!"}},{"$f":"#REF!","v":{"$error":"#REF!"}},{"$f":"#REF!","v":{"$error":"#REF!"}},{"$f":"#REF!","v":{"$error":"#REF!"}},{"$f":"#REF!","v":{"$error":"#REF!"}},{"$f":"#REF!","v":{"$error":"#REF!"}}]
["Answers",{"$f":"IF(#REF!=0,\"\",#REF!)","v":{"$error":"#REF!"}},{"$f":"IF(#REF!=0,\"\",#REF!)","v":{"$error":"#REF!"}},{"$f":"IF(#REF!=0,\"\",#REF!)","v":{"$error":"#REF!"}},{"$f":"IF(#REF!=0,\"\",#REF!)","v":{"$error":"#REF!"}},{"$f":"IF(#REF!=0,\"\",#REF!)","v":{"$error":"#REF!"}},{"$f":"IF(#REF!=0,\"\",#REF!)","v":{"$error":"#REF!"}},{"$f":"IF(#REF!=0,\"\",#REF!)","v":{"$error":"#REF!"}},{"$f":"IF(#REF!=0,\"\",#REF!)","v":{"$error":"#REF!"}},{"$f":"IF(#REF!=0,\"\",#REF!)","v":{"$error":"#REF!"}},{"$f":"IF(#REF!=0,\"\",#REF!)","v":{"$error":"#REF!"}},{"$f":"IF(#REF!=0,\"\",#REF!)","v":{"$error":"#REF!"}},{"$f":"IF(#REF!=0,\"\",#REF!)","v":{"$error":"#REF!"}},{"$f":"IF(#REF!=0,\"\",#REF!)","v":{"$error":"#REF!"}},{"$f":"IF(#REF!=0,\"\",#REF!)","v":{"$error":"#REF!"}},{"$f":"IF(#REF!=0,\"\",#REF!)","v":{"$error":"#REF!"}},{"$f":"IF(#REF!=0,\"\",#REF!)","v":{"$error":"#REF!"}},{"$f":"IF(#REF!=0,\"\",#REF!)","v":{"$error":"#REF!"}},{"$f":"IF(#REF!=0,\"\",#REF!)","v":{"$error":"#REF!"}},{"$f":"IF(#REF!=0,\"\",#REF!)","v":{"$error":"#REF!"}},{"$f":"IF(#REF!=0,\"\",#REF!)","v":{"$error":"#REF!"}},{"$f":"IF(#REF!=0,\"\",#REF!)","v":{"$error":"#REF!"}},{"$f":"IF(#REF!=0,\"\",#REF!)","v":{"$error":"#REF!"}},{"$f":"IF(#REF!=0,\"\",#REF!)","v":{"$error":"#REF!"}}]
[{"$f":"#REF!","v":{"$error":"#REF!"}},{"$f":"#REF!","v":{"$error":"#REF!"}},{"$f":"#REF!","v":{"$error":"#REF!"}},{"$f":"#REF!","v":{"$error":"#REF!"}},{"$f":"#REF!","v":{"$error":"#REF!"}},{"$f":"#REF!","v":{"$error":"#REF!"}},{"$f":"#REF!","v":{"$error":"#REF!"}},{"$f":"#REF!","v":{"$error":"#REF!"}}]
[{"$f":"#REF!","v":{"$error":"#REF!"}},{"$f":"#REF!","v":{"$error":"#REF!"}},{"$f":"#REF!","v":{"$error":"#REF!"}},{"$f":"#REF!","v":{"$error":"#REF!"}},{"$f":"#REF!","v":{"$error":"#REF!"}},{"$f":"IF(#REF!=0,\"\",#REF!)","v":{"$error":"#REF!"}},{"$f":"IF(#REF!=0,\"\",#REF!)","v":{"$error":"#REF!"}},{"$f":"IF(#REF!=0,\"\",#REF!)","v":{"$error":"#REF!"}}]
[]
[]
[]
[{"$f":"#REF!","v":{"$error":"#REF!"}},{"$f":"#REF!","v":{"$error":"#REF!"}},{"$f":"#REF!","v":{"$error":"#REF!"}},{"$f":"#REF!","v":{"$error":"#REF!"}},{"$f":"#REF!","v":{"$error":"#REF!"}},{"$f":"#REF!","v":{"$error":"#REF!"}},{"$f":"#REF!","v":{"$error":"#REF!"}},{"$f":"#REF!","v":{"$error":"#REF!"}},{"$f":"#REF!","v":{"$error":"#REF!"}},{"$f":"#REF!","v":{"$error":"#REF!"}},{"$f":"#REF!","v":{"$error":"#REF!"}},{"$f":"#REF!","v":{"$error":"#REF!"}},{"$f":"#REF!","v":{"$error":"#REF!"}},{"$f":"#REF!","v":{"$error":"#REF!"}},{"$f":"#REF!","v":{"$error":"#REF!"}},{"$f":"#REF!","v":{"$error":"#REF!"}},{"$f":"#REF!","v":{"$error":"#REF!"}},{"$f":"#REF!","v":{"$error":"#REF!"}},{"$f":"#REF!","v":{"$error":"#REF!"}},{"$f":"#REF!","v":{"$error":"#REF!"}},{"$f":"#REF!","v":{"$error":"#REF!"}},{"$f":"#REF!","v":{"$error":"#REF!"}},{"$f":"#REF!","v":{"$error":"#REF!"}},{"$f":"#REF!","v":{"$error":"#REF!"}},{"$f":"#REF!","v":{"$error":"#REF!"}},{"$f":"#REF!","v":{"$error":"#REF!"}},{"$f":"#REF!","v":{"$error":"#REF!"}}]
[{"$f":"#REF!","v":{"$error":"#REF!"}},{"$f":"#REF!","v":{"$error":"#REF!"}},{"$f":"#REF!","v":{"$error":"#REF!"}},{"$f":"#REF!","v":{"$error":"#REF!"}}]
[{"$f":"#REF!","v":{"$error":"#REF!"}},{"$f":"#REF!","v":{"$error":"#REF!"}},{"$f":"#REF!","v":{"$error":"#REF!"}},{"$f":"#REF!","v":{"$error":"#REF!"}},{"$f":"#REF!","v":{"$error":"#REF!"}},{"$f":"#REF!","v":{"$error":"#REF!"}},{"$f":"#REF!","v":{"$error":"#REF!"}},{"$f":"#REF!","v":{"$error":"#REF!"}},{"$f":"#REF!","v":{"$error":"#REF!"}},{"$f":"#REF!","v":{"$error":"#REF!"}},{"$f":"#REF!","v":{"$error":"#REF!"}},{"$f":"#REF!","v":{"$error":"#REF!"}},{"$f":"#REF!","v":{"$error":"#REF!"}},{"$f":"#REF!","v":{"$error":"#REF!"}},{"$f":"#REF!","v":{"$error":"#REF!"}},{"$f":"#REF!","v":{"$error":"#REF!"}},{"$f":"#REF!","v":{"$error":"#REF!"}},{"$f":"#REF!","v":{"$error":"#REF!"}},{"$f":"#REF!","v":{"$error":"#REF!"}},{"$f":"#REF!","v":{"$error":"#REF!"}},{"$f":"#REF!","v":{"$error":"#REF!"}},{"$f":"#REF!","v":{"$error":"#REF!"}},{"$f":"#REF!","v":{"$error":"#REF!"}},{"$f":"#REF!","v":{"$error":"#REF!"}},{"$f":"#REF!","v":{"$error":"#REF!"}},{"$f":"#REF!","v":{"$error":"#REF!"}},{"$f":"#REF!","v":{"$error":"#REF!"}}]
[{"$f":"#REF!","v":{"$error":"#REF!"}},{"$f":"IF(#REF!=0,\"\",#REF!)","v":{"$error":"#REF!"}},{"$f":"IF(#REF!=0,\"\",#REF!)","v":{"$error":"#REF!"}},{"$f":"IF(#REF!=0,\"\",#REF!)","v":{"$error":"#REF!"}},{"$f":"IF(#REF!=0,\"\",#REF!)","v":{"$error":"#REF!"}},null,{"$f":"IF(#REF!=0,\"\",#REF!)","v":{"$error":"#REF!"}},{"$f":"IF(#REF!=0,\"\",#REF!)","v":{"$error":"#REF!"}},{"$f":"IF(#REF!=0,\"\",#REF!)","v":{"$error":"#REF!"}},{"$f":"IF(#REF!=0,\"\",#REF!)","v":{"$error":"#REF!"}},{"$f":"IF(#REF!=0,\"\",#REF!)","v":{"$error":"#REF!"}},{"$f":"IF(#REF!=0,\"\",#REF!)","v":{"$error":"#REF!"}},{"$f":"IF(#REF!=0,\"\",#REF!)","v":{"$error":"#REF!"}},{"$f":"IF(#REF!=0,\"\",#REF!)","v":{"$error":"#REF!"}},{"$f":"IF(#REF!=0,\"\",#REF!)","v":{"$error":"#REF!"}},{"$f":"IF(#REF!=0,\"\",#REF!)","v":{"$error":"#REF!"}},{"$f":"IF(#REF!=0,\"\",#REF!)","v":{"$error":"#REF!"}},{"$f":"IF(#REF!=0,\"\",#REF!)","v":{"$error":"#REF!"}},{"$f":"IF(#REF!=0,\"\",#REF!)","v":{"$error":"#REF!"}},{"$f":"IF(#REF!=0,\"\",#REF!)","v":{"$error":"#REF!"}},{"$f":"IF(#REF!=0,\"\",#REF!)","v":{"$error":"#REF!"}},{"$f":"IF(#REF!=0,\"\",#REF!)","v":{"$error":"#REF!"}},{"$f":"IF(#REF!=0,\"\",#REF!)","v":{"$error":"#REF!"}},{"$f":"IF(#REF!=0,\"\",#REF!)","v":{"$error":"#REF!"}},{"$f":"IF(#REF!=0,\"\",#REF!)","v":{"$error":"#REF!"}}]
[{"$f":"#REF!","v":{"$error":"#REF!"}},{"$f":"#REF!","v":{"$error":"#REF!"}},{"$f":"#REF!","v":{"$error":"#REF!"}},{"$f":"#REF!","v":{"$error":"#REF!"}},{"$f":"#REF!","v":{"$error":"#REF!"}},{"$f":"#REF!","v":{"$error":"#REF!"}},{"$f":"#REF!","v":{"$error":"#REF!"}},{"$f":"#REF!","v":{"$error":"#REF!"}}]
[{"$f":"#REF!","v":{"$error":"#REF!"}},{"$f":"#REF!","v":{"$error":"#REF!"}},{"$f":"#REF!","v":{"$error":"#REF!"}},{"$f":"#REF!","v":{"$error":"#REF!"}},{"$f":"#REF!","v":{"$error":"#REF!"}},{"$f":"IF(#REF!=0,\"\",#REF!)","v":{"$error":"#REF!"}},{"$f":"IF(#REF!=0,\"\",#REF!)","v":{"$error":"#REF!"}},{"$f":"IF(#REF!=0,\"\",#REF!)","v":{"$error":"#REF!"}}]
[]
[]
[]
[{"$f":"#REF!","v":{"$error":"#REF!"}},{"$f":"#REF!","v":{"$error":"#REF!"}},{"$f":"#REF!","v":{"$error":"#REF!"}},{"$f":"#REF!","v":{"$error":"#REF!"}},{"$f":"#REF!","v":{"$error":"#REF!"}},{"$f":"#REF!","v":{"$error":"#REF!"}},{"$f":"#REF!","v":{"$error":"#REF!"}},{"$f":"#REF!","v":{"$error":"#REF!"}},{"$f":"#REF!","v":{"$error":"#REF!"}},{"$f":"#REF!","v":{"$error":"#REF!"}},{"$f":"#REF!","v":{"$error":"#REF!"}},{"$f":"#REF!","v":{"$error":"#REF!"}},{"$f":"#REF!","v":{"$error":"#REF!"}},{"$f":"#REF!","v":{"$error":"#REF!"}},{"$f":"#REF!","v":{"$error":"#REF!"}},{"$f":"#REF!","v":{"$error":"#REF!"}},{"$f":"#REF!","v":{"$error":"#REF!"}},{"$f":"#REF!","v":{"$error":"#REF!"}},{"$f":"#REF!","v":{"$error":"#REF!"}},{"$f":"#REF!","v":{"$error":"#REF!"}},{"$f":"#REF!","v":{"$error":"#REF!"}},{"$f":"#REF!","v":{"$error":"#REF!"}},{"$f":"#REF!","v":{"$error":"#REF!"}},{"$f":"#REF!","v":{"$error":"#REF!"}},{"$f":"#REF!","v":{"$error":"#REF!"}},{"$f":"#REF!","v":{"$error":"#REF!"}}]
[{"$f":"#REF!","v":{"$error":"#REF!"}},{"$f":"#REF!","v":{"$error":"#REF!"}},{"$f":"#REF!","v":{"$error":"#REF!"}},{"$f":"#REF!","v":{"$error":"#REF!"}}]
[{"$f":"#REF!","v":{"$error":"#REF!"}},{"$f":"#REF!","v":{"$error":"#REF!"}},{"$f":"#REF!","v":{"$error":"#REF!"}},{"$f":"#REF!","v":{"$error":"#REF!"}},{"$f":"#REF!","v":{"$error":"#REF!"}},{"$f":"#REF!","v":{"$error":"#REF!"}},{"$f":"#REF!","v":{"$error":"#REF!"}},{"$f":"#REF!","v":{"$error":"#REF!"}},{"$f":"#REF!","v":{"$error":"#REF!"}},{"$f":"#REF!","v":{"$error":"#REF!"}},{"$f":"#REF!","v":{"$error":"#REF!"}},{"$f":"#REF!","v":{"$error":"#REF!"}},{"$f":"#REF!","v":{"$error":"#REF!"}},{"$f":"#REF!","v":{"$error":"#REF!"}},{"$f":"#REF!","v":{"$error":"#REF!"}},{"$f":"#REF!","v":{"$error":"#REF!"}},{"$f":"#REF!","v":{"$error":"#REF!"}},{"$f":"#REF!","v":{"$error":"#REF!"}},{"$f":"#REF!","v":{"$error":"#REF!"}},{"$f":"#REF!","v":{"$error":"#REF!"}},{"$f":"#REF!","v":{"$error":"#REF!"}},{"$f":"#REF!","v":{"$error":"#REF!"}},{"$f":"#REF!","v":{"$error":"#REF!"}},{"$f":"#REF!","v":{"$error":"#REF!"}},{"$f":"#REF!","v":{"$error":"#REF!"}},{"$f":"#REF!","v":{"$error":"#REF!"}}]
[{"$f":"#REF!","v":{"$error":"#REF!"}},{"$f":"IF(#REF!=0,\"\",#REF!)","v":{"$error":"#REF!"}},{"$f":"IF(#REF!=0,\"\",#REF!)","v":{"$error":"#REF!"}},{"$f":"IF(#REF!=0,\"\",#REF!)","v":{"$error":"#REF!"}},{"$f":"IF(#REF!=0,\"\",#REF!)","v":{"$error":"#REF!"}},{"$f":"IF(#REF!=0,\"\",#REF!)","v":{"$error":"#REF!"}},{"$f":"IF(#REF!=0,\"\",#REF!)","v":{"$error":"#REF!"}},{"$f":"IF(#REF!=0,\"\",#REF!)","v":{"$error":"#REF!"}},{"$f":"IF(#REF!=0,\"\",#REF!)","v":{"$error":"#REF!"}},{"$f":"IF(#REF!=0,\"\",#REF!)","v":{"$error":"#REF!"}},{"$f":"IF(#REF!=0,\"\",#REF!)","v":{"$error":"#REF!"}},{"$f":"IF(#REF!=0,\"\",#REF!)","v":{"$error":"#REF!"}},{"$f":"IF(#REF!=0,\"\",#REF!)","v":{"$error":"#REF!"}},{"$f":"IF(#REF!=0,\"\",#REF!)","v":{"$error":"#REF!"}},{"$f":"IF(#REF!=0,\"\",#REF!)","v":{"$error":"#REF!"}},{"$f":"IF(#REF!=0,\"\",#REF!)","v":{"$error":"#REF!"}},{"$f":"IF(#REF!=0,\"\",#REF!)","v":{"$error":"#REF!"}},{"$f":"IF(#REF!=0,\"\",#REF!)","v":{"$error":"#REF!"}},{"$f":"IF(#REF!=0,\"\",#REF!)","v":{"$error":"#REF!"}},{"$f":"IF(#REF!=0,\"\",#REF!)","v":{"$error":"#REF!"}},{"$f":"IF(#REF!=0,\"\",#REF!)","v":{"$error":"#REF!"}},{"$f":"IF(#REF!=0,\"\",#REF!)","v":{"$error":"#REF!"}},{"$f":"IF(#REF!=0,\"\",#REF!)","v":{"$error":"#REF!"}},{"$f":"IF(#REF!=0,\"\",#REF!)","v":{"$error":"#REF!"}}]
[{"$f":"#REF!","v":{"$error":"#REF!"}},{"$f":"#REF!","v":{"$error":"#REF!"}},{"$f":"#REF!","v":{"$error":"#REF!"}},{"$f":"#REF!","v":{"$error":"#REF!"}},{"$f":"#REF!","v":{"$error":"#REF!"}},{"$f":"#REF!","v":{"$error":"#REF!"}},{"$f":"#REF!","v":{"$error":"#REF!"}},{"$f":"#REF!","v":{"$error":"#REF!"}}]
[{"$f":"#REF!","v":{"$error":"#REF!"}},{"$f":"#REF!","v":{"$error":"#REF!"}},{"$f":"#REF!","v":{"$error":"#REF!"}},{"$f":"#REF!","v":{"$error":"#REF!"}},{"$f":"#REF!","v":{"$error":"#REF!"}},{"$f":"IF(#REF!=0,\"\",#REF!)","v":{"$error":"#REF!"}},{"$f":"IF(#REF!=0,\"\",#REF!)","v":{"$error":"#REF!"}},{"$f":"IF(#REF!=0,\"\",#REF!)","v":{"$error":"#REF!"}}]
[]
[]
[]
[{"$f":"#REF!","v":{"$error":"#REF!"}},{"$f":"#REF!","v":{"$error":"#REF!"}},{"$f":"#REF!","v":{"$error":"#REF!"}},{"$f":"#REF!","v":{"$error":"#REF!"}},{"$f":"#REF!","v":{"$error":"#REF!"}},{"$f":"#REF!","v":{"$error":"#REF!"}},{"$f":"#REF!","v":{"$error":"#REF!"}},{"$f":"#REF!","v":{"$error":"#REF!"}},{"$f":"#REF!","v":{"$error":"#REF!"}},{"$f":"#REF!","v":{"$error":"#REF!"}},{"$f":"#REF!","v":{"$error":"#REF!"}},{"$f":"#REF!","v":{"$error":"#REF!"}},{"$f":"#REF!","v":{"$error":"#REF!"}},{"$f":"#REF!","v":{"$error":"#REF!"}},{"$f":"#REF!","v":{"$error":"#REF!"}},{"$f":"#REF!","v":{"$error":"#REF!"}},{"$f":"#REF!","v":{"$error":"#REF!"}},{"$f":"#REF!","v":{"$error":"#REF!"}},{"$f":"#REF!","v":{"$error":"#REF!"}},{"$f":"#REF!","v":{"$error":"#REF!"}},{"$f":"#REF!","v":{"$error":"#REF!"}},{"$f":"#REF!","v":{"$error":"#REF!"}},{"$f":"#REF!","v":{"$error":"#REF!"}},{"$f":"#REF!","v":{"$error":"#REF!"}},{"$f":"#REF!","v":{"$error":"#REF!"}},{"$f":"#REF!","v":{"$error":"#REF!"}},{"$f":"#REF!","v":{"$error":"#REF!"}},{"$f":"#REF!","v":{"$error":"#REF!"}},{"$f":"#REF!","v":{"$error":"#REF!"}}]
[{"$f":"#REF!","v":{"$error":"#REF!"}},{"$f":"#REF!","v":{"$error":"#REF!"}},{"$f":"#REF!","v":{"$error":"#REF!"}},{"$f":"#REF!","v":{"$error":"#REF!"}}]
[{"$f":"#REF!","v":{"$error":"#REF!"}},{"$f":"#REF!","v":{"$error":"#REF!"}},{"$f":"#REF!","v":{"$error":"#REF!"}},{"$f":"#REF!","v":{"$error":"#REF!"}},{"$f":"#REF!","v":{"$error":"#REF!"}},{"$f":"#REF!","v":{"$error":"#REF!"}},{"$f":"#REF!","v":{"$error":"#REF!"}},{"$f":"#REF!","v":{"$error":"#REF!"}},{"$f":"#REF!","v":{"$error":"#REF!"}},{"$f":"#REF!","v":{"$error":"#REF!"}},{"$f":"#REF!","v":{"$error":"#REF!"}},{"$f":"#REF!","v":{"$error":"#REF!"}},{"$f":"#REF!","v":{"$error":"#REF!"}},{"$f":"#REF!","v":{"$error":"#REF!"}},{"$f":"#REF!","v":{"$error":"#REF!"}},{"$f":"#REF!","v":{"$error":"#REF!"}},{"$f":"#REF!","v":{"$error":"#REF!"}},{"$f":"#REF!","v":{"$error":"#REF!"}},{"$f":"#REF!","v":{"$error":"#REF!"}},{"$f":"#REF!","v":{"$error":"#REF!"}},{"$f":"#REF!","v":{"$error":"#REF!"}},{"$f":"#REF!","v":{"$error":"#REF!"}},{"$f":"#REF!","v":{"$error":"#REF!"}},{"$f":"#REF!","v":{"$error":"#REF!"}},{"$f":"#REF!","v":{"$error":"#REF!"}},{"$f":"#REF!","v":{"$error":"#REF!"}},{"$f":"#REF!","v":{"$error":"#REF!"}},{"$f":"#REF!","v":{"$error":"#REF!"}},{"$f":"#REF!","v":{"$error":"#REF!"}}]
[{"$f":"#REF!","v":{"$error":"#REF!"}},{"$f":"IF(#REF!=\"\",\"\",#REF!)","v":{"$error":"#REF!"}},{"$f":"IF(#REF!=\"\",\"\",#REF!)","v":{"$error":"#REF!"}},{"$f":"IF(#REF!=\"\",\"\",#REF!)","v":{"$error":"#REF!"}},{"$f":"IF(#REF!=\"\",\"\",#REF!)","v":{"$error":"#REF!"}},{"$f":"IF(#REF!=\"\",\"\",#REF!)","v":{"$error":"#REF!"}},{"$f":"IF(#REF!=\"\",\"\",#REF!)","v":{"$error":"#REF!"}},{"$f":"IF(#REF!=\"\",\"\",#REF!)","v":{"$error":"#REF!"}},{"$f":"IF(#REF!=\"\",\"\",#REF!)","v":{"$error":"#REF!"}},{"$f":"IF(#REF!=\"\",\"\",#REF!)","v":{"$error":"#REF!"}},{"$f":"IF(#REF!=\"\",\"\",#REF!)","v":{"$error":"#REF!"}},{"$f":"IF(#REF!=\"\",\"\",#REF!)","v":{"$error":"#REF!"}},{"$f":"IF(#REF!=\"\",\"\",#REF!)","v":{"$error":"#REF!"}},{"$f":"IF(#REF!=\"\",\"\",#REF!)","v":{"$error":"#REF!"}},{"$f":"IF(#REF!=\"\",\"\",#REF!)","v":{"$error":"#REF!"}},{"$f":"IF(#REF!=\"\",\"\",#REF!)","v":{"$error":"#REF!"}},{"$f":"IF(#REF!=\"\",\"\",#REF!)","v":{"$error":"#REF!"}},{"$f":"IF(#REF!=\"\",\"\",#REF!)","v":{"$error":"#REF!"}},{"$f":"IF(#REF!=\"\",\"\",#REF!)","v":{"$error":"#REF!"}},{"$f":"IF(#REF!=\"\",\"\",#REF!)","v":{"$error":"#REF!"}},{"$f":"IF(#REF!=\"\",\"\",#REF!)","v":{"$error":"#REF!"}},{"$f":"IF(#REF!=\"\",\"\",#REF!)","v":{"$error":"#REF!"}},{"$f":"IF(#REF!=\"\",\"\",#REF!)","v":{"$error":"#REF!"}},{"$f":"IF(#REF!=\"\",\"\",#REF!)","v":{"$error":"#REF!"}},{"$f":"IF(#REF!=\"\",\"\",#REF!)","v":{"$error":"#REF!"}},{"$f":"IF(#REF!=\"\",\"\",#REF!)","v":{"$error":"#REF!"}},{"$f":"IF(#REF!=\"\",\"\",#REF!)","v":{"$error":"#REF!"}}]
[{"$f":"#REF!","v":{"$error":"#REF!"}},{"$f":"#REF!","v":{"$error":"#REF!"}},{"$f":"#REF!","v":{"$error":"#REF!"}},{"$f":"#REF!","v":{"$error":"#REF!"}},{"$f":"#REF!","v":{"$error":"#REF!"}},{"$f":"#REF!","v":{"$error":"#REF!"}},{"$f":"#REF!","v":{"$error":"#REF!"}},{"$f":"#REF!","v":{"$error":"#REF!"}}]
[{"$f":"#REF!","v":{"$error":"#REF!"}},{"$f":"#REF!","v":{"$error":"#REF!"}},{"$f":"#REF!","v":{"$error":"#REF!"}},{"$f":"#REF!","v":{"$error":"#REF!"}},{"$f":"#REF!","v":{"$error":"#REF!"}},{"$f":"IF(#REF!=\"\",\"\",#REF!)","v":{"$error":"#REF!"}},{"$f":"IF(#REF!=\"\",\"\",#REF!)","v":{"$error":"#REF!"}},{"$f":"IF(#REF!=\"\",\"\",#REF!)","v":{"$error":"#REF!"}}]
[{"$f":"'FW nonmetal plant'!B11","v":"No."},{"$f":"'FW nonmetal plant'!B13","v":1},{"$f":"'FW nonmetal plant'!B16","v":2},{"$f":"'FW nonmetal plant'!B19","v":3},{"$f":"'FW nonmetal plant'!B21","v":4},{"$f":"'FW nonmetal plant'!B23","v":5},{"$f":"'FW nonmetal plant'!B26","v":6},{"$f":"'FW nonmetal plant'!B29","v":7},{"$f":"'FW nonmetal plant'!B32","v":8},{"$f":"'FW nonmetal plant'!B35","v":9},{"$f":"'FW nonmetal plant'!B39","v":10},{"$f":"'FW nonmetal plant'!B42","v":11},{"$f":"'FW nonmetal plant'!B45","v":12},{"$f":"'FW nonmetal plant'!B48","v":13},{"$f":"'FW nonmetal plant'!B51","v":14},{"$f":"'FW nonmetal plant'!B53","v":15},{"$f":"'FW nonmetal plant'!B58","v":16.100000000000001},{"$f":"'FW nonmetal plant'!B62","v":17},{"$f":"'FW nonmetal plant'!B65","v":18},{"$f":"'FW nonmetal plant'!C70","v":"Total score"},{"$f":"'FW nonmetal plant'!C72","v":"Quality Score"}]
[{"$f":"'FW nonmetal plant'!C2","v":"Category"},{"$f":"'FW nonmetal plant'!E2","v":"Freshwater/non-metal/plant"},{"$f":"'FW nonmetal plant'!C3","v":"Paper and data unique identifier(eg. 1-1,10-150)"},{"$f":"'FW nonmetal plant'!E3","v":"N-25-1"}]
[{"$f":"'FW nonmetal plant'!G11","v":"Scores"},{"$f":"'FW nonmetal plant'!G12","v":10},{"$f":"'FW nonmetal plant'!G15","v":10},{"$f":"'FW nonmetal plant'!G18","v":5},{"$f":"'FW nonmetal plant'!G21","v":5},{"$f":"'FW nonmetal plant'!G23","v":5},{"$f":"'FW nonmetal plant'!G26","v":5},{"$f":"'FW nonmetal plant'!G29","v":5},{"$f":"'FW nonmetal plant'!G32","v":5},{"$f":"'FW nonmetal plant'!G35","v":5},{"$f":"'FW nonmetal plant'!G38","v":4},{"$f":"'FW nonmetal plant'!G41","v":2},{"$f":"'FW nonmetal plant'!G44","v":0},{"$f":"'FW nonmetal plant'!G47","v":4},{"$f":"'FW nonmetal plant'!G50","v":4},{"$f":"'FW nonmetal plant'!G53","v":4},{"$f":"'FW nonmetal plant'!G57","v":3},{"$f":"'FW nonmetal plant'!G61","v":3},{"$f":"'FW nonmetal plant'!G64","v":3},{"$f":"'FW nonmetal plant'!G70","v":82},{"$f":"'FW nonmetal plant'!G72","v":0.93181818181818177},{"$f":"'FW nonmetal plant'!H72","v":""}]
[{"$f":"'FW nonmetal plant'!H11","v":"Answers"},{"$f":"IF('FW nonmetal plant'!H12=\"\",\"\",'FW nonmetal plant'!H12)","v":""},{"$f":"IF('FW nonmetal plant'!H15=\"\",\"\",'FW nonmetal plant'!H15)","v":""},{"$f":"IF('FW nonmetal plant'!H18=\"\",\"\",'FW nonmetal plant'!H18)","v":""},{"$f":"IF('FW nonmetal plant'!H21=\"\",\"\",'FW nonmetal plant'!H21)","v":""},{"$f":"IF('FW nonmetal plant'!H23=\"\",\"\",'FW nonmetal plant'!H23)","v":""},{"$f":"IF('FW nonmetal plant'!H26=\"\",\"\",'FW nonmetal plant'!H26)","v":""},{"$f":"IF('FW nonmetal plant'!H29=\"\",\"\",'FW nonmetal plant'!H29)","v":""},{"$f":"IF('FW nonmetal plant'!H32=\"\",\"\",'FW nonmetal plant'!H32)","v":""},{"$f":"IF('FW nonmetal plant'!H35=\"\",\"\",'FW nonmetal plant'!H35)","v":""},{"$f":"IF('FW nonmetal plant'!H38=\"\",\"\",'FW nonmetal plant'!H38)","v":""},{"$f":"IF('FW nonmetal plant'!H41=\"\",\"\",'FW nonmetal plant'!H41)","v":""},{"$f":"IF('FW nonmetal plant'!H44=\"\",\"\",'FW nonmetal plant'!H44)","v":""},{"$f":"IF('FW nonmetal plant'!H47=\"\",\"\",'FW nonmetal plant'!H47)","v":""},{"$f":"IF('FW nonmetal plant'!H53=\"\",\"\",'FW nonmetal plant'!H53)","v":""},{"$f":"IF('FW nonmetal plant'!H53=\"\",\"\",'FW nonmetal plant'!H53)","v":""},{"$f":"IF('FW nonmetal plant'!H57=\"\",\"\",'FW nonmetal plant'!H57)","v":""},{"$f":"IF('FW nonmetal plant'!H61=\"\",\"\",'FW nonmetal plant'!H61)","v":""},{"$f":"IF('FW nonmetal plant'!H64=\"\",\"\",'FW nonmetal plant'!H64)","v":""}]
[{"$f":"'FW nonmetal plant'!G3","v":"Species (Scientific name)"},{"$f":"'FW nonmetal plant'!G4","v":"Lifestage"},{"$f":"'FW nonmetal plant'!G5","v":"Exposure duration"},{"$f":"'FW nonmetal plant'!G6","v":"Measure of toxicity"},{"$f":"'FW nonmetal plant'!G7","v":"Toxicity endpoint"},{"$f":"'FW nonmetal plant'!G8","v":"Toxicity value"},{"$f":"'FW nonmetal plant'!J2","v":"Taxonomic group"},{"$f":"'FW nonmetal plant'!J3","v":"Phylum"},{"$f":"'FW nonmetal plant'!J4","v":"Class"},{"$f":"'FW nonmetal plant'!J5","v":"Media"},{"$f":"'FW nonmetal plant'!J6","v":"Temperature "},{"$f":"'FW nonmetal plant'!J7","v":"Acute Or Chronic "},{"$f":"'FW nonmetal plant'!J8","v":"PH"},{"$f":"'FW nonmetal plant'!J9","v":"Salinity/Conductivity"},{"$f":"'FW nonmetal plant'!C4","v":"Citation"},{"$f":"'FW nonmetal plant'!G2","v":"Citation No."}]
[{"$f":"'FW nonmetal plant'!Q3","v":"Hyalella azteca"},{"$f":"'FW nonmetal plant'!T3","v":"Juveniles"},{"$f":"'FW nonmetal plant'!W3","v":"42 d"},{"$f":"'FW nonmetal plant'!Z3","v":"EC20"},{"$f":"'FW nonmetal plant'!AC3","v":"Mortality, growth, reproduction"},{"$f":"IF('FW nonmetal plant'!H8=\"\",\"\",'FW nonmetal plant'!H8)","v":56.7},{"$f":"'FW nonmetal plant'!AF3","v":"Invertebrate"},{"$f":"'FW nonmetal plant'!AI3","v":"Arthropoda"},{"$f":"'FW nonmetal plant'!AO3","v":"Freshwater"},{"$f":"'FW nonmetal plant'!AR3","v":"22.9 C"},{"$f":"'FW nonmetal plant'!AR3","v":"22.9 C"},{"$f":"'FW nonmetal plant'!AU3","v":"Chronic"},{"$f":"'FW nonmetal plant'!AX3","v":8},{"$f":"'FW nonmetal plant'!BA3","v":"N.A."},{"$f":"IF('FW nonmetal plant'!E4=\"\",\"\",'FW nonmetal plant'!E4)","v":"Wang N, Dorman RA, Ivey CD, Soucek DJ, Dickinson A, Kunz BK, Steevens JA, Hammer EJ and Bauer CR. (2020). Acute and chronic toxicity of sodium nitrate and sodium sulfate to several freshwater organisms in water-only exposures. Environmental Toxicology and Chemistry, 39, 1071-1085."},{"$f":"IF('FW nonmetal plant'!H2=\"\",\"\",'FW nonmetal plant'!H2)","v":"N"}]
[{"$f":"#REF!","v":{"$error":"#REF!"}},{"$f":"#REF!","v":{"$error":"#REF!"}},{"$f":"#REF!","v":{"$error":"#REF!"}},{"$f":"#REF!","v":{"$error":"#REF!"}},{"$f":"#REF!","v":{"$error":"#REF!"}},{"$f":"#REF!","v":{"$error":"#REF!"}},{"$f":"#REF!","v":{"$error":"#REF!"}},{"$f":"#REF!","v":{"$error":"#REF!"}},{"$f":"#REF!","v":{"$error":"#REF!"}},{"$f":"#REF!","v":{"$error":"#REF!"}},{"$f":"#REF!","v":{"$error":"#REF!"}},{"$f":"#REF!","v":{"$error":"#REF!"}},{"$f":"#REF!","v":{"$error":"#REF!"}},{"$f":"#REF!","v":{"$error":"#REF!"}},{"$f":"#REF!","v":{"$error":"#REF!"}},{"$f":"#REF!","v":{"$error":"#REF!"}},{"$f":"#REF!","v":{"$error":"#REF!"}},{"$f":"#REF!","v":{"$error":"#REF!"}},{"$f":"#REF!","v":{"$error":"#REF!"}},{"$f":"#REF!","v":{"$error":"#REF!"}},{"$f":"#REF!","v":{"$error":"#REF!"}},{"$f":"#REF!","v":{"$error":"#REF!"}},{"$f":"#REF!","v":{"$error":"#REF!"}},{"$f":"#REF!","v":{"$error":"#REF!"}}]
[{"$f":"#REF!","v":{"$error":"#REF!"}},{"$f":"#REF!","v":{"$error":"#REF!"}},{"$f":"#REF!","v":{"$error":"#REF!"}},{"$f":"#REF!","v":{"$error":"#REF!"}}]
[{"$f":"#REF!","v":{"$error":"#REF!"}},{"$f":"#REF!","v":{"$error":"#REF!"}},{"$f":"#REF!","v":{"$error":"#REF!"}},{"$f":"#REF!","v":{"$error":"#REF!"}},{"$f":"#REF!","v":{"$error":"#REF!"}},{"$f":"#REF!","v":{"$error":"#REF!"}},{"$f":"#REF!","v":{"$error":"#REF!"}},{"$f":"#REF!","v":{"$error":"#REF!"}},{"$f":"#REF!","v":{"$error":"#REF!"}},{"$f":"#REF!","v":{"$error":"#REF!"}},{"$f":"#REF!","v":{"$error":"#REF!"}},{"$f":"#REF!","v":{"$error":"#REF!"}},{"$f":"#REF!","v":{"$error":"#REF!"}},{"$f":"#REF!","v":{"$error":"#REF!"}},{"$f":"#REF!","v":{"$error":"#REF!"}},{"$f":"#REF!","v":{"$error":"#REF!"}},{"$f":"#REF!","v":{"$error":"#REF!"}},{"$f":"#REF!","v":{"$error":"#REF!"}},{"$f":"#REF!","v":{"$error":"#REF!"}},{"$f":"#REF!","v":{"$error":"#REF!"}},{"$f":"#REF!","v":{"$error":"#REF!"}},{"$f":"#REF!","v":{"$error":"#REF!"}},{"$f":"#REF!","v":{"$error":"#REF!"}},{"$f":"#REF!","v":{"$error":"#REF!"}},{"$f":"#REF!","v":{"$error":"#REF!"}}]
[{"$f":"#REF!","v":{"$error":"#REF!"}},{"$f":"IF(#REF!=\"\",\"\",#REF!)","v":{"$error":"#REF!"}},{"$f":"IF(#REF!=\"\",\"\",#REF!)","v":{"$error":"#REF!"}},{"$f":"IF(#REF!=\"\",\"\",#REF!)","v":{"$error":"#REF!"}},{"$f":"IF(#REF!=\"\",\"\",#REF!)","v":{"$error":"#REF!"}},{"$f":"IF(#REF!=\"\",\"\",#REF!)","v":{"$error":"#REF!"}},{"$f":"IF(#REF!=\"\",\"\",#REF!)","v":{"$error":"#REF!"}},{"$f":"IF(#REF!=\"\",\"\",#REF!)","v":{"$error":"#REF!"}},{"$f":"IF(#REF!=\"\",\"\",#REF!)","v":{"$error":"#REF!"}},{"$f":"IF(#REF!=\"\",\"\",#REF!)","v":{"$error":"#REF!"}},{"$f":"IF(#REF!=\"\",\"\",#REF!)","v":{"$error":"#REF!"}},{"$f":"IF(#REF!=\"\",\"\",#REF!)","v":{"$error":"#REF!"}},{"$f":"IF(#REF!=\"\",\"\",#REF!)","v":{"$error":"#REF!"}},{"$f":"IF(#REF!=\"\",\"\",#REF!)","v":{"$error":"#REF!"}},{"$f":"IF(#REF!=\"\",\"\",#REF!)","v":{"$error":"#REF!"}},{"$f":"IF(#REF!=\"\",\"\",#REF!)","v":{"$error":"#REF!"}},{"$f":"IF(#REF!=\"\",\"\",#REF!)","v":{"$error":"#REF!"}},{"$f":"IF(#REF!=\"\",\"\",#REF!)","v":{"$error":"#REF!"}},{"$f":"IF(#REF!=\"\",\"\",#REF!)","v":{"$error":"#REF!"}},{"$f":"IF(#REF!=\"\",\"\",#REF!)","v":{"$error":"#REF!"}},{"$f":"IF(#REF!=\"\",\"\",#REF!)","v":{"$error":"#REF!"}},{"$f":"IF(#REF!=\"\",\"\",#REF!)","v":{"$error":"#REF!"}}]
[{"$f":"#REF!","v":{"$error":"#REF!"}},{"$f":"#REF!","v":{"$error":"#REF!"}},{"$f":"#REF!","v":{"$error":"#REF!"}},{"$f":"#REF!","v":{"$error":"#REF!"}},{"$f":"#REF!","v":{"$error":"#REF!"}},{"$f":"#REF!","v":{"$error":"#REF!"}},{"$f":"#REF!","v":{"$error":"#REF!"}},{"$f":"#REF!","v":{"$error":"#REF!"}},{"$f":"#REF!","v":{"$error":"#REF!"}},{"$f":"#REF!","v":{"$error":"#REF!"}},{"$f":"#REF!","v":{"$error":"#REF!"}},{"$f":"#REF!","v":{"$error":"#REF!"}},{"$f":"#REF!","v":{"$error":"#REF!"}},{"$f":"#REF!","v":{"$error":"#REF!"}},{"$f":"#REF!","v":{"$error":"#REF!"}},{"$f":"#REF!","v":{"$error":"#REF!"}}]
[{"$f":"#REF!","v":{"$error":"#REF!"}},{"$f":"#REF!","v":{"$error":"#REF!"}},{"$f":"#REF!","v":{"$error":"#REF!"}},{"$f":"#REF!","v":{"$error":"#REF!"}},{"$f":"#REF!","v":{"$error":"#REF!"}},{"$f":"IF(#REF!=\"\",\"\",#REF!)","v":{"$error":"#REF!"}},{"$f":"#REF!","v":{"$error":"#REF!"}},{"$f":"#REF!","v":{"$error":"#REF!"}},{"$f":"#REF!","v":{"$error":"#REF!"}},{"$f":"#REF!","v":{"$error":"#REF!"}},{"$f":"#REF!","v":{"$error":"#REF!"}},{"$f":"#REF!","v":{"$error":"#REF!"}},{"$f":"#REF!","v":{"$error":"#REF!"}},{"$f":"#REF!","v":{"$error":"#REF!"}},{"$f":"IF(#REF!=\"\",\"\",#REF!)","v":{"$error":"#REF!"}},{"$f":"IF(#REF!=\"\",\"\",#REF!)","v":{"$error":"#REF!"}}]
[{"$f":"#REF!","v":{"$error":"#REF!"}},{"$f":"#REF!","v":{"$error":"#REF!"}},{"$f":"#REF!","v":{"$error":"#REF!"}},{"$f":"#REF!","v":{"$error":"#REF!"}},{"$f":"#REF!","v":{"$error":"#REF!"}},{"$f":"#REF!","v":{"$error":"#REF!"}},{"$f":"#REF!","v":{"$error":"#REF!"}},{"$f":"#REF!","v":{"$error":"#REF!"}},{"$f":"#REF!","v":{"$error":"#REF!"}},{"$f":"#REF!","v":{"$error":"#REF!"}},{"$f":"#REF!","v":{"$error":"#REF!"}},{"$f":"#REF!","v":{"$error":"#REF!"}},{"$f":"#REF!","v":{"$error":"#REF!"}},{"$f":"#REF!","v":{"$error":"#REF!"}},{"$f":"#REF!","v":{"$error":"#REF!"}},{"$f":"#REF!","v":{"$error":"#REF!"}},{"$f":"#REF!","v":{"$error":"#REF!"}},{"$f":"#REF!","v":{"$error":"#REF!"}},{"$f":"#REF!","v":{"$error":"#REF!"}},{"$f":"#REF!","v":{"$error":"#REF!"}},{"$f":"#REF!","v":{"$error":"#REF!"}},{"$f":"#REF!","v":{"$error":"#REF!"}}]
[{"$f":"#REF!","v":{"$error":"#REF!"}},{"$f":"#REF!","v":{"$error":"#REF!"}},{"$f":"#REF!","v":{"$error":"#REF!"}},{"$f":"#REF!","v":{"$error":"#REF!"}}]
[{"$f":"#REF!","v":{"$error":"#REF!"}},{"$f":"#REF!","v":{"$error":"#REF!"}},{"$f":"#REF!","v":{"$error":"#REF!"}},{"$f":"#REF!","v":{"$error":"#REF!"}},{"$f":"#REF!","v":{"$error":"#REF!"}},{"$f":"#REF!","v":{"$error":"#REF!"}},{"$f":"#REF!","v":{"$error":"#REF!"}},{"$f":"#REF!","v":{"$error":"#REF!"}},{"$f":"#REF!","v":{"$error":"#REF!"}},{"$f":"#REF!","v":{"$error":"#REF!"}},{"$f":"#REF!","v":{"$error":"#REF!"}},{"$f":"#REF!","v":{"$error":"#REF!"}},{"$f":"#REF!","v":{"$error":"#REF!"}},{"$f":"#REF!","v":{"$error":"#REF!"}},{"$f":"#REF!","v":{"$error":"#REF!"}},{"$f":"#REF!","v":{"$error":"#REF!"}},{"$f":"#REF!","v":{"$error":"#REF!"}},{"$f":"#REF!","v":{"$error":"#REF!"}},{"$f":"#REF!","v":{"$error":"#REF!"}},{"$f":"#REF!","v":{"$error":"#REF!"}},{"$f":"#REF!","v":{"$error":"#REF!"}},{"$f":"#REF!","v":{"$error":"#REF!"}},null,{"$f":"#REF!","v":{"$error":"#REF!"}}]
[{"$f":"#REF!","v":{"$error":"#REF!"}},{"$f":"IF(#REF!=\"\",\"\",#REF!)","v":{"$error":"#REF!"}},{"$f":"IF(#REF!=\"\",\"\",#REF!)","v":{"$error":"#REF!"}},{"$f":"IF(#REF!=\"\",\"\",#REF!)","v":{"$error":"#REF!"}},{"$f":"IF(#REF!=\"\",\"\",#REF!)","v":{"$error":"#REF!"}},{"$f":"IF(#REF!=\"\",\"\",#REF!)","v":{"$error":"#REF!"}},{"$f":"IF(#REF!=\"\",\"\",#REF!)","v":{"$error":"#REF!"}},{"$f":"IF(#REF!=\"\",\"\",#REF!)","v":{"$error":"#REF!"}},{"$f":"IF(#REF!=\"\",\"\",#REF!)","v":{"$error":"#REF!"}},{"$f":"IF(#REF!=\"\",\"\",#REF!)","v":{"$error":"#REF!"}},{"$f":"IF(#REF!=\"\",\"\",#REF!)","v":{"$error":"#REF!"}},{"$f":"IF(#REF!=\"\",\"\",#REF!)","v":{"$error":"#REF!"}},{"$f":"IF(#REF!=\"\",\"\",#REF!)","v":{"$error":"#REF!"}},{"$f":"IF(#REF!=\"\",\"\",#REF!)","v":{"$error":"#REF!"}},{"$f":"IF(#REF!=\"\",\"\",#REF!)","v":{"$error":"#REF!"}},{"$f":"IF(#REF!=\"\",\"\",#REF!)","v":{"$error":"#REF!"}},{"$f":"IF(#REF!=\"\",\"\",#REF!)","v":{"$error":"#REF!"}},{"$f":"IF(#REF!=\"\",\"\",#REF!)","v":{"$error":"#REF!"}},{"$f":"IF(#REF!=\"\",\"\",#REF!)","v":{"$error":"#REF!"}},{"$f":"IF(#REF!=\"\",\"\",#REF!)","v":{"$error":"#REF!"}}]
[{"$f":"#REF!","v":{"$error":"#REF!"}},{"$f":"#REF!","v":{"$error":"#REF!"}},{"$f":"#REF!","v":{"$error":"#REF!"}},{"$f":"#REF!","v":{"$error":"#REF!"}},{"$f":"#REF!","v":{"$error":"#REF!"}},{"$f":"#REF!","v":{"$error":"#REF!"}},{"$f":"#REF!","v":{"$error":"#REF!"}},{"$f":"#REF!","v":{"$error":"#REF!"}},{"$f":"#REF!","v":{"$error":"#REF!"}},{"$f":"#REF!","v":{"$error":"#REF!"}},{"$f":"#REF!","v":{"$error":"#REF!"}},{"$f":"#REF!","v":{"$error":"#REF!"}},{"$f":"#REF!","v":{"$error":"#REF!"}},{"$f":"#REF!","v":{"$error":"#REF!"}},{"$f":"#REF!","v":{"$error":"#REF!"}},{"$f":"#REF!","v":{"$error":"#REF!"}}]
[{"$f":"#REF!","v":{"$error":"#REF!"}},{"$f":"#REF!","v":{"$error":"#REF!"}},{"$f":"#REF!","v":{"$error":"#REF!"}},{"$f":"#REF!","v":{"$error":"#REF!"}},{"$f":"#REF!","v":{"$error":"#REF!"}},{"$f":"IF(#REF!=\"\",\"\",#REF!)","v":{"$error":"#REF!"}},{"$f":"#REF!","v":{"$error":"#REF!"}},{"$f":"#REF!","v":{"$error":"#REF!"}},{"$f":"#REF!","v":{"$error":"#REF!"}},{"$f":"#REF!","v":{"$error":"#REF!"}},{"$f":"#REF!","v":{"$error":"#REF!"}},{"$f":"#REF!","v":{"$error":"#REF!"}},{"$f":"#REF!","v":{"$error":"#REF!"}},{"$f":"#REF!","v":{"$error":"#REF!"}},{"$f":"IF(#REF!=\"\",\"\",#REF!)","v":{"$error":"#REF!"}},{"$f":"IF(#REF!=\"\",\"\",#REF!)","v":{"$error":"#REF!"}}]
[{"$f":"#REF!","v":{"$error":"#REF!"}},{"$f":"#REF!","v":{"$error":"#REF!"}},{"$f":"#REF!","v":{"$error":"#REF!"}},{"$f":"#REF!","v":{"$error":"#REF!"}},{"$f":"#REF!","v":{"$error":"#REF!"}},{"$f":"#REF!","v":{"$error":"#REF!"}},{"$f":"#REF!","v":{"$error":"#REF!"}},{"$f":"#REF!","v":{"$error":"#REF!"}},{"$f":"#REF!","v":{"$error":"#REF!"}},{"$f":"#REF!","v":{"$error":"#REF!"}},{"$f":"#REF!","v":{"$error":"#REF!"}},{"$f":"#REF!","v":{"$error":"#REF!"}},{"$f":"#REF!","v":{"$error":"#REF!"}},{"$f":"#REF!","v":{"$error":"#REF!"}},{"$f":"#REF!","v":{"$error":"#REF!"}},{"$f":"#REF!","v":{"$error":"#REF!"}},{"$f":"#REF!","v":{"$error":"#REF!"}},{"$f":"#REF!","v":{"$error":"#REF!"}},{"$f":"#REF!","v":{"$error":"#REF!"}},{"$f":"#REF!","v":{"$error":"#REF!"}},{"$f":"#REF!","v":{"$error":"#REF!"}},{"$f":"#REF!","v":{"$error":"#REF!"}},{"$f":"#REF!","v":{"$error":"#REF!"}},{"$f":"#REF!","v":{"$error":"#REF!"}},{"$f":"#REF!","v":{"$error":"#REF!"}}]
[{"$f":"#REF!","v":{"$error":"#REF!"}},{"$f":"#REF!","v":{"$error":"#REF!"}},{"$f":"#REF!","v":{"$error":"#REF!"}},{"$f":"#REF!","v":{"$error":"#REF!"}}]
[{"$f":"#REF!","v":{"$error":"#REF!"}},{"$f":"#REF!","v":{"$error":"#REF!"}},{"$f":"#REF!","v":{"$error":"#REF!"}},{"$f":"#REF!","v":{"$error":"#REF!"}},{"$f":"#REF!","v":{"$error":"#REF!"}},{"$f":"#REF!","v":{"$error":"#REF!"}},{"$f":"#REF!","v":{"$error":"#REF!"}},{"$f":"#REF!","v":{"$error":"#REF!"}},{"$f":"#REF!","v":{"$error":"#REF!"}},{"$f":"#REF!","v":{"$error":"#REF!"}},{"$f":"#REF!","v":{"$error":"#REF!"}},{"$f":"#REF!","v":{"$error":"#REF!"}},{"$f":"#REF!","v":{"$error":"#REF!"}},{"$f":"#REF!","v":{"$error":"#REF!"}},{"$f":"#REF!","v":{"$error":"#REF!"}},{"$f":"#REF!","v":{"$error":"#REF!"}},{"$f":"#REF!","v":{"$error":"#REF!"}},{"$f":"#REF!","v":{"$error":"#REF!"}},{"$f":"#REF!","v":{"$error":"#REF!"}},{"$f":"#REF!","v":{"$error":"#REF!"}},{"$f":"#REF!","v":{"$error":"#REF!"}},{"$f":"#REF!","v":{"$error":"#REF!"}},{"$f":"#REF!","v":{"$error":"#REF!"}},{"$f":"#REF!","v":{"$error":"#REF!"}},{"$f":"#REF!","v":{"$error":"#REF!"}},{"$f":"#REF!","v":{"$error":"#REF!"}}]
[{"$f":"#REF!","v":{"$error":"#REF!"}},{"$f":"IF(#REF!=\"\",\"\",#REF!)","v":{"$error":"#REF!"}},{"$f":"IF(#REF!=\"\",\"\",#REF!)","v":{"$error":"#REF!"}},{"$f":"IF(#REF!=\"\",\"\",#REF!)","v":{"$error":"#REF!"}},{"$f":"IF(#REF!=\"\",\"\",#REF!)","v":{"$error":"#REF!"}},{"$f":"IF(#REF!=\"\",\"\",#REF!)","v":{"$error":"#REF!"}},{"$f":"IF(#REF!=\"\",\"\",#REF!)","v":{"$error":"#REF!"}},{"$f":"IF(#REF!=\"\",\"\",#REF!)","v":{"$error":"#REF!"}},{"$f":"IF(#REF!=\"\",\"\",#REF!)","v":{"$error":"#REF!"}},{"$f":"IF(#REF!=\"\",\"\",#REF!)","v":{"$error":"#REF!"}},{"$f":"IF(#REF!=\"\",\"\",#REF!)","v":{"$error":"#REF!"}},{"$f":"IF(#REF!=\"\",\"\",#REF!)","v":{"$error":"#REF!"}},{"$f":"IF(#REF!=\"\",\"\",#REF!)","v":{"$error":"#REF!"}},{"$f":"IF(#REF!=\"\",\"\",#REF!)","v":{"$error":"#REF!"}},{"$f":"IF(#REF!=\"\",\"\",#REF!)","v":{"$error":"#REF!"}},{"$f":"IF(#REF!=\"\",\"\",#REF!)","v":{"$error":"#REF!"}},{"$f":"IF(#REF!=\"\",\"\",#REF!)","v":{"$error":"#REF!"}},{"$f":"IF(#REF!=\"\",\"\",#REF!)","v":{"$error":"#REF!"}},{"$f":"IF(#REF!=\"\",\"\",#REF!)","v":{"$error":"#REF!"}},{"$f":"IF(#REF!=\"\",\"\",#REF!)","v":{"$error":"#REF!"}},{"$f":"IF(#REF!=\"\",\"\",#REF!)","v":{"$error":"#REF!"}},{"$f":"IF(#REF!=\"\",\"\",#REF!)","v":{"$error":"#REF!"}},{"$f":"IF(#REF!=\"\",\"\",#REF!)","v":{"$error":"#REF!"}}]
[{"$f":"#REF!","v":{"$error":"#REF!"}},{"$f":"#REF!","v":{"$error":"#REF!"}},{"$f":"#REF!","v":{"$error":"#REF!"}},{"$f":"#REF!","v":{"$error":"#REF!"}},{"$f":"#REF!","v":{"$error":"#REF!"}},{"$f":"#REF!","v":{"$error":"#REF!"}},{"$f":"#REF!","v":{"$error":"#REF!"}},{"$f":"#REF!","v":{"$error":"#REF!"}},{"$f":"#REF!","v":{"$error":"#REF!"}},{"$f":"#REF!","v":{"$error":"#REF!"}},{"$f":"#REF!","v":{"$error":"#REF!"}},{"$f":"#REF!","v":{"$error":"#REF!"}},{"$f":"#REF!","v":{"$error":"#REF!"}},{"$f":"#REF!","v":{"$error":"#REF!"}},{"$f":"#REF!","v":{"$error":"#REF!"}},{"$f":"#REF!","v":{"$error":"#REF!"}}]
[{"$f":"#REF!","v":{"$error":"#REF!"}},{"$f":"#REF!","v":{"$error":"#REF!"}},{"$f":"#REF!","v":{"$error":"#REF!"}},{"$f":"#REF!","v":{"$error":"#REF!"}},{"$f":"#REF!","v":{"$error":"#REF!"}},{"$f":"IF(#REF!=\"\",\"\",#REF!)","v":{"$error":"#REF!"}},{"$f":"#REF!","v":{"$error":"#REF!"}},{"$f":"#REF!","v":{"$error":"#REF!"}},{"$f":"#REF!","v":{"$error":"#REF!"}},{"$f":"#REF!","v":{"$error":"#REF!"}},{"$f":"#REF!","v":{"$error":"#REF!"}},{"$f":"#REF!","v":{"$error":"#REF!"}},{"$f":"#REF!","v":{"$error":"#REF!"}},{"$f":"#REF!","v":{"$error":"#REF!"}},{"$f":"IF(#REF!=\"\",\"\",#REF!)","v":{"$error":"#REF!"}},{"$f":"IF(#REF!=\"\",\"\",#REF!)","v":{"$error":"#REF!"}}]
[{"$f":"#REF!","v":{"$error":"#REF!"}},{"$f":"#REF!","v":{"$error":"#REF!"}},{"$f":"#REF!","v":{"$error":"#REF!"}},{"$f":"#REF!","v":{"$error":"#REF!"}},{"$f":"#REF!","v":{"$error":"#REF!"}},{"$f":"#REF!","v":{"$error":"#REF!"}},{"$f":"#REF!","v":{"$error":"#REF!"}},{"$f":"#REF!","v":{"$error":"#REF!"}},{"$f":"#REF!","v":{"$error":"#REF!"}},{"$f":"#REF!","v":{"$error":"#REF!"}},{"$f":"#REF!","v":{"$error":"#REF!"}},{"$f":"#REF!","v":{"$error":"#REF!"}},{"$f":"#REF!","v":{"$error":"#REF!"}},{"$f":"#REF!","v":{"$error":"#REF!"}},{"$f":"#REF!","v":{"$error":"#REF!"}},{"$f":"#REF!","v":{"$error":"#REF!"}},{"$f":"#REF!","v":{"$error":"#REF!"}},{"$f":"#REF!","v":{"$error":"#REF!"}},{"$f":"#REF!","v":{"$error":"#REF!"}},{"$f":"#REF!","v":{"$error":"#REF!"}},{"$f":"#REF!","v":{"$error":"#REF!"}},{"$f":"#REF!","v":{"$error":"#REF!"}},{"$f":"#REF!","v":{"$error":"#REF!"}}]
[{"$f":"#REF!","v":{"$error":"#REF!"}},{"$f":"#REF!","v":{"$error":"#REF!"}},{"$f":"#REF!","v":{"$error":"#REF!"}},{"$f":"#REF!","v":{"$error":"#REF!"}}]
[{"$f":"#REF!","v":{"$error":"#REF!"}},{"$f":"#REF!","v":{"$error":"#REF!"}},{"$f":"#REF!","v":{"$error":"#REF!"}},{"$f":"#REF!","v":{"$error":"#REF!"}},{"$f":"#REF!","v":{"$error":"#REF!"}},{"$f":"#REF!","v":{"$error":"#REF!"}},{"$f":"#REF!","v":{"$error":"#REF!"}},{"$f":"#REF!","v":{"$error":"#REF!"}},{"$f":"#REF!","v":{"$error":"#REF!"}},{"$f":"#REF!","v":{"$error":"#REF!"}},{"$f":"#REF!","v":{"$error":"#REF!"}},{"$f":"#REF!","v":{"$error":"#REF!"}},{"$f":"#REF!","v":{"$error":"#REF!"}},{"$f":"#REF!","v":{"$error":"#REF!"}},{"$f":"#REF!","v":{"$error":"#REF!"}},{"$f":"#REF!","v":{"$error":"#REF!"}},{"$f":"#REF!","v":{"$error":"#REF!"}},{"$f":"#REF!","v":{"$error":"#REF!"}},{"$f":"#REF!","v":{"$error":"#REF!"}},{"$f":"#REF!","v":{"$error":"#REF!"}},{"$f":"#REF!","v":{"$error":"#REF!"}},{"$f":"#REF!","v":{"$error":"#REF!"}},{"$f":"#REF!","v":{"$error":"#REF!"}},{"$f":"#REF!","v":{"$error":"#REF!"}}]
[{"$f":"#REF!","v":{"$error":"#REF!"}},{"$f":"IF(#REF!=\"\",\"\",#REF!)","v":{"$error":"#REF!"}},{"$f":"IF(#REF!=\"\",\"\",#REF!)","v":{"$error":"#REF!"}},{"$f":"IF(#REF!=\"\",\"\",#REF!)","v":{"$error":"#REF!"}},{"$f":"IF(#REF!=\"\",\"\",#REF!)","v":{"$error":"#REF!"}},{"$f":"IF(#REF!=\"\",\"\",#REF!)","v":{"$error":"#REF!"}},{"$f":"IF(#REF!=\"\",\"\",#REF!)","v":{"$error":"#REF!"}},{"$f":"IF(#REF!=\"\",\"\",#REF!)","v":{"$error":"#REF!"}},{"$f":"IF(#REF!=\"\",\"\",#REF!)","v":{"$error":"#REF!"}},{"$f":"IF(#REF!=\"\",\"\",#REF!)","v":{"$error":"#REF!"}},{"$f":"IF(#REF!=\"\",\"\",#REF!)","v":{"$error":"#REF!"}},{"$f":"IF(#REF!=\"\",\"\",#REF!)","v":{"$error":"#REF!"}},{"$f":"IF(#REF!=\"\",\"\",#REF!)","v":{"$error":"#REF!"}},{"$f":"IF(#REF!=\"\",\"\",#REF!)","v":{"$error":"#REF!"}},{"$f":"IF(#REF!=\"\",\"\",#REF!)","v":{"$error":"#REF!"}},{"$f":"IF(#REF!=\"\",\"\",#REF!)","v":{"$error":"#REF!"}},{"$f":"IF(#REF!=\"\",\"\",#REF!)","v":{"$error":"#REF!"}},{"$f":"IF(#REF!=\"\",\"\",#REF!)","v":{"$error":"#REF!"}},{"$f":"IF(#REF!=\"\",\"\",#REF!)","v":{"$error":"#REF!"}},{"$f":"IF(#REF!=\"\",\"\",#REF!)","v":{"$error":"#REF!"}},{"$f":"IF(#REF!=\"\",\"\",#REF!)","v":{"$error":"#REF!"}}]
[{"$f":"#REF!","v":{"$error":"#REF!"}},{"$f":"#REF!","v":{"$error":"#REF!"}},{"$f":"#REF!","v":{"$error":"#REF!"}},{"$f":"#REF!","v":{"$error":"#REF!"}},{"$f":"#REF!","v":{"$error":"#REF!"}},{"$f":"#REF!","v":{"$error":"#REF!"}},{"$f":"#REF!","v":{"$error":"#REF!"}},{"$f":"#REF!","v":{"$error":"#REF!"}},{"$f":"#REF!","v":{"$error":"#REF!"}},{"$f":"#REF!","v":{"$error":"#REF!"}},{"$f":"#REF!","v":{"$error":"#REF!"}},{"$f":"#REF!","v":{"$error":"#REF!"}},{"$f":"#REF!","v":{"$error":"#REF!"}},{"$f":"#REF!","v":{"$error":"#REF!"}},{"$f":"#REF!","v":{"$error":"#REF!"}},{"$f":"#REF!","v":{"$error":"#REF!"}}]
[{"$f":"#REF!","v":{"$error":"#REF!"}},{"$f":"#REF!","v":{"$error":"#REF!"}},{"$f":"#REF!","v":{"$error":"#REF!"}},{"$f":"#REF!","v":{"$error":"#REF!"}},{"$f":"#REF!","v":{"$error":"#REF!"}},{"$f":"IF(#REF!=\"\",\"\",#REF!)","v":{"$error":"#REF!"}},{"$f":"#REF!","v":{"$error":"#REF!"}},{"$f":"#REF!","v":{"$error":"#REF!"}},{"$f":"#REF!","v":{"$error":"#REF!"}},{"$f":"#REF!","v":{"$error":"#REF!"}},{"$f":"#REF!","v":{"$error":"#REF!"}},{"$f":"#REF!","v":{"$error":"#REF!"}},{"$f":"#REF!","v":{"$error":"#REF!"}},{"$f":"#REF!","v":{"$error":"#REF!"}},{"$f":"IF(#REF!=\"\", \"\",#REF!)","v":{"$error":"#REF!"}},{"$f":"IF(#REF!=\"\", \"\",#REF!)","v":{"$error":"#REF!"}}]
[{"$f":"#REF!","v":{"$error":"#REF!"}},{"$f":"#REF!","v":{"$error":"#REF!"}},{"$f":"#REF!","v":{"$error":"#REF!"}},{"$f":"#REF!","v":{"$error":"#REF!"}},{"$f":"#REF!","v":{"$error":"#REF!"}},{"$f":"#REF!","v":{"$error":"#REF!"}},{"$f":"#REF!","v":{"$error":"#REF!"}},{"$f":"#REF!","v":{"$error":"#REF!"}},{"$f":"#REF!","v":{"$error":"#REF!"}},{"$f":"#REF!","v":{"$error":"#REF!"}},{"$f":"#REF!","v":{"$error":"#REF!"}},{"$f":"#REF!","v":{"$error":"#REF!"}},{"$f":"#REF!","v":{"$error":"#REF!"}},{"$f":"#REF!","v":{"$error":"#REF!"}},{"$f":"#REF!","v":{"$error":"#REF!"}},{"$f":"#REF!","v":{"$error":"#REF!"}},{"$f":"#REF!","v":{"$error":"#REF!"}},{"$f":"#REF!","v":{"$error":"#REF!"}},{"$f":"#REF!","v":{"$error":"#REF!"}},{"$f":"#REF!","v":{"$error":"#REF!"}},{"$f":"#REF!","v":{"$error":"#REF!"}},{"$f":"#REF!","v":{"$error":"#REF!"}}]
[{"$f":"#REF!","v":{"$error":"#REF!"}},{"$f":"#REF!","v":{"$error":"#REF!"}},{"$f":"#REF!","v":{"$error":"#REF!"}},{"$f":"#REF!","v":{"$error":"#REF!"}}]
[{"$f":"#REF!","v":{"$error":"#REF!"}},{"$f":"#REF!","v":{"$error":"#REF!"}},{"$f":"#REF!","v":{"$error":"#REF!"}},{"$f":"#REF!","v":{"$error":"#REF!"}},{"$f":"#REF!","v":{"$error":"#REF!"}},{"$f":"#REF!","v":{"$error":"#REF!"}},{"$f":"#REF!","v":{"$error":"#REF!"}},{"$f":"#REF!","v":{"$error":"#REF!"}},{"$f":"#REF!","v":{"$error":"#REF!"}},{"$f":"#REF!","v":{"$error":"#REF!"}},{"$f":"#REF!","v":{"$error":"#REF!"}},{"$f":"#REF!","v":{"$error":"#REF!"}},{"$f":"#REF!","v":{"$error":"#REF!"}},{"$f":"#REF!","v":{"$error":"#REF!"}},{"$f":"#REF!","v":{"$error":"#REF!"}},{"$f":"#REF!","v":{"$error":"#REF!"}},{"$f":"#REF!","v":{"$error":"#REF!"}},{"$f":"#REF!","v":{"$error":"#REF!"}},{"$f":"#REF!","v":{"$error":"#REF!"}},{"$f":"#REF!","v":{"$error":"#REF!"}},{"$f":"#REF!","v":{"$error":"#REF!"}},{"$f":"#REF!","v":{"$error":"#REF!"}},{"$f":"#REF!","v":{"$error":"#REF!"}}]
[{"$f":"#REF!","v":{"$error":"#REF!"}},{"$f":"IF(#REF!=\"\",\"\",#REF!)","v":{"$error":"#REF!"}},{"$f":"IF(#REF!=\"\",\"\",#REF!)","v":{"$error":"#REF!"}},{"$f":"IF(#REF!=\"\",\"\",#REF!)","v":{"$error":"#REF!"}},{"$f":"IF(#REF!=\"\",\"\",#REF!)","v":{"$error":"#REF!"}},{"$f":"IF(#REF!=\"\",\"\",#REF!)","v":{"$error":"#REF!"}},{"$f":"IF(#REF!=\"\",\"\",#REF!)","v":{"$error":"#REF!"}},{"$f":"IF(#REF!=\"\",\"\",#REF!)","v":{"$error":"#REF!"}},{"$f":"IF(#REF!=\"\",\"\",#REF!)","v":{"$error":"#REF!"}},{"$f":"IF(#REF!=\"\",\"\",#REF!)","v":{"$error":"#REF!"}},{"$f":"IF(#REF!=\"\",\"\",#REF!)","v":{"$error":"#REF!"}},{"$f":"IF(#REF!=\"\",\"\",#REF!)","v":{"$error":"#REF!"}},{"$f":"IF(#REF!=\"\",\"\",#REF!)","v":{"$error":"#REF!"}},{"$f":"IF(#REF!=\"\",\"\",#REF!)","v":{"$error":"#REF!"}},{"$f":"IF(#REF!=\"\",\"\",#REF!)","v":{"$error":"#REF!"}},{"$f":"IF(#REF!=\"\",\"\",#REF!)","v":{"$error":"#REF!"}},{"$f":"IF(#REF!=\"\",\"\",#REF!)","v":{"$error":"#REF!"}},{"$f":"IF(#REF!=\"\",\"\",#REF!)","v":{"$error":"#REF!"}},{"$f":"IF(#REF!=\"\",\"\",#REF!)","v":{"$error":"#REF!"}},{"$f":"IF(#REF!=\"\",\"\",#REF!)","v":{"$error":"#REF!"}}]
[{"$f":"#REF!","v":{"$error":"#REF!"}},{"$f":"#REF!","v":{"$error":"#REF!"}},{"$f":"#REF!","v":{"$error":"#REF!"}},{"$f":"#REF!","v":{"$error":"#REF!"}},{"$f":"#REF!","v":{"$error":"#REF!"}},{"$f":"#REF!","v":{"$error":"#REF!"}},{"$f":"#REF!","v":{"$error":"#REF!"}},{"$f":"#REF!","v":{"$error":"#REF!"}},{"$f":"#REF!","v":{"$error":"#REF!"}},{"$f":"#REF!","v":{"$error":"#REF!"}},{"$f":"#REF!","v":{"$error":"#REF!"}},{"$f":"#REF!","v":{"$error":"#REF!"}},{"$f":"#REF!","v":{"$error":"#REF!"}},{"$f":"#REF!","v":{"$error":"#REF!"}},{"$f":"#REF!","v":{"$error":"#REF!"}},{"$f":"#REF!","v":{"$error":"#REF!"}}]
[{"$f":"#REF!","v":{"$error":"#REF!"}},{"$f":"#REF!","v":{"$error":"#REF!"}},{"$f":"#REF!","v":{"$error":"#REF!"}},{"$f":"#REF!","v":{"$error":"#REF!"}},{"$f":"#REF!","v":{"$error":"#REF!"}},{"$f":"IF(#REF!=\"\",\"\",#REF!)","v":{"$error":"#REF!"}},{"$f":"#REF!","v":{"$error":"#REF!"}},{"$f":"#REF!","v":{"$error":"#REF!"}},{"$f":"#REF!","v":{"$error":"#REF!"}},{"$f":"#REF!","v":{"$error":"#REF!"}},{"$f":"#REF!","v":{"$error":"#REF!"}},{"$f":"#REF!","v":{"$error":"#REF!"}},{"$f":"#REF!","v":{"$error":"#REF!"}},{"$f":"#REF!","v":{"$error":"#REF!"}},{"$f":"IF(#REF!=\"\",\"\",#REF!)","v":{"$error":"#REF!"}},{"$f":"IF(#REF!=\"\",\"\",#REF!)","v":{"$error":"#REF!"}}]

{"sheet":"FW nonmetal plant","index":5,"n_rows":79,"n_cols":53,"rows_kept":79,"cut":false,"hidden":false,"merged":[[60,2,62,2],[60,7,62,7],[63,2,66,2],[63,7,66,7],[52,2,54,2],[52,7,54,7],[56,2,59,2],[56,7,59,7],[43,2,45,2],[43,7,45,7],[46,2,48,2],[46,7,48,7],[49,2,51,2],[49,7,51,7],[37,2,39,2],[37,7,39,7],[40,2,42,2],[25,2,27,2],[25,7,27,7],[28,2,30,2],[28,7,30,7],[31,2,33,2],[31,7,33,7],[20,2,21,2],[20,7,21,7],[22,2,24,2],[22,7,24,7],[34,2,36,2],[9,2,9,4],[11,2,13,2],[11,7,13,7],[14,2,16,2],[17,2,19,2],[17,7,19,7]]}
[null,1,"Fill in the blank cells below, based on information provided in the paper being assessed. You can either pick an option from the dropdown list or add the appropriate detail using the 'Add to list' button. ",null,null,null,null,null,null,null,null,null,null,null,"* All the text in RED are used for drop down list ,make changes with caution."]
[null,null,"Category",{"$f":"IF(AF3=\"\",0,1)","v":1},"Freshwater/non-metal/plant",{"$f":"IF(E3=\"\",0,1)","v":1},"Citation No.",{"$f":"IF(ISERROR(FIND(\"-\",E3)),E3,LEFT(E3,FIND(\"-\",E3)-1))","v":"N"},null,"Taxonomic group",null,null,null,null,"Species",null,null,"Lifestage",null,null,"Exposure duration",null,null,"Measure of toxicity",null,null,"Toxicity endpoint",null,null,"Taxonomic group",null,null,"Phylum",null,null,"Class",null,null,"Media",null,null,"Temperature ",null,null,"Acute Or Chronic",null,null,"PH",null,null,"Salinity/Conductivity"]
[null,null,"Paper and data unique identifier(eg. 1-1,10-150)",{"$f":"IF(AI3=\"\",0,1)","v":1},"N-25-1",{"$f":"IF(E4=\"\",0,1)","v":1},"Species (Scientific name)",null,null,"Phylum",null,null,null,null,"Aedes albopictus",42,{"$f":"IF(P3=0,\"\",INDEX(O3:O100,P3))","v":"Hyalella azteca"},"1 month",19,{"$f":"IF(S3=0,\"\",INDEX(R3:R100,S3))","v":"Juveniles"},"10d",35,{"$f":"IF(V3=0,\"\",INDEX(U3:U100,V3))","v":"42 d"},"EC50",12,{"$f":"IF(Y3=0,\"\",INDEX(X3:X100,Y3))","v":"EC20"},"Development",16,{"$f":"IF(AB3=0,\"\",INDEX(AA3:AA100,AB3))","v":"Mortality, growth, reproduction"},"Alga",15,{"$f":"IF(AE3=0,\"\",INDEX(AD3:AD100,AE3))","v":"Invertebrate"}," Chordata",15,{"$f":"IF(AH3=0,\"\",INDEX(AG3:AG100,AH3))","v":"Arthropoda"}," Branchiopoda",22,{"$f":"IF(AK3=0,\"\",INDEX(AJ3:AJ102,AK3))","v":"Malacostraca"},"Freshwater",1,{"$f":"IF(AN3=0,\"\",INDEX(AM3:AM100,AN3))","v":"Freshwater"},7.5,24,{"$f":"IF(AQ3=0,\"\",INDEX(AP3:AP100,AQ3))","v":"22.9 C"},10,3,{"$f":"IF(AT3=0,\"\",INDEX(AS3:AS100,AT3))","v":"Chronic"},6.2,33,{"$f":"IF(AW3=0,\"\",INDEX(AV3:AV100,AW3))","v":8},"30 ppt",null,"N.A."]
[null,null,"Citation",{"$f":"IF(AL3=\"\",0,1)","v":1},"Wang N, Dorman RA, Ivey CD, Soucek DJ, Dickinson A, Kunz BK, Steevens JA, Hammer EJ and Bauer CR. (2020). Acute and chronic toxicity of sodium nitrate and sodium sulfate to several freshwater organisms in water-only exposures. Environmental Toxicology and Chemistry, 39, 1071-1085.",{"$f":"IF(AX3=\"\",0,1)","v":1},"Lifestage",null,null,"Class",null,null,null,null,"Astacus astacus",null,null,"1 year old",null,null,"11 hours",null,null,"LC50",null,null,"Growth ",null,null,"Amphibian",null,null," Mollusca",null,null," Gastropoda",null,null,"Marinewater",null,null,10,null,null,"Acute ",null,null,6.5,null,null,"150 uS/cm"]
[null,null,null,{"$f":"IF(AO3=\"\",0,1)","v":1},null,{"$f":"IF(H8=\"\",0,1)","v":1},"Exposure duration",null,null,"Media",null,null,null,null,"Australian Bass",null,null,"Egg",null,null,"11d ",null,null,"LC50 and EC50",null,null,"Growth and mortality",null,null,"Fish",null,null,"Arthropoda",null,null," Insecta",null,null,"N.A.",null,null,13,null,null,"Chronic",null,null,6.8,null,null,"N.A."]
[null,null,null,{"$f":"IF(AR3=\"\",0,1)","v":1},null,{"$f":"IF(Q3=\"\",0,1)","v":1},"Measure of toxicity",null,null,"Temperature ",null,null,null,null,"Bufo americanus",null,null,"Embryo",null,null,"126 d",null,null,"N.A.",null,null,"hatched",null,null,"Invertebrate",null,null,"Arthropoda",null,null," Malacostraca",null,null,null,null,null,14,null,null,"Chronic",null,null,7.6]
[null,null,null,{"$f":"IF(AU3=\"\",0,1)","v":1},null,{"$f":"IF(T3=\"\",0,1)","v":1},"Toxicity endpoint",null,null,"Acute Or Chronic ",null,null,null,null,"Ceriodaphnia dubia",null,null,"Embryo-Alevin-Fry",null,null,"13 days ",null,null,"NOAEL",null,null,"Mortality",null,null,"Microalga",null,null,"Chlorophyta",null,null," Malacostraca",null,null,null,null,null,22,null,null,"N.A.",null,null,8.25]
[null,null,null,null,null,{"$f":"IF(W3=\"\",0,1)","v":1},"Toxicity value",56.7,null,"PH",null,null,null,null,"Chironomus dilutus",null,null,"Embryo-larvae",null,null,"14 d",null,null,"NOEC",null,null,"N.A.",null,null,"N.A.",null,null,"Chlorophyta",null,null,"Actinopterygii",null,null,null,null,null,23,null,null,null,null,null,8.3000000000000007]
[null,2,"Select the appropriate answer option to each question. Comments can be added to the cells in column H.",null,null,{"$f":"IF(Z3=\"\",0,1)","v":1},null,null,null,"Salinity/Conductivity","N.A.",null,null,null,"Chironomus dilutus",null,null,"exponential",null,null,"146 d",null,null,"LC10",null,null,"Reproduction",null,null,"Mollusc",null,null,"Chordata",null,null,"Amphibia",null,null,null,null,null,23.1,null,null,null,null,null,"6.4-7.3"]
[null,"*","If the selected answer option does not work try clicking on any other cell first and then click back on the answer option again.",null,null,{"$f":"IF(AC3=\"\",0,1)","v":1},null,null,null,null,null,null,null,null,"Coregonus clupeaformis",null,null,"Fry",null,null,"16 d",null,null,"EC10",null,null,"Survival and reproduction",null,null,"Arthropoda",null,null,"N.A.",null,null,"Branchiopoda",null,null,null,null,null,23.4,null,null,null,null,null,"6-7.4"]
[null,"No.","Question","Marks Awarded","Answer Options","Option References","Scores","Answers",null,null,null,null,null,null,"Daphnia magna",null,null,"Juvenile",null,null,"20 d",null,null,"LOEC",null,null,"Mortality and growth",null,null,"Crayfish",null,null,"Tracheophyta",null,null,"Chlorophyceae",null,null,null,null,null,24,null,null,null,null,null,"7.0-7.4"]
[null,null,"Was the duration of the exposure stated (e.g. 48 or 96 h)?",10,null,1,{"$f":"IF(F15=0,0,INDEX($D12:$D13,F12,1))","v":10},null,null,null,null,null,null,null,"Deleatidium sp.",null,null,"Larvae",null,null,"21 d",null,null,"IC25",null,null,"Reproduction",null,null,"Amphipod",null,null,"Mollusca",null,null,"Chlorophyceae",null,null,null,null,null,25,null,null,null,null,null,"7.0-7.6"]
[null,1,null,0,null,null,null,null,null,null,null,null,null,null,"Galaxias maculatus",null,null,"N.A.",null,null,"23 d",null,null,"NOEC",null,null,"Hatching",null,null,"Mollusc",null,null,"Arthropoda",null,null,"N.A.",null,null,null,null,null,28,null,null,null,null,null,"7.21-7.47"]
[null,null,null,null,null,null,null,null,null,null,null,null,null,null,"Galaxias maculatus",null,null,"Neonates",null,null,"3 d",null,null,"EC20",null,null,"Growht (wt)",null,null,"Cladoceran",null,null,"Mollusca",null,null,"Actinopterygii",null,null,null,null,null,"2016-05-10",null,null,null,null,null,"7.34-8.27"]
[null,null,"Was the biological endpoint (e.g., immobilization or population growth) stated and defined (10 marks)? Award 5 marks if the biological endpoint is only stated.",10,null,1,{"$f":"IF(F15=0,0,INDEX($D15:$D17,F15,1))","v":10},null,null,null,null,null,null,null,"Hyalella azteca",null,null,"sub-adult",null,null,"30d",null,null,null,null,null,"Growth (wt)",null,null,"Invertebrate",null,null,"Arthropoda",null,null,"Bivalvia",null,null,null,null,null,"15°C",null,null,null,null,null,"7.48-7.74"]
[null,2,null,5,null,null,null,null,null,null,null,null,null,null,"Macrobrachium rosenbergii",null,null,"Tadpole",null,null,"31 d",null,null,null,null,null,"Mortality and growth",null,null,"Fish",null,null,"Chordata",null,null,"Gastropoda",null,null,null,null,null,"21-24",null,null,null,null,null,"7.50-7.59"]
[null,null,null,0,null,null,null,null,null,null,null,null,null,null,"N.A.",null,null,"Neonate",null,null,"32 d",null,null,null,null,null,"Reproduction",null,null,"Invertebrate",null,null,"Arthropoda",null,null,"Gastropoda",null,null,null,null,null,"25°C",null,null,null,null,null,"7.51-7.79"]
[null,null,"Was the biological effect stated (e.g. LC or NOEC)?",5,null,1,{"$f":"IF(F18=0,0,INDEX($D18:$D19,F18,1))","v":5},null,null,null,null,null,null,null,"Notropis topeka",null,null,"Larvae",null,null,"37-40 d",null,null,null,null,null,"Mortality, growth, reproduction",null,null,null,null,null,null,null,null,"Malacostraca",null,null,null,null,null,"N.A.",null,null,null,null,null,"7.52-8.60"]
[null,3,null,0,null,null,null,null,null,null,null,null,null,null,"Oncorhynchus kisutch",null,null,"Juvenile",null,null,"40 d",null,null,null,null,null,null,null,null,null,null,null,null,null,null,"Gastropoda",null,null,null,null,null,"20 C",null,null,null,null,null,"7.5-8.5"]
[null,null,null,null,null,null,null,null,null,null,null,null,null,null,"Oncorhynchus mykiss",null,null,"Neonates",null,null,"42 d",null,null,null,null,null,null,null,null,null,null,null,null,null,null,"Branchiopoda",null,null,null,null,null,"15 C",null,null,null,null,null,"7.6-7.7"]
[null,4,"Was the biological effect quantified (e.g. 50% effect, 25% effect)? \nNote: The effect for NOEC and LOEC data must be quantified.",5,null,1,{"$f":"IF(F21=0,0,INDEX($D21:$D22,F21,1))","v":5},null,null,null,null,null,null,null,"Oncorhynchus mykiss",null,null,"Juveniles",null,null,"5d",null,null,null,null,null,null,null,null,null,null,null,null,null,null,"Insecta",null,null,null,null,null,18.5,null,null,null,null,null,"7.89-8.25"]
[null,null,null,0,null,null,null,null,null,null,null,null,null,null,"Oncorhynchus tshawytscha",null,null,null,null,null,"64-68 d",null,null,null,null,null,null,null,null,null,null,null,null,null,null,"Actinopterygii",null,null,null,null,null,"25 C",null,null,null,null,null,"7.92-8.43"]
[null,5,"Were appropriate controls (e.g. a no-toxicant control and/or solvent control) used?",5,null,1,{"$f":"IF(F23=0,0,INDEX($D23:$D24,F23,1))","v":5},null,null,null,null,null,null,null,"Pimephales promelas",null,null,null,null,null,"64d ",null,null,null,null,null,null,null,null,null,null,null,null,null,null,"Branchiopoda",null,null,null,null,null,"24 C",null,null,null,null,null,"7.97-8.32"]
[null,null,null,0,null,null,null,null,null,null,null,null,null,null,"Pomacea paludosa",null,null,null,null,null,"7 d",null,null,null,null,null,null,null,null,null,null,null,null,null,null,"Malacostraca",null,null,null,null,null,"28 C",null,null,null,null,null,"N.A."]
[null,null,null,null,null,null,null,null,null,null,null,null,null,null,"Pseudacris regilla ",null,null,null,null,null,"N.A.",null,null,null,null,null,null,null,null,null,null,null,null,null,null,null,null,null,null,null,null,"24.9 C",null,null,null,null,null,"PH11"]
[null,6,"Was each control and contaminant concentration at least duplicated?",5,null,1,{"$f":"IF(F26=0,0,INDEX($D26:$D27,F26,1))","v":5},null,null,null,null,null,null,null,"Pseudacris regilla ",null,null,null,null,null,"60 d",null,null,null,null,null,null,null,null,null,null,null,null,null,null,null,null,null,null,null,null,"22.9 C",null,null,null,null,null,"PH7.0"]
[null,null,null,0,null,null,null,null,null,null,null,null,null,null,"Pseudokirchneriella subcapitata",null,null,null,null,null,"31 d",null,null,null,null,null,null,null,null,null,null,null,null,null,null,null,null,null,null,null,null,null,null,null,null,null,null,"6.6-6.7"]
[null,null,null,null,null,null,null,null,null,null,null,null,null,null,"Rana aurora",null,null,null,null,null,"40 d",null,null,null,null,null,null,null,null,null,null,null,null,null,null,null,null,null,null,null,null,null,null,null,null,null,null,7.8]
[null,7,"Were test acceptability criteria stated (e.g. mortality in controls must not exceed a certain percentage) (5 marks)?\nOR Were test acceptability criteria inferred (e.g. test method used [USEPA, OECD, ASTM etc.]) (award 2 marks). \nNote: Data that fail the acceptability criteria are automatically deemed to be of unacceptable quality and must not be used. ",5,null,1,{"$f":"IF(F29=0,0,INDEX($D29:$D31,F29,1))","v":5},null,null,null,null,null,null,null,"Salmo clarki",null,null,null,null,null,"60 d",null,null,null,null,null,null,null,null,null,null,null,null,null,null,null,null,null,null,null,null,null,null,null,null,null,null,"7.8-8.2"]
[null,null,null,2,null,null,null,null,null,null,null,null,null,null,"Salvelinus namaycush",null,null,null,null,null,"21 d",null,null,null,null,null,null,null,null,null,null,null,null,null,null,null,null,null,null,null,null,null,null,null,null,null,null,8.5500000000000007]
[null,null,null,0,null,null,null,null,null,null,null,null,null,null,"Xenopus laevis",null,null,null,null,null,"35 d",null,null,null,null,null,null,null,null,null,null,null,null,null,null,null,null,null,null,null,null,null,null,null,null,null,null,8]
[null,8,"Were the characteristics of the test organism (e.g. length, mass, age) stated?",5,null,1,{"$f":"IF(F32=0,0,INDEX($D32:$D34,F32,1))","v":5},null,null,null,null,null,null,null,"Xenopus laevis",null,null,null,null,null,"7 d",null,null,null,null,null,null,null,null,null,null,null,null,null,null,null,null,null,null,null,null,null,null,null,null,null,null,7.23]
[null,null,null,0,null,null,null,null,null,null,null,null,null,null,"Gobiomorphus cotidianus",null,null,null,null,null,"20 d",null,null,null,null,null,null,null,null,null,null,null,null,null,null,null,null,null,null,null,null,null,null,null,null,null,null,"7.1-7.98"]
[null,null,null,null,null,null,null,null,null,null,null,null,null,null,"Sphaerium novaezelandiae",null,null,null,null,null,"42 d",null,null,null,null,null,null,null,null,null,null,null,null,null,null,null,null,null,null,null,null,null,null,null,null,null,null,8.1999999999999993]
[null,9,"Was the type of test media used stated?",5,null,1,{"$f":"IF(F35=0,0,INDEX($D35:$D37,F35,1))","v":5},null,null,null,null,null,null,null,"Potamopyrgus antipodarum",null,null,null,null,null,"29 d",null,null,null,null,null,null,null,null,null,null,null,null,null,null,null,null,null,null,null,null,null,null,null,null,null,null,8]
[null,null,null,0,null,null,null,null,null,null,null,null,null,null,"Paranephrops planifrons",null,null,null,null,null,"7 d"]
[null,null,null,null,null,null,null,null,null,null,null,null,null,null,"Gammarus pseudolimnaeus",null,null,null,null,null,"42 d"]
[null,null,"Was the type of exposure (e.g. static, flow through) stated? ",4,null,1,{"$f":"IF(F38=0,0,INDEX($D38:$D40,F38,1))","v":4},null,null,null,null,null,null,null,"Potamopyrgus antipodarum"]
[null,10,null,0,null,null,null,null,null,null,null,null,null,null,"Ceriodaphnia silvestrii"]
[null,null,null,null,null,null,null,null,null,null,null,null,null,null,"Chironomus xanthus"]
[null,null,"Were the contaminant concentrations measured at the beginning and end of the exposure (4 marks)? Award 2 marks if they were measured only once during the test.\nNote: If the concentrations were not measured then automatically the data cannot be high quality. ",4,null,2,{"$f":"IF(F41=0,0,INDEX($D41:$D43,F41,1))","v":2},null,null,null,null,null,null,null,"Sander lucioperca"]
[null,11,null,2,null,null,null,null,null,null,null,null,null,null,"Danio rerio"]
[null,null,null,0,null,null,null,null,null,null,null,null,null,null,"Ceriodaphnia dubia"]
[null,null,"Were parallel reference toxicant toxicity tests conducted?",4,null,2,{"$f":"IF(F44=0,0,INDEX($D44:$D46,F44,1))","v":0},null,null,null,null,null,null,null,"Hyalella azteca"]
[null,12,null,0]
[]
[null,null,"Was there a concentration–response relationship either observable or stated?",4,null,1,{"$f":"IF(F47=0,0,INDEX($D47:$D49,F47,1))","v":4}]
[null,13,null,0]
[]
[null,null,"Was an appropriate statistical method or model used to determine the toxicity?\nNote: They should be accepted by a recognised national or international regulatory body (e.g. USEPA, OECD, ASTM). ",4,null,1,{"$f":"IF(F50=0,0,INDEX($D50:$D52,F50,1))","v":4}]
[null,14,null,0]
[]
[null,15,"For LC/EC/BEC data was an estimate of variability provided? \nOR \nFor NO EC/LOEC data was the significance level 0.05 or less?  \n\n",4,null,1,{"$f":"IF(F53=0,0,INDEX($D53:$D55,F53,1))","v":4}]
[null,null,null,0]
[]
[null,16,"Were the following parameters measured and stated? (3 marks if measured and stated, 1 mark if just measured)."]
[null,null,"pH",3,null,1,{"$f":"IF(F57=0,0,INDEX($D57:$D59,F57,1))","v":3}]
[null,16.100000000000001,null,1]
[null,null,null,0]
[]
[null,null,"Was the temperature measured and stated (3 marks)? Award 1 mark if the temperature was measured but not stated or if only the temperature settings of the room or chamber are stated.",3,null,1,{"$f":"IF(F61=0,0,INDEX($D61:$D63,F61,1))","v":3}]
[null,17,null,1]
[null,null,null,0]
[null,null,"Were test solutions, blanks and/or controls tested for contamination OR were analytical reagent grade chemicals used or the highest possible purity chemicals used for the experiment? (3 marks).",3,null,1,{"$f":"IF(F64=0,0,INDEX($D64:$D65,F64,1))","v":3}]
[null,18,null,0]
[]
[null,null,null,null,null,null,null,null,{"$f":"COUNTIF(D2:D7,\"=0\")+COUNTIF(F2:F10,\"=0\")+COUNTIF(F12:F64,\"=0\")","v":0}]
[]
[]
[null,null,"Total score",null,null,null,{"$f":"IF(SUM(G12:G67)=0,\"\",SUM(G12:G67))","v":82}]
[null,null,"Total Max. possible score for the various types of data and contaminants ",null,{"$f":"D12+D15+D18+D21+D23+D26+D29+D32+D35+D38+D41+D44+D47+D50+D53+D57+D61+D64","v":88}]
[null,null,"Quality Score",null,{"$f":"\"= [Total score / Total possible score] * 100 = \"","v":"= [Total score / Total possible score] * 100 = "},null,{"$f":"IF(ISERROR(G70/E71),#N/A,G70/E71)","v":0.93181818181818177},{"$f":"IF(F41=3,\"The highest possible grade for this datum is acceptable.\",\"\")","v":""}]
[]
[null,null,"H = high quality                           Quality score ≥ 80%  "]
[null,null,"A = acceptable quality         > 50% Quality score < 80%     "]
[null,null,"U = unacceptable quality              Quality score ≤ 50%"]
[]
[3,null,"Click the 'Save & Update' button to save and export the answers to the 'All results' worksheet. "]
[null,null,"Select the 'Reset Answers' button if you wish to clear all answers."]

{"sheet":"FW nonmetal plant_WS","index":6,"n_rows":200,"n_cols":22,"rows_kept":200,"cut":false,"hidden":false,"merged":[]}
[null,null,null,null,null,null,null,null,null,null,null,null,null,null,null,null,null,null,"MAX",88]
["Question No.",1,2,3,4,5,6,7,8,9,10,11,12,13,14,15,16.100000000000001,17,18,"Total Score","Quality Score","Comment "]
["Short Questions","Duration of the exposure ","Biological endpoint","Biological effect stated or not","Biological effect quantified or not","Appropriate controls","Control & contaminant concentration","Test acceptability criteria","Characteristics of the test organism"," Type of test media","Type of exposure","Contaminant concentrations","Parallel reference toxicant toxicity tests","Concentration–response relationship","Determine the toxicity","NOEC/LOEC or LC/EC/BEC","pH","Temperature","Grade or purity"]
["Category","Freshwater/non-metal/plant","Paper and data unique identifier(eg. 1-1,10-150)","N01-1"]
["Scores",10,10,5,5,5,5,2,5,5,4,4,4,4,4,4,3,1,3,{"$f":"SUM(B5:S5)","v":83},{"$f":"T5/MAX","v":0.94318181818181823}]
["Answers","146 days","growth","NOEC and LC50, cannot find LCx or Ecx..","","(also hardness control)","","\" No specific acceptability criteria for the two test species were used in the present study. However, Environment Canada [8] defines an acceptable rainbow trout embryo  evelopment\ntest as one in which the control has 60% or more survivors at the time when 50% of the embryos reach the swim-up stage.\" ","","","STATIC","","","","","","PH was a range of 6-7.4 also the DO was stated.","not sure about this one because it says room temperature was measured. ",""]
["Category","Freshwater/non-metal/plant","Paper and data unique identifier(eg. 1-1,10-150)","N01-2"]
["Scores",10,10,5,5,5,5,2,5,5,4,4,4,4,4,4,3,1,3,{"$f":"SUM(B8:S8)","v":83},{"$f":"T8/MAX","v":0.94318181818181823},""]
["Answers","126 Days","","","","","4 replicates per treatment 10 larve per replicate","Not too sure about this.. It says: No specific acceptability criteria for the two test species\nwere used in the present study.","","","static","","","","","","","Room temperature was measured daily",""]
["Category","Freshwater/non-metal/plant","Paper and data unique identifier(eg. 1-1,10-150)","N02-1"]
["Scores",10,10,5,5,5,5,2,5,5,4,2,4,4,4,4,3,3,3,{"$f":"SUM(B11:S11)","v":83},{"$f":"T11/MAX","v":0.94318181818181823},""]
["Answers","","","","","","","Not sure","","","flow through","Not very clear about this","","","sig 0.05","sig 0.05","","",""]
["Category","Freshwater/non-metal/plant","Paper and data unique identifier(eg. 1-1,10-150)","N02-2"]
["Scores",10,10,5,5,5,5,2,5,5,4,2,4,4,4,4,3,3,3,{"$f":"SUM(B14:S14)","v":83},{"$f":"T14/MAX","v":0.94318181818181823},""]
["Answers","","","","","","","Not sure","","","flow through","Not very clear about this","","","sig 0.05","sig 0.05","","",""]
["Category","Freshwater/non-metal/plant","Paper and data unique identifier(eg. 1-1,10-150)","N02-3"]
["Scores",10,10,5,5,5,5,2,5,5,4,2,4,4,4,4,3,3,3,{"$f":"SUM(B17:S17)","v":83},{"$f":"T17/MAX","v":0.94318181818181823},"rainbow trout"]
["Answers","","","","","","","Not sure","","","flow through","Not very clear about this","","","sig 0.05","sig 0.05","","",""]
["Category","Freshwater/non-metal/plant","Paper and data unique identifier(eg. 1-1,10-150)","N02-4"]
["Scores",10,10,5,5,5,5,2,5,5,4,2,4,4,4,4,3,3,3,{"$f":"SUM(B20:S20)","v":83},{"$f":"T20/MAX","v":0.94318181818181823},"Steelhead trout"]
["Answers","","","","","","","Not sure","","","flow through","Not very clear about this","","","sig 0.05","sig 0.05","","",""]
["Scores",10,10,5,5,5,5,2,5,5,4,2,4,4,4,4,3,3,3,{"$f":"SUM(B22:S22)","v":83},{"$f":"T22/MAX","v":0.94318181818181823},""]
["Answers","","","","","","","Not sure","","","flow through","Not very clear about this","","","sig 0.05","sig 0.05","","",""]
["Category","Freshwater/non-metal/plant","Paper and data unique identifier(eg. 1-1,10-150)","N02-5"]
["Scores",10,10,5,5,5,5,2,5,5,4,2,4,4,4,4,3,3,3,{"$f":"SUM(B25:S25)","v":83},{"$f":"T25/MAX","v":0.94318181818181823},""]
["Answers","","","","","","","Not sure","","","flow through","Not very clear about this","","","sig 0.05","sig 0.05","","",""]
["Category","Freshwater/non-metal/plant","Paper and data unique identifier(eg. 1-1,10-150)","N03-1"]
["Scores",10,10,5,5,5,5,2,5,5,0,4,4,4,4,4,3,3,3,{"$f":"SUM(B28:S28)","v":81},{"$f":"T28/MAX","v":0.92045454545454541},""]
["Answers","","","","","","","","age","","But is seems to be static: \" Boron tests were conducted in 60 2.4-L polyethylene containers and nitrate tests in 80 2-L glass bowls.\" ","They stated that the concentration changed a little bit over the course (less than 5%)","","","","",6.5,"kept at 5 the first 4 days and then raised till 10",""]
["Category","Freshwater/non-metal/plant","Paper and data unique identifier(eg. 1-1,10-150)","N04-1"]
["Scores",10,10,5,5,5,5,5,5,5,4,4,4,4,4,4,3,3,3,{"$f":"SUM(B31:S31)","v":88},{"$f":"T31/MAX","v":1},""]
["Answers","","","Also LC50 and NOAEL","","","","It doesn’t state criteria but does say that no control animals died","length and weight","","static renewed daily","measured every 3-4 days","","","","","","",""]
["Category","Freshwater/non-metal/plant","Paper and data unique identifier(eg. 1-1,10-150)","N04-2"]
["Scores",10,5,0,0,5,5,5,5,5,4,2,4,4,4,4,3,3,3,{"$f":"SUM(B34:S34)","v":71},{"$f":"T34/MAX","v":0.80681818181818177},""]
["Answers","","It is therefore important\nto examine to what extent physiological disturbances induced by nitrite can be reversed\nupon a return to nitrite-free water. On the basis of the documented extensive uptake of","","","","","there was not mortality in the controls it says.","only: intermoult stage of the moulting cycle","tab water"," tab water daily 50% water renewal (seems static)","says it was measured not when","","","p<0.01","p<0.01","","",""]
["Category","Freshwater/non-metal/plant","Paper and data unique identifier(eg. 1-1,10-150)","N04-3"]
["Scores",10,10,5,5,5,5,2,5,5,4,2,4,4,4,4,3,1,3,{"$f":"SUM(B37:S37)","v":81},{"$f":"T37/MAX","v":0.92045454545454541},""]
["Answers","","","","","","","?? They do not check mortality.. The number of neonates per cup was counted and recorded each day. Young were discarded. ","(<24 h old)","At the end of 7 d, larvae were sacrificed in 70%","static renewal","Nitrate","","","","","","stated it was in a room with a 25 degree temp. does not explicitly say the water was tested but it does say it was 25 degrees.",""]
["Category","Freshwater/non-metal/plant","Paper and data unique identifier(eg. 1-1,10-150)","N05-1"]
["Scores",10,10,5,5,5,5,2,5,5,4,2,4,4,4,4,3,1,3,{"$f":"SUM(B40:S40)","v":81},{"$f":"T40/MAX","v":0.92045454545454541},""]
["Answers","","","","","","","?? They do not check mortality.. The number of neonates per cup was counted and recorded each day. Young were discarded. ","(<24 h old)","At the end of 7 d, larvae were sacrificed in 70%","static renewal","Nitrate","","","","","","stated it was in a room with a 25 degree temp. does not explicitly say the water was tested but it does say it was 25 degrees.",""]
["Category","Freshwater/non-metal/plant","Paper and data unique identifier(eg. 1-1,10-150)","N05-1"]
["Scores",10,10,5,5,5,5,2,5,5,4,2,4,4,4,4,3,1,3,{"$f":"SUM(B43:S43)","v":81},{"$f":"T43/MAX","v":0.92045454545454541},""]
["Answers","","","","","","","?? They do not check mortality.. The number of neonates per cup was counted and recorded each day. Young were discarded. ","(<24 h old)","At the end of 7 d, larvae were sacrificed in 70%","static renewal","Nitrate","","","","","","stated it was in a room with a 25 degree temp. does not explicitly say the water was tested but it does say it was 25 degrees.",""]
["Category","Freshwater/non-metal/plant","Paper and data unique identifier(eg. 1-1,10-150)","N06-1"]
["Scores",10,10,5,5,5,5,2,5,5,4,2,4,4,4,4,3,1,3,{"$f":"SUM(B46:S46)","v":81},{"$f":"T46/MAX","v":0.92045454545454541},""]
["Answers","","","","","","","?? They do not check mortality.. The number of neonates per cup was counted and recorded each day. Young were discarded. ","(<24 h old)","At the end of 7 d, larvae were sacrificed in 70%","static renewal","Nitrate","","","","","","stated it was in a room with a 25 degree temp. does not explicitly say the water was tested but it does say it was 25 degrees.",""]
["Category","Freshwater/non-metal/plant","Paper and data unique identifier(eg. 1-1,10-150)","N07-1"]
["Scores",10,10,5,5,5,5,2,5,5,4,2,4,4,4,4,3,1,3,{"$f":"SUM(B49:S49)","v":81},{"$f":"T49/MAX","v":0.92045454545454541},""]
["Answers","","","","","","","?? They do not check mortality.. The number of neonates per cup was counted and recorded each day. Young were discarded. ","(<24 h old)","At the end of 7 d, larvae were sacrificed in 70%","static renewal","Nitrate","","","","","","stated it was in a room with a 25 degree temp. does not explicitly say the water was tested but it does say it was 25 degrees.",""]
["Category","Freshwater/non-metal/plant","Paper and data unique identifier(eg. 1-1,10-150)","N07-2"]
["Scores",10,10,5,5,5,5,5,5,5,4,2,4,4,4,4,0,3,3,{"$f":"SUM(B52:S52)","v":83},{"$f":"T52/MAX","v":0.94318181818181823},""]
["Answers","","Survival and reproduction","","","","","80% survival and 15% young per surviving control","< 24 h. ","","Static renewal daily","Not clear","","","","","PH is measured in the Annex papers but not in the article itself","",""]
["Category","Freshwater/non-metal/plant","Paper and data unique identifier(eg. 1-1,10-150)","N07-3"]
["Scores",10,10,5,5,5,5,5,5,5,4,2,4,4,4,4,0,3,3,{"$f":"SUM(B55:S55)","v":83},{"$f":"T55/MAX","v":0.94318181818181823},""]
["Answers","","Survival and reproduction","","","","","80% survival and 15% young per surviving control","< 24 h. ","","Static renewal daily","Not clear","","","","","PH is measured in the Annex papers but not in the article itself","",""]
["Category","Freshwater/non-metal/plant","Paper and data unique identifier(eg. 1-1,10-150)","N07-4"]
["Scores",10,10,5,5,5,5,5,5,5,4,2,4,4,4,4,0,3,3,{"$f":"SUM(B58:S58)","v":83},{"$f":"T58/MAX","v":0.94318181818181823},""]
["Answers","","Survival and reproduction","","","","","80% survival and 15% young per surviving control","< 24 h. ","","Static renewal daily","Not clear","","","","","PH is measured in the Annex papers but not in the article itself","",""]
["Category","Freshwater/non-metal/plant","Paper and data unique identifier(eg. 1-1,10-150)","N07-5"]
["Scores",10,10,5,5,5,5,5,5,5,4,2,4,4,4,4,0,3,3,{"$f":"SUM(B61:S61)","v":83},{"$f":"T61/MAX","v":0.94318181818181823},""]
["Answers","","survival and dry weight","","","","","","3rd instar ","","static renewal","Not clearly stated","","","","","","",""]
["Category","Freshwater/non-metal/plant","Paper and data unique identifier(eg. 1-1,10-150)","N07-6"]
["Scores",10,10,5,5,5,5,5,5,5,4,2,4,4,4,4,0,3,3,{"$f":"SUM(B64:S64)","v":83},{"$f":"T64/MAX","v":0.94318181818181823},""]
["Answers","","survival and dry weight","","","","","","3rd instar ","","static renewal","Not clearly stated","","","","","","",""]
["Category","Freshwater/non-metal/plant","Paper and data unique identifier(eg. 1-1,10-150)","N07-8"]
["Scores",10,10,5,5,5,5,5,5,5,4,2,4,4,4,4,0,3,3,{"$f":"SUM(B67:S67)","v":83},{"$f":"T67/MAX","v":0.94318181818181823},""]
["Answers","","survival and dry weight","","","","","","3rd instar ","","static renewal","Not clearly stated","","","","","","",""]
["Category","Freshwater/non-metal/plant","Paper and data unique identifier(eg. 1-1,10-150)","N08-1"]
["Scores",10,10,5,5,5,5,5,5,5,4,2,4,4,4,4,0,3,3,{"$f":"SUM(B70:S70)","v":83},{"$f":"T70/MAX","v":0.94318181818181823},""]
["Answers","","survival and dry weight","IC25","","","","","6-8 days old","","static renewal","Not clearly stated","","","","","","",""]
["Category","Freshwater/non-metal/plant","Paper and data unique identifier(eg. 1-1,10-150)","N08-2"]
["Scores",10,10,5,5,5,5,5,5,5,4,2,4,4,4,4,0,3,3,{"$f":"SUM(B73:S73)","v":83},{"$f":"T73/MAX","v":0.94318181818181823},""]
["Answers","","survival and dry weight","IC25","","","","","6-8 days old","","static renewal","Not clearly stated","","","","","","",""]
["Category","Freshwater/non-metal/plant","Paper and data unique identifier(eg. 1-1,10-150)","N08-3"]
["Scores",10,10,5,5,5,5,5,5,5,4,2,4,4,4,4,0,3,3,{"$f":"SUM(B76:S76)","v":83},{"$f":"T76/MAX","v":0.94318181818181823},""]
["Answers","","survival and dry weight","IC25","","","","","6-8 days old","","static renewal","Not clearly stated","","","","","","",""]
["Category","Freshwater/non-metal/plant","Paper and data unique identifier(eg. 1-1,10-150)","N08-4"]
["Scores",10,10,5,5,5,5,5,5,5,4,2,4,4,4,4,0,3,3,{"$f":"SUM(B79:S79)","v":83},{"$f":"T79/MAX","v":0.94318181818181823},""]
["Answers","","survival and dry weight","IC25","","","","","<24 h post hatch","","static renewal","Not clearly stated","","","","","","",""]
["Category","Freshwater/non-metal/plant","Paper and data unique identifier(eg. 1-1,10-150)","N09-1"]
["Scores",10,10,5,5,5,5,5,5,5,4,2,4,4,4,4,0,3,3,{"$f":"SUM(B82:S82)","v":83},{"$f":"T82/MAX","v":0.94318181818181823},""]
["Answers","","survival and dry weight","IC25","","","","","<24 h post hatch","","static renewal","Not clearly stated","","","","","","",""]
["Category","Freshwater/non-metal/plant","Paper and data unique identifier(eg. 1-1,10-150)","N09-10"]
["Scores",10,10,5,5,5,5,5,5,5,4,2,4,4,4,4,0,3,3,{"$f":"SUM(B85:S85)","v":83},{"$f":"T85/MAX","v":0.94318181818181823},""]
["Answers","","survival and dry weight","IC25","","","","","<24 h post hatch","","static renewal","Not clearly stated","","","","","","",""]
["Category","Freshwater/non-metal/plant","Paper and data unique identifier(eg. 1-1,10-150)","N09-11"]
["Scores",10,10,5,5,5,5,5,5,5,4,2,4,4,4,4,0,3,3,{"$f":"SUM(B88:S88)","v":83},{"$f":"T88/MAX","v":0.94318181818181823},""]
["Answers","","survival and dry weight","IC25","","","","","<24 h post hatch","","static renewal","Not clearly stated","","","","","","",""]
["Category","Freshwater/non-metal/plant","Paper and data unique identifier(eg. 1-1,10-150)","N09-12"]
["Scores",10,10,5,5,5,5,5,5,5,4,2,4,4,4,4,0,3,3,{"$f":"SUM(B91:S91)","v":83},{"$f":"T91/MAX","v":0.94318181818181823},""]
["Answers","","survival and dry weight","IC25","","","","","4-7 days old","","static no water renewal","Not clearly stated","","","","","","",""]
["Category","Freshwater/non-metal/plant","Paper and data unique identifier(eg. 1-1,10-150)","N09-13"]
["Scores",10,10,5,5,5,5,5,5,5,4,4,4,4,4,4,3,3,3,{"$f":"SUM(B94:S94)","v":88},{"$f":"T94/MAX","v":1},""]
["Answers","","survival","","","","","90% ( in the test it was 92% so within the range","larvae early instar <5mm","","static, solution replaced twice weekly, held in a tank with bubbles","4 times","","","not clearly stated but the P value is used in the statistical section","not clearly stated but the P value is used in the statistical section","","",""]
["Category","Freshwater/non-metal/plant","Paper and data unique identifier(eg. 1-1,10-150)","N09-14"]
["Scores",10,10,5,5,5,5,5,5,5,4,4,4,4,4,4,3,3,3,{"$f":"SUM(B97:S97)","v":88},{"$f":"T97/MAX","v":1},""]
["Answers","","survival, (fecundity, growth)","","","","","control survival at least 90% ","0.97g, 60mm","","flow through with water exchanges per day","","","","not clearly stated but the P value is used in the statistical section","not clearly stated but the P value is used in the statistical section","","",""]
["Category","Freshwater/non-metal/plant","Paper and data unique identifier(eg. 1-1,10-150)","N09-2"]
["Scores",10,10,0,0,5,5,2,5,5,4,4,4,4,4,4,3,3,3,{"$f":"SUM(B100:S100)","v":75},{"$f":"T100/MAX","v":0.85227272727272729},""]
["Answers","","mortality","EC50 had to calculate this","","","","they do refer to some standard but I am not sure that is this. ","one or two weeks since hatching","","snails are held in a aquarium with 40L and daily a 10l water change","twice weekly 4 in total","","","","","","",""]
["Category","Freshwater/non-metal/plant","Paper and data unique identifier(eg. 1-1,10-150)","N09-3"]
["Scores",10,10,0,0,5,5,2,5,5,4,4,4,4,4,4,3,3,3,{"$f":"SUM(B103:S103)","v":75},{"$f":"T103/MAX","v":0.85227272727272729},""]
["Answers","","mortality","EC50 had to calculate this","","","","they do refer to some standard but I am not sure that is this. ","one or two weeks since hatching","","snails are held in a aquarium with 40L and daily a 10l water change","twice weekly 4 in total","","","","","","",""]
["Category","Freshwater/non-metal/plant","Paper and data unique identifier(eg. 1-1,10-150)","N09-4"]
["Scores",10,10,5,5,5,5,2,5,5,4,2,4,4,4,4,0,3,3,{"$f":"SUM(B106:S106)","v":80},{"$f":"T106/MAX","v":0.90909090909090906},""]
["Answers","","weight and achieving swim up","","","","","Not very clear to me","","","Flow through","Not very cleary stated (water change was 3 times a week","","","","","","",""]
["Category","Freshwater/non-metal/plant","Paper and data unique identifier(eg. 1-1,10-150)","N09-5"]
["Scores",10,10,5,5,5,5,2,5,5,4,2,4,4,4,4,0,3,3,{"$f":"SUM(B109:S109)","v":80},{"$f":"T109/MAX","v":0.90909090909090906},""]
["Answers","","weight and achieving swim up","","","","","Not very clear to me","","","Flow through","Not very cleary stated (water change was 3 times a week","","","","","","",""]
["Category","Freshwater/non-metal/plant","Paper and data unique identifier(eg. 1-1,10-150)","N09-6"]
["Scores",10,10,5,5,5,5,2,5,5,4,2,4,4,4,4,0,3,3,{"$f":"SUM(B112:S112)","v":80},{"$f":"T112/MAX","v":0.90909090909090906},""]
["Answers","","weight and achieving swim up","","","","","Not very clear to me","","","Flow through","Not very cleary stated (water change was 3 times a week","","","","","","",""]
["Category","Freshwater/non-metal/plant","Paper and data unique identifier(eg. 1-1,10-150)","N09-7"]
["Scores",10,10,5,5,5,5,2,5,5,4,2,4,4,4,4,0,3,3,{"$f":"SUM(B115:S115)","v":80},{"$f":"T115/MAX","v":0.90909090909090906},""]
["Answers","","weight and achieving swim up","","","","","Not very clear to me","","","Flow through","Not very cleary stated (water change was 3 times a week","","","","","","",""]
["Category","Freshwater/non-metal/plant","Paper and data unique identifier(eg. 1-1,10-150)","N09-8"]
["Scores",10,10,5,5,5,5,5,5,5,4,4,4,4,4,4,1,3,3,{"$f":"SUM(B118:S118)","v":86},{"$f":"T118/MAX","v":0.97727272727272729},""]
["Answers","","","","","","",">60% fry survival in control","<20min old embryo","","static 3 times changed per week","","KCI","","","","not stated only stated that it was measured 3 times a week..","",""]
["Category","Freshwater/non-metal/plant","Paper and data unique identifier(eg. 1-1,10-150)","N09-9"]
["Scores",10,10,5,5,5,5,5,5,5,4,4,0,4,4,4,3,3,3,{"$f":"SUM(B121:S121)","v":84},{"$f":"T121/MAX","v":0.95454545454545459},""]
["Answers","","","","","","","","Eggs and milt. The Yolk development is measured (& length and weight","","static 3 times changed per week","","I could not find this","","","","In the appendix (7.6-7.7)","In the article it says that the temp was 14 but in the overall sheet it says 16.. ",""]
["Category","Freshwater/non-metal/plant","Paper and data unique identifier(eg. 1-1,10-150)","N10-1"]
["Scores",10,10,5,5,5,5,5,5,5,4,4,0,4,4,4,3,3,3,{"$f":"SUM(B124:S124)","v":84},{"$f":"T124/MAX","v":0.95454545454545459},""]
["Answers","","","","","","","Control survival at least 90%","mean 0.32g  50mm","","flow through 2 water exchanges per day","","there is a reference method OECD but that is the test method I think.. ","","","","","",""]
["Category","Freshwater/non-metal/plant","Paper and data unique identifier(eg. 1-1,10-150)","N10-2"]
["Scores",10,10,5,5,5,5,5,5,5,4,4,0,4,4,4,3,3,3,{"$f":"SUM(B127:S127)","v":84},{"$f":"T127/MAX","v":0.95454545454545459},""]
["Answers","","","","","","","Control survival at least 90%","mean 0.31g,  48mm","","flow through 2 water exchanges per day","","there is a reference method OECD but that is the test method I think.. ","","","","","",""]
["Category","Freshwater/non-metal/plant","Paper and data unique identifier(eg. 1-1,10-150)","N11-1"]
["Scores",10,10,5,5,5,0,2,5,5,4,4,4,4,4,0,3,3,3,{"$f":"SUM(B130:S130)","v":76},{"$f":"T130/MAX","v":0.86363636363636365},""]
["Answers","3 weeks","Growth or dead","LC 50, EC50","EC50","","not stated","yes table 4. How much the control group grew comparred to controlgroups in other literature","","freshwater with a little sea water","flow through (single pass)","every week","I think so not sure","","significance 0.05-0.10","significance 0.05-0.10","","","I think so"]
["Category","Freshwater/non-metal/plant","Paper and data unique identifier(eg. 1-1,10-150)","N11-2"]
["Scores",10,10,5,5,5,5,5,5,5,4,4,0,4,4,4,0,3,3,{"$f":"SUM(B133:S133)","v":81},{"$f":"T133/MAX","v":0.92045454545454541},""]
["Answers","10 d","growth","NOEC and LC50","","","",">80% for control and >0.1mg growth","","","static renewal","","not needed it says","","","","Says it was measured for water quality but the numbers are not mentioned.","",""]
["Category","Freshwater/non-metal/plant","Paper and data unique identifier(eg. 1-1,10-150)","N12-1"]
["Scores",10,10,5,5,5,5,0,5,5,4,4,0,4,4,4,3,3,3,{"$f":"SUM(B136:S136)","v":79},{"$f":"T136/MAX","v":0.89772727272727271},""]
["Answers","","","","","","","I could not find this but it did say that no larvae in the control died.","eggs <8 hours","","flow through","","","","","","","",""]
["Category","Freshwater/non-metal/plant","Paper and data unique identifier(eg. 1-1,10-150)","N12-2"]
["Scores",10,10,5,5,5,5,2,5,5,4,4,0,4,4,4,3,3,3,{"$f":"SUM(B139:S139)","v":81},{"$f":"T139/MAX","v":0.92045454545454541},""]
["Answers","","survival","","","","","not stated but it does say no fish died In the controls. ","Weight","","flow through","","","","","","","",""]
["Category","Freshwater/non-metal/plant","Paper and data unique identifier(eg. 1-1,10-150)","N13-1"]
["Scores",10,10,5,5,5,5,2,5,5,4,4,0,4,4,4,3,3,3,{"$f":"SUM(B142:S142)","v":81},{"$f":"T142/MAX","v":0.92045454545454541},""]
["Answers","","growth","","","","","not stated but it does say no fish died In the controls. ","Weight","","flow through","","","","","","","",""]
["Category","Freshwater/non-metal/plant","Paper and data unique identifier(eg. 1-1,10-150)","N14-1"]
["Scores",10,10,5,5,5,5,2,5,5,4,4,0,4,4,4,3,3,3,{"$f":"SUM(B145:S145)","v":81},{"$f":"T145/MAX","v":0.92045454545454541},""]
["Answers","","","","","","","No but the survival rate of the controll was 88.8","","","flow through","","only in the acute test ","","","","","",""]
["Category","Freshwater/non-metal/plant","Paper and data unique identifier(eg. 1-1,10-150)","N14-2"]
["Scores",10,5,5,5,5,5,2,5,5,4,2,0,4,4,4,3,3,3,{"$f":"SUM(B148:S148)","v":74},{"$f":"T148/MAX","v":0.84090909090909094},""]
["Answers","","","","","","","not mentioned but it is mentioned that there are no mortalities in the control.","","","static renewal","","","","","","","",""]
["Category","Freshwater/non-metal/plant","Paper and data unique identifier(eg. 1-1,10-150)","N15-1"]
["Scores",10,5,5,5,5,5,2,5,5,4,2,0,4,4,4,3,1,3,{"$f":"SUM(B151:S151)","v":72},{"$f":"T151/MAX","v":0.81818181818181823},""]
["Answers","","mortality and growth","","","","","not mentioned but the % of dead is given which was 0% for control","","","Not stated specific but tested in 100ml dishes with water renewal so static","","","for wet weight but not length","","","","",""]
["Category","Freshwater/non-metal/plant","Paper and data unique identifier(eg. 1-1,10-150)","N15-2"]
["Scores",10,5,5,5,5,5,2,5,5,0,2,0,4,4,4,3,1,3,{"$f":"SUM(B154:S154)","v":68},{"$f":"T154/MAX","v":0.77272727272727271},""]
["Answers","","","","","","","No but it does say 0% deads in the control. ","","","it does say in 1000ml. Beakers So I take it it is static","","","","","","","",""]
["Category","Freshwater/non-metal/plant","Paper and data unique identifier(eg. 1-1,10-150)","N16-1"]
["Scores",10,5,5,5,5,5,2,5,5,0,2,0,4,4,4,3,1,3,{"$f":"SUM(B157:S157)","v":68},{"$f":"T157/MAX","v":0.77272727272727271},""]
["Answers","","","","","","","No but it does say 0% deads in the control. ","","","it does say in 1000ml. Beakers So I take it it is static","","","","","","","",""]
["Category","Freshwater/non-metal/plant","Paper and data unique identifier(eg. 1-1,10-150)","N17-1"]
["Scores",10,5,5,5,5,5,2,5,5,4,4,0,4,4,4,3,3,3,{"$f":"SUM(B160:S160)","v":76},{"$f":"T160/MAX","v":0.86363636363636365},""]
[]
["Category","Freshwater/non-metal/plant","Paper and data unique identifier(eg. 1-1,10-150)","N18-1"]
["Scores",10,10,5,5,5,5,5,5,5,4,2,0,4,4,4,3,3,3,82,0.93181818181818177,""]
[]
["Category","Freshwater/non-metal/plant","Paper and data unique identifier(eg. 1-1,10-150)","N18-2"]
["Scores",10,10,5,5,5,5,5,5,5,4,2,0,4,4,4,3,3,3,82,0.93181818181818177,""]
[]
["Category","Freshwater/non-metal/plant","Paper and data unique identifier(eg. 1-1,10-150)","N18-3"]
["Scores",10,10,5,5,5,5,5,5,5,4,2,0,4,4,4,3,3,3,82,0.93181818181818177,""]
[]
["Category","Freshwater/non-metal/plant","Paper and data unique identifier(eg. 1-1,10-150)","N18-4"]
["Scores",10,10,5,5,5,5,5,5,5,4,2,0,4,4,4,3,3,3,82,0.93181818181818177,""]
[]
["Category","Freshwater/non-metal/plant","Paper and data unique identifier(eg. 1-1,10-150)","N18-4"]
["Scores",10,10,5,5,5,5,5,5,5,4,2,0,4,4,4,3,3,3,82,0.93181818181818177,""]
[]
["Category","Freshwater/non-metal/plant","Paper and data unique identifier(eg. 1-1,10-150)","N19-1"]
["Scores",10,10,5,5,5,5,5,5,5,4,2,0,4,4,4,3,3,3,82,0.93181818181818177,""]
["Answers","","","","","","","","","","","","","","","","","",""]
["Category","Freshwater/non-metal/plant","Paper and data unique identifier(eg. 1-1,10-150)","N20-1"]
["Scores",10,10,5,5,5,5,5,5,5,4,2,0,4,4,4,3,3,3,82,0.93181818181818177,""]
["Answers","","","","","","","","","","","","","","","","","",""]
["Category","Freshwater/non-metal/plant","Paper and data unique identifier(eg. 1-1,10-150)","N21-1"]
["Scores",10,10,5,5,5,5,5,5,5,4,2,0,4,4,4,3,3,3,82,0.93181818181818177,""]
["Answers","","","","","","","","","","","","","","","","","",""]
["Category","Freshwater/non-metal/plant","Paper and data unique identifier(eg. 1-1,10-150)","N21-2"]
["Scores",10,10,5,5,5,5,5,5,5,4,2,0,4,4,4,3,3,3,82,0.93181818181818177,""]
["Answers","","","","","","","","","","","","","","","","","",""]
["Category","Freshwater/non-metal/plant","Paper and data unique identifier(eg. 1-1,10-150)","N22-2"]
["Scores",10,10,5,5,5,5,5,5,5,4,2,0,4,4,4,3,3,3,82,0.93181818181818177,""]
["Answers","","","","","","","","","","","","","","","","","",""]
["Category","Freshwater/non-metal/plant","Paper and data unique identifier(eg. 1-1,10-150)","N23-1"]
["Scores",10,10,5,5,5,5,5,5,5,4,2,0,4,4,4,3,3,3,82,0.93181818181818177,""]
["Answers","","","","","","","","","","","","","","","","","",""]
["Category","Freshwater/non-metal/plant","Paper and data unique identifier(eg. 1-1,10-150)","N24-1"]
["Scores",10,10,5,5,5,5,5,5,5,4,2,0,4,4,4,3,3,3,82,0.93181818181818177,""]
["Answers","","","","","","","","","","","","","","","","","",""]
["Category","Freshwater/non-metal/plant","Paper and data unique identifier(eg. 1-1,10-150)","N24-2"]
["Scores",10,10,5,5,5,5,5,5,5,4,2,0,4,4,4,3,3,3,82,0.93181818181818177,""]
["Answers","","","","","","","","","","","","","","","","","",""]

{"sheet":"Reference list","index":7,"n_rows":63,"n_cols":3,"rows_kept":63,"cut":false,"hidden":false,"merged":[]}
["Code","Reference","Full reference"]
["N01-1","McGurk et al (2006)","McGurk, M.D.; Landry, F.; Tang, A.; Hanks, C.C. (2006). Acute and chronic toxicity of nitrate to early life stages of lake trout (Salvelinus namaycush) and lake whitefish (Coregonus clupeaformis). Environmental Toxicology and Chemistry 25:  2187-2196."]
["N01-2","McGurk et al (2006)","McGurk, M.D.; Landry, F.; Tang, A.; Hanks, C.C. (2006). Acute and chronic toxicity of nitrate to early life stages of lake trout (Salvelinus namaycush) and lake whitefish (Coregonus clupeaformis). Environmental Toxicology and Chemistry 25:  2187-2196."]
["N02-1","Kinchloe et al (1979)","Kincheloe, J.W.; Wedemeyer, G.A.; Koch, D.L. (1979). Tolerance of developing salmonid eggs and fry to nitrate exposure. Bulletin of Environmental Contamination and Toxicology 23:  575-578."]
["N02-2","Kinchloe et al (1979)","Kincheloe, J.W.; Wedemeyer, G.A.; Koch, D.L. (1979). Tolerance of developing salmonid eggs and fry to nitrate exposure. Bulletin of Environmental Contamination and Toxicology 23:  575-578."]
["N02-3","Kinchloe et al (1979)","Kincheloe, J.W.; Wedemeyer, G.A.; Koch, D.L. (1979). Tolerance of developing salmonid eggs and fry to nitrate exposure. Bulletin of Environmental Contamination and Toxicology 23:  575-578."]
["N02-4","Kinchloe et al (1979) ","Kincheloe, J.W.; Wedemeyer, G.A.; Koch, D.L. (1979). Tolerance of developing salmonid eggs and fry to nitrate exposure. Bulletin of Environmental Contamination and Toxicology 23:  575-578."]
["N02-5","Kinchloe et al (1979) ","Kincheloe, J.W.; Wedemeyer, G.A.; Koch, D.L. (1979). Tolerance of developing salmonid eggs and fry to nitrate exposure. Bulletin of Environmental Contamination and Toxicology 23:  575-578."]
["N03-1","Laposata & Dunson (1998)","Laposata, M.M.; Dunson, W.A. (1998). Effects of boron and nitrate on hatching success of amphibian eggs. Archives of Environmental and Contamination Toxicology 35:  615-619."]
["N04-1","Hickey et al (2013)","Hickey, C.W.; Thompson, K.J.; Albert, A.; Martin, M.L. (2013). Chronic sensitivity of juvenile inanga (Galaxias maculatus) and early life-stage rainbow trout (Oncorhynchus mykiss) to nitrate. No. HBR13207; HAM2013-012. NIWA report for Hawke's Bay Regional Council"]
["N04-2","Hickey et al (2013)","Hickey, C.W.; Thompson, K.J.; Albert, A.; Martin, M.L. (2013). Chronic sensitivity of juvenile inanga (Galaxias maculatus) and early life-stage rainbow trout (Oncorhynchus mykiss) to nitrate. No. HBR13207; HAM2013-012. NIWA report for Hawke's Bay Regional Council"]
["N04-3","Hickey et al (2013)","Hickey, C.W.; Thompson, K.J.; Albert, A.; Martin, M.L. (2013). Chronic sensitivity of juvenile inanga (Galaxias maculatus) and early life-stage rainbow trout (Oncorhynchus mykiss) to nitrate. No. HBR13207; HAM2013-012. NIWA report for Hawke's Bay Regional Council"]
["N05-1","Schuytema & Nebeker (1999a)","Schuytema, G.S.; Nebeker, A.V. (1999a). Comparative toxicity of ammonium and nitrate compounds to Pacific tree frog and clawed frog tadpoles. Environmental Toxicology and Chemistry 18:  2251-2257"]
["N06-1","Jensen (1996) ","Jensen, F.B. (1996). Uptake, elimination and effects of nitrite and nitrate in freshwater crayfish (Astacus astacus). Aquatic Toxicology 34:  94-104."]
["N07-1","Scott & Crunkilton (2000) ","Scott, G.; Crunkilton, R.L. (2000). Acute and chronic toxicity of nitrate to fathead minnows (Pimephales promelas), Ceriodaphnia dubia, and Daphnia magna. Environmental Toxicology and Chemistry 19:  2918-2922."]
["N07-2","Scott & Crunkilton (2000) ","Scott, G.; Crunkilton, R.L. (2000). Acute and chronic toxicity of nitrate to fathead minnows (Pimephales promelas), Ceriodaphnia dubia, and Daphnia magna. Environmental Toxicology and Chemistry 19:  2918-2922."]
["N07-3","Scott & Crunkilton (2000) ","Scott, G.; Crunkilton, R.L. (2000). Acute and chronic toxicity of nitrate to fathead minnows (Pimephales promelas), Ceriodaphnia dubia, and Daphnia magna. Environmental Toxicology and Chemistry 19:  2918-2922."]
["N07-4","Scott & Crunkilton (2000) ","Scott, G.; Crunkilton, R.L. (2000). Acute and chronic toxicity of nitrate to fathead minnows (Pimephales promelas), Ceriodaphnia dubia, and Daphnia magna. Environmental Toxicology and Chemistry 19:  2918-2922."]
["N07-5","Scott & Crunkilton (2000) ","Scott, G.; Crunkilton, R.L. (2000). Acute and chronic toxicity of nitrate to fathead minnows (Pimephales promelas), Ceriodaphnia dubia, and Daphnia magna. Environmental Toxicology and Chemistry 19:  2918-2922."]
["N07-6","Scott & Crunkilton (2000)","Scott, G.; Crunkilton, R.L. (2000). Acute and chronic toxicity of nitrate to fathead minnows (Pimephales promelas), Ceriodaphnia dubia, and Daphnia magna. Environmental Toxicology and Chemistry 19:  2918-2922."]
["N07-8","Scott & Crunkilton (2000)","Scott, G.; Crunkilton, R.L. (2000). Acute and chronic toxicity of nitrate to fathead minnows (Pimephales promelas), Ceriodaphnia dubia, and Daphnia magna. Environmental Toxicology and Chemistry 19:  2918-2922."]
["N08-1","Nautilus Environmental (2011a)","Nautilus Environmental (2011a). Evaluation of the role of hardness in modifying the toxicity of nitrate to rainbow trout. No. Final Report Submitted to Mining Association of BC. , Vancouver, BC. 12 September 2011. pp. 252."]
["N08-2","Nautilus Environmental (2011a)","Nautilus Environmental (2011a). Evaluation of the role of hardness in modifying the toxicity of nitrate to rainbow trout. No. Final Report Submitted to Mining Association of BC. , Vancouver, BC. 12 September 2011. pp. 252."]
["N08-3","Nautilus Environmental (2011a)","Nautilus Environmental (2011a). Evaluation of the role of hardness in modifying the toxicity of nitrate to rainbow trout. No. Final Report Submitted to Mining Association of BC. , Vancouver, BC. 12 September 2011. pp. 252."]
["N08-4","Nautilus Environmental (2011a)","Nautilus Environmental (2011a). Evaluation of the role of hardness in modifying the toxicity of nitrate to rainbow trout. No. Final Report Submitted to Mining Association of BC. , Vancouver, BC. 12 September 2011. pp. 252."]
["N09-1","Nautilus Environmental (2011b)","Nautilus Environmental (2011b). Evaluation of the role of hardness in modifying the toxicity of nitrate to freshwater organisms. No. Final Report Submitted to Mining Association of BC, Vancouver, B.C. 4 April 2011. pp. 216."]
["N09-10","Nautilus Environmental (2011b)","Nautilus Environmental (2011b). Evaluation of the role of hardness in modifying the toxicity of nitrate to freshwater organisms. No. Final Report Submitted to Mining Association of BC, Vancouver, B.C. 4 April 2011. pp. 216."]
["N09-10","Nautilus Environmental (2011b)","Nautilus Environmental (2011b). Evaluation of the role of hardness in modifying the toxicity of nitrate to freshwater organisms. No. Final Report Submitted to Mining Association of BC, Vancouver, B.C. 4 April 2011. pp. 216."]
["N09-11","Nautilus Environmental (2011b)","Nautilus Environmental (2011b). Evaluation of the role of hardness in modifying the toxicity of nitrate to freshwater organisms. No. Final Report Submitted to Mining Association of BC, Vancouver, B.C. 4 April 2011. pp. 216."]
["N09-12","Nautilus Environmental (2011b)","Nautilus Environmental (2011b). Evaluation of the role of hardness in modifying the toxicity of nitrate to freshwater organisms. No. Final Report Submitted to Mining Association of BC, Vancouver, B.C. 4 April 2011. pp. 216."]
["N09-13","Nautilus Environmental (2011b)","Nautilus Environmental (2011b). Evaluation of the role of hardness in modifying the toxicity of nitrate to freshwater organisms. No. Final Report Submitted to Mining Association of BC, Vancouver, B.C. 4 April 2011. pp. 216."]
["N09-2","Nautilus Environmental (2011b)","Nautilus Environmental (2011b). Evaluation of the role of hardness in modifying the toxicity of nitrate to freshwater organisms. No. Final Report Submitted to Mining Association of BC, Vancouver, B.C. 4 April 2011. pp. 216."]
["N09-3","Nautilus Environmental (2011b)","Nautilus Environmental (2011b). Evaluation of the role of hardness in modifying the toxicity of nitrate to freshwater organisms. No. Final Report Submitted to Mining Association of BC, Vancouver, B.C. 4 April 2011. pp. 216."]
["N09-4","Nautilus Environmental (2011b)","Nautilus Environmental (2011b). Evaluation of the role of hardness in modifying the toxicity of nitrate to freshwater organisms. No. Final Report Submitted to Mining Association of BC, Vancouver, B.C. 4 April 2011. pp. 216."]
["N09-5","Nautilus Environmental (2011b)","Nautilus Environmental (2011b). Evaluation of the role of hardness in modifying the toxicity of nitrate to freshwater organisms. No. Final Report Submitted to Mining Association of BC, Vancouver, B.C. 4 April 2011. pp. 216."]
["N09-6","Nautilus Environmental (2011b)","Nautilus Environmental (2011b). Evaluation of the role of hardness in modifying the toxicity of nitrate to freshwater organisms. No. Final Report Submitted to Mining Association of BC, Vancouver, B.C. 4 April 2011. pp. 216."]
["N09-7","Nautilus Environmental (2011b)","Nautilus Environmental (2011b). Evaluation of the role of hardness in modifying the toxicity of nitrate to freshwater organisms. No. Final Report Submitted to Mining Association of BC, Vancouver, B.C. 4 April 2011. pp. 216."]
["N09-8","Nautilus Environmental (2011b)","Nautilus Environmental (2011b). Evaluation of the role of hardness in modifying the toxicity of nitrate to freshwater organisms. No. Final Report Submitted to Mining Association of BC, Vancouver, B.C. 4 April 2011. pp. 216."]
["N09-9","Nautilus Environmental (2011b)","Nautilus Environmental (2011b). Evaluation of the role of hardness in modifying the toxicity of nitrate to freshwater organisms. No. Final Report Submitted to Mining Association of BC, Vancouver, B.C. 4 April 2011. pp. 216."]
["N10-1","Martin & Thompson (2012)","Martin, M.L.; Thompson, K.J. (2012). Chronic sensitivity of two native New Zealand species (freshwater fish – Inanga Galaxias maculatus and mayfly – Deleatidium sp.) to nitrate. No. HBR12230. NIWA report for Hawke's Bay Regional Council, Hamilton. pp. 26."]
["N10-2","Martin & Thompson (2012)","Martin, M.L.; Thompson, K.J. (2012). Chronic sensitivity of two native New Zealand species (freshwater fish – Inanga Galaxias maculatus and mayfly – Deleatidium sp.) to nitrate. No. HBR12230. NIWA report for Hawke's Bay Regional Council, Hamilton. pp. 26."]
["N11-1","Corrao et al (2006) ","Corrao, N.; Darby, P.; Pomory, C. (2006). Nitrate impacts on the Florida apple snail, Pomacea paludosa. Hydrobiologia 568:  135-143."]
["N11-2","Corrao et al (2006) ","Corrao, N.; Darby, P.; Pomory, C. (2006). Nitrate impacts on the Florida apple snail, Pomacea paludosa. Hydrobiologia 568:  135-143."]
["N12-1","Stantec (2006)","Stantec Consulting Ltd. (2006). Report on the toxicity of nitrate to Canadian fish and aquatic invertebrate species. No. Stantec Project No. 162704276. Prepared for: Environment Canada, National Guidelines Standards Office, pp. 110."]
["N12-2","Stantec (2006)","Stantec Consulting Ltd. (2006). Report on the toxicity of nitrate to Canadian fish and aquatic invertebrate species. No. Stantec Project No. 162704276. Prepared for: Environment Canada, National Guidelines Standards Office, pp. 110."]
["N13-1","Wickins (1976)","Wickins, J. (1976). The tolerance of warm-water prawns to recirculated water. Aquaculture 9:  19-37."]
["N14-1","Schuytema & Nebeker (1999b)","Schuytema, G.S.; Nebeker, A.V. (1999b). Comparative effects of ammonium and nitrate compounds on Pacific treefrog and African clawed frog embryos. Archives of Environmental and Contamination Toxicology 36:  200-206."]
["N15-1","Adelman et al (2009)","Adelman, I.R.; Kusilek, L.I.; Koehle, J.; Hess, J. (2009). Acute and chronic toxicity of ammonia, nitrite, and nitrate to the endangered Topeka shiner (Notropis topeka) and fathead minnows (Pimephales promelas). Environmental Toxicology and Chemistry 28:  2216-2223."]
["N15-2","Adelman et al (2009)","Adelman, I.R.; Kusilek, L.I.; Koehle, J.; Hess, J. (2009). Acute and chronic toxicity of ammonia, nitrite, and nitrate to the endangered Topeka shiner (Notropis topeka) and fathead minnows (Pimephales promelas). Environmental Toxicology and Chemistry 28:  2216-2223."]
["N16-1","US EPA (2010)","U.S. EPA (2010). Final report on acute and chronic toxicity of nitrate, nitrite, boron, manganese, fluoride, chloride and sulphate to several aquatic animal species. No. EPA 905-R-10-002. United States Environmental Protection Agency, Chicago, IL. pp. 174."]
["N17-1","Schuytema & Nebeker (1999c)","Schuytema, G.S.; Nebeker, A.V. (1999c). Effects of ammonium nitrate, sodium nitrate amd urea on red-legged frogs, Pacific tree frog and African clawed frogs. Bulletin of Envrionmental and Contamination Toxicology 63:  357-364"]
["N18-1","Hickey et al (2016)","Hickey, C.W.; Thompson, K.J.; Martin, M.L.; Albert, A.; Bell, S.; Raymond, M. (2016). Data report for chronic nitrate toxicity to freshwater species: common bully, sphaeriid bivalve, freshwater crayfish and snail. No. FWWQ1703. NIWA data report"]
["N19-1","Stelzer and Joachim (2010)","Stelzer, R.S.; Joachim, B.L. (2010). Effects of Elevated Nitrate Concentration on Mortality, Growth, and Egestion Rates of Gammarus pseudolimnaeus Amphipods. Archives of Environmental Contamination and Toxicology 58:  694-699."]
["N20-1","Alonso and Camago (2013)","Alonso, Á.; Camargo, J. (2013). Nitrate causes deleterious effects on the behaviour and reproduction of the aquatic snail Potamopyrgus antipodarum (Hydrobiidae, Mollusca). Environmental Science and Pollution Research 20:  5388-5396."]
["N21-1","Sueitt et al (2015)","Sueitt, A.P.E.; Yamada-Ferraz, T.M.; Oliveira, A.F.; Botta, C.M.R.; Fadini, P.S.; Nascimento, M.R.L.; Faria, B.M.; Mozeto, A.A. (2015). Ecotoxicological risks of calcium nitrate exposure to freshwater tropical organisms: Laboratory and field experiments. Ecotoxicology and Environmental Safety 117:  155-163."]
["N21-2","Sueitt et al (2015)","Sueitt, A.P.E.; Yamada-Ferraz, T.M.; Oliveira, A.F.; Botta, C.M.R.; Fadini, P.S.; Nascimento, M.R.L.; Faria, B.M.; Mozeto, A.A. (2015). Ecotoxicological risks of calcium nitrate exposure to freshwater tropical organisms: Laboratory and field experiments. Ecotoxicology and Environmental Safety 117:  155-163."]
["N22-1","Schram et al (2014)","Schram, E.; Roques, J.A.C.; van Kuijk, T.; Abbink, W.; van de Heul, J.; de Vries, P.; Bierman, S.; van de Vis, H.; Flik, G. (2014). The impact of elevated water ammonia and nitrate concentrations on physiology, growth and feed intake of pikeperch (Sander lucioperca). Aquaculture 420–421:  95-104."]
["N23-1","Learmonth & Carvalho (2015)","Learmonth, C.; Carvalho, A.P. (2015). Acute and Chronic Toxicity of Nitrate to Early Life Stages of Zebrafish-Setting Nitrate Safety Levels for Zebrafish Rearing. Zebrafish 12:  305-311."]
["N24-1","Soucek & Dickinson (2016)","Soucek, D.J.; Dickinson, A. (2016). Influence of chloride on the chronic toxicity of sodium nitrate to Ceriodaphnia dubia and Hyalella azteca. Ecotoxicology 25:  1406-1416."]
["N24-2","Soucek & Dickinson (2016)","Soucek, D.J.; Dickinson, A. (2016). Influence of chloride on the chronic toxicity of sodium nitrate to Ceriodaphnia dubia and Hyalella azteca. Ecotoxicology 25:  1406-1416."]
["N25-1","Wang et al. (2020)","Wang N, Dorman RA, Ivey CD, Soucek DJ, Dickinson A, Kunz BK, Steevens JA, Hammer EJ and Bauer CR. (2020). Acute and chronic toxicity of sodium nitrate and sodium sulfate to several freshwater organisms in water-only exposures. Environmental Toxicology and Chemistry, 39, 1071-1085."]
["N26","ESA (2019)","ESA [Ecotox Services Australia] 2019a. Toxicity Assessment of Nitrate using Cultured Local Species – Rio Tinto Iron Ore, Test Report, September 2019."]
["N27","van Dam (2019)","van Dam RA 2019. Analysis of nitrate toxicity data for algae and generation of species sensitivity distribution. Report prepared for Rio Tinto, Perth, WA, December 2019."]

{"sheet":"Sheet2","index":8,"n_rows":0,"n_cols":0,"rows_kept":0,"cut":false,"hidden":false,"merged":[]}